Body_Code,Body_Name,GL Code,GL Code Desc,Posting Date,Doc Number,Doc Net Amount,Supplier Name
http://statistics.data.gov.uk/id/local-authority/38,Oxfordshire County Council,5039,ITC Services,01/11/2016,2200254690,"1,093.76",(aq) Ltd
http://statistics.data.gov.uk/id/local-authority/38,Oxfordshire County Council,4330,Transport to School Activities,22/11/2016,3110165223,576,001 Alpha Cars Ltd
http://statistics.data.gov.uk/id/local-authority/38,Oxfordshire County Council,4330,Transport to School Activities,02/11/2016,3110158713,717,001 Alpha Cars Ltd
http://statistics.data.gov.uk/id/local-authority/38,Oxfordshire County Council,4330,Transport to School Activities,02/11/2016,3110158711,812,001 Alpha Cars Ltd
http://statistics.data.gov.uk/id/local-authority/38,Oxfordshire County Council,5227,Other Transport Arrangements,02/11/2016,3110158709,880.88,001 Alpha Cars Ltd
http://statistics.data.gov.uk/id/local-authority/38,Oxfordshire County Council,4314,"Other Trans Contract Costs (CRB, Car Sea",24/11/2016,3110166214,942,001 Alpha Cars Ltd
http://statistics.data.gov.uk/id/local-authority/38,Oxfordshire County Council,4330,Transport to School Activities,22/11/2016,3110165248,"1,080.00",001 Alpha Cars Ltd
http://statistics.data.gov.uk/id/local-authority/38,Oxfordshire County Council,4330,Transport to School Activities,22/11/2016,3110165229,"1,120.00",001 Alpha Cars Ltd
http://statistics.data.gov.uk/id/local-authority/38,Oxfordshire County Council,4330,Transport to School Activities,22/11/2016,3110165246,"1,155.99",001 Alpha Cars Ltd
http://statistics.data.gov.uk/id/local-authority/38,Oxfordshire County Council,4330,Transport to School Activities,22/11/2016,3110165244,"1,206.00",001 Alpha Cars Ltd
http://statistics.data.gov.uk/id/local-authority/38,Oxfordshire County Council,4330,Transport to School Activities,22/11/2016,3110165236,"1,705.00",001 Alpha Cars Ltd
http://statistics.data.gov.uk/id/local-authority/38,Oxfordshire County Council,4330,Transport to School Activities,22/11/2016,3110165232,"1,842.00",001 Alpha Cars Ltd
http://statistics.data.gov.uk/id/local-authority/38,Oxfordshire County Council,4330,Transport to School Activities,17/11/2016,3110164591,"2,040.00",001 Alpha Cars Ltd
http://statistics.data.gov.uk/id/local-authority/38,Oxfordshire County Council,4330,Transport to School Activities,17/11/2016,3110164590,"2,400.00",001 Alpha Cars Ltd
http://statistics.data.gov.uk/id/local-authority/38,Oxfordshire County Council,5689,,16/11/2016,3110163697,618.79,1 to 1 Care
http://statistics.data.gov.uk/id/local-authority/38,Oxfordshire County Council,5689,,16/11/2016,3110163709,829.88,1 to 1 Care
http://statistics.data.gov.uk/id/local-authority/38,Oxfordshire County Council,5689,,16/11/2016,3110163693,980.74,1 to 1 Care
http://statistics.data.gov.uk/id/local-authority/38,Oxfordshire County Council,5689,,16/11/2016,3110163699,"1,062.17",1 to 1 Care
http://statistics.data.gov.uk/id/local-authority/38,Oxfordshire County Council,5689,,16/11/2016,3110163703,"1,082.62",1 to 1 Care
http://statistics.data.gov.uk/id/local-authority/38,Oxfordshire County Council,5689,,16/11/2016,3110163704,"1,139.72",1 to 1 Care
http://statistics.data.gov.uk/id/local-authority/38,Oxfordshire County Council,5689,,16/11/2016,3110163701,"1,149.52",1 to 1 Care
http://statistics.data.gov.uk/id/local-authority/38,Oxfordshire County Council,5689,,16/11/2016,3110163705,"1,384.80",1 to 1 Care
http://statistics.data.gov.uk/id/local-authority/38,Oxfordshire County Council,5689,,16/11/2016,3110163706,"1,577.76",1 to 1 Care
http://statistics.data.gov.uk/id/local-authority/38,Oxfordshire County Council,5689,,16/11/2016,3110163712,"1,614.60",1 to 1 Care
http://statistics.data.gov.uk/id/local-authority/38,Oxfordshire County Council,5689,,16/11/2016,3110163710,"1,899.32",1 to 1 Care
http://statistics.data.gov.uk/id/local-authority/38,Oxfordshire County Council,5689,,16/11/2016,3110163694,"2,422.50",1 to 1 Care
http://statistics.data.gov.uk/id/local-authority/38,Oxfordshire County Council,5689,,16/11/2016,3110163708,"2,452.07",1 to 1 Care
http://statistics.data.gov.uk/id/local-authority/38,Oxfordshire County Council,5689,,16/11/2016,3110163695,"3,190.43",1 to 1 Care
http://statistics.data.gov.uk/id/local-authority/38,Oxfordshire County Council,1362,Creditors GR/IR -,03/11/2016,2200256312,600,121 Captions Limited
http://statistics.data.gov.uk/id/local-authority/38,Oxfordshire County Council,6546,Contributions Health Authorities,25/11/2016,2200268887,502.2,1st Homecare (Oxford) Ltd
http://statistics.data.gov.uk/id/local-authority/38,Oxfordshire County Council,5689,,10/11/2016,3110161525,503.5,1st Homecare (Oxford) Ltd
http://statistics.data.gov.uk/id/local-authority/38,Oxfordshire County Council,4940,Other Services,23/11/2016,2200267846,508.5,1st Homecare (Oxford) Ltd
http://statistics.data.gov.uk/id/local-authority/38,Oxfordshire County Council,6546,Contributions Health Authorities,23/11/2016,2200267273,669.6,1st Homecare (Oxford) Ltd
http://statistics.data.gov.uk/id/local-authority/38,Oxfordshire County Council,5688,,10/11/2016,3110161516,674.5,1st Homecare (Oxford) Ltd
http://statistics.data.gov.uk/id/local-authority/38,Oxfordshire County Council,5688,,10/11/2016,3110161535,693.5,1st Homecare (Oxford) Ltd
http://statistics.data.gov.uk/id/local-authority/38,Oxfordshire County Council,5688,,10/11/2016,3110161512,703,1st Homecare (Oxford) Ltd
http://statistics.data.gov.uk/id/local-authority/38,Oxfordshire County Council,5688,,10/11/2016,3110161539,731.5,1st Homecare (Oxford) Ltd
http://statistics.data.gov.uk/id/local-authority/38,Oxfordshire County Council,5688,,10/11/2016,3110161542,738.53,1st Homecare (Oxford) Ltd
http://statistics.data.gov.uk/id/local-authority/38,Oxfordshire County Council,5688,,10/11/2016,3110161507,741,1st Homecare (Oxford) Ltd
http://statistics.data.gov.uk/id/local-authority/38,Oxfordshire County Council,5688,,10/11/2016,3110161532,764.75,1st Homecare (Oxford) Ltd
http://statistics.data.gov.uk/id/local-authority/38,Oxfordshire County Council,5688,,10/11/2016,3110161522,815.1,1st Homecare (Oxford) Ltd
http://statistics.data.gov.uk/id/local-authority/38,Oxfordshire County Council,4940,Other Services,04/11/2016,2200256859,906.83,1st Homecare (Oxford) Ltd
http://statistics.data.gov.uk/id/local-authority/38,Oxfordshire County Council,4940,Other Services,02/11/2016,2200255731,915.3,1st Homecare (Oxford) Ltd
http://statistics.data.gov.uk/id/local-authority/38,Oxfordshire County Council,5688,,10/11/2016,3110161524,"1,035.50",1st Homecare (Oxford) Ltd
http://statistics.data.gov.uk/id/local-authority/38,Oxfordshire County Council,5688,,10/11/2016,3110161544,"1,182.75",1st Homecare (Oxford) Ltd
http://statistics.data.gov.uk/id/local-authority/38,Oxfordshire County Council,5688,,10/11/2016,3110161537,"1,192.25",1st Homecare (Oxford) Ltd
http://statistics.data.gov.uk/id/local-authority/38,Oxfordshire County Council,5688,,10/11/2016,3110161514,"1,273.00",1st Homecare (Oxford) Ltd
http://statistics.data.gov.uk/id/local-authority/38,Oxfordshire County Council,5689,,10/11/2016,3110161510,"1,519.80",1st Homecare (Oxford) Ltd
http://statistics.data.gov.uk/id/local-authority/38,Oxfordshire County Council,5689,,10/11/2016,3110161533,"1,519.80",1st Homecare (Oxford) Ltd
http://statistics.data.gov.uk/id/local-authority/38,Oxfordshire County Council,5689,,10/11/2016,3110161530,"1,545.90",1st Homecare (Oxford) Ltd
http://statistics.data.gov.uk/id/local-authority/38,Oxfordshire County Council,5689,,10/11/2016,3110161504,"2,026.40",1st Homecare (Oxford) Ltd
http://statistics.data.gov.uk/id/local-authority/38,Oxfordshire County Council,5689,,10/11/2016,3110161526,"2,031.99",1st Homecare (Oxford) Ltd
http://statistics.data.gov.uk/id/local-authority/38,Oxfordshire County Council,5688,,10/11/2016,3110161543,"2,379.75",1st Homecare (Oxford) Ltd
http://statistics.data.gov.uk/id/local-authority/38,Oxfordshire County Council,5688,,10/11/2016,3110161523,"2,598.25",1st Homecare (Oxford) Ltd
http://statistics.data.gov.uk/id/local-authority/38,Oxfordshire County Council,5689,,08/11/2016,2200258180,"8,946.44",1st Homecare (Oxford) Ltd
http://statistics.data.gov.uk/id/local-authority/38,Oxfordshire County Council,5689,,29/11/2016,2200270933,"9,903.24",1st Homecare (Oxford) Ltd
http://statistics.data.gov.uk/id/local-authority/38,Oxfordshire County Council,5689,,03/11/2016,2200256066,"10,533.76",1st Homecare (Oxford) Ltd
http://statistics.data.gov.uk/id/local-authority/38,Oxfordshire County Council,5689,,18/11/2016,2200265253,"11,085.02",1st Homecare (Oxford) Ltd
http://statistics.data.gov.uk/id/local-authority/38,Oxfordshire County Council,5688,,10/11/2016,3110161404,"17,377.67",1st Homecare (Oxford) Ltd
http://statistics.data.gov.uk/id/local-authority/38,Oxfordshire County Council,4330,Transport to School Activities,11/11/2016,3110162004,720,1St Taxis
http://statistics.data.gov.uk/id/local-authority/38,Oxfordshire County Council,4330,Transport to School Activities,11/11/2016,3110161998,750,1St Taxis
http://statistics.data.gov.uk/id/local-authority/38,Oxfordshire County Council,4330,Transport to School Activities,11/11/2016,3110162002,960,1St Taxis
http://statistics.data.gov.uk/id/local-authority/38,Oxfordshire County Council,4330,Transport to School Activities,11/11/2016,3110161994,"1,120.00",1St Taxis
http://statistics.data.gov.uk/id/local-authority/38,Oxfordshire County Council,4330,Transport to School Activities,11/11/2016,3110161996,"1,335.00",1St Taxis
http://statistics.data.gov.uk/id/local-authority/38,Oxfordshire County Council,4330,Transport to School Activities,07/11/2016,3110159177,"1,400.00",1St Taxis
http://statistics.data.gov.uk/id/local-authority/38,Oxfordshire County Council,4940,Other Services,28/11/2016,2200270581,"1,688.00",2 Angels Independent Staffing
http://statistics.data.gov.uk/id/local-authority/38,Oxfordshire County Council,5686,,10/11/2016,3110161647,"16,140.01",2 CARE-A PART OF THE RICHMOND FELLO
http://statistics.data.gov.uk/id/local-authority/38,Oxfordshire County Council,4933,,01/11/2016,3110159060,500,27 Beaumont Street
http://statistics.data.gov.uk/id/local-authority/38,Oxfordshire County Council,4933,,01/11/2016,3110159041,845,27 Beaumont Street
http://statistics.data.gov.uk/id/local-authority/38,Oxfordshire County Council,3942,Hire of Accommodation and Facilities,28/11/2016,2200270045,540,2JEvents Ltd
http://statistics.data.gov.uk/id/local-authority/38,Oxfordshire County Council,2040,Agency Staff,18/11/2016,2200265604,502.95,3D Recruit Ltd
http://statistics.data.gov.uk/id/local-authority/38,Oxfordshire County Council,2040,Agency Staff,21/11/2016,2200265721,574.88,3D Recruit Ltd
http://statistics.data.gov.uk/id/local-authority/38,Oxfordshire County Council,2040,Agency Staff,09/11/2016,2200259621,626.55,3D Recruit Ltd
http://statistics.data.gov.uk/id/local-authority/38,Oxfordshire County Council,2040,Agency Staff,11/11/2016,2200261051,651.52,3D Recruit Ltd
http://statistics.data.gov.uk/id/local-authority/38,Oxfordshire County Council,2040,Agency Staff,15/11/2016,2200262966,651.52,3D Recruit Ltd
http://statistics.data.gov.uk/id/local-authority/38,Oxfordshire County Council,2040,Agency Staff,08/11/2016,2200258187,689.76,3D Recruit Ltd
http://statistics.data.gov.uk/id/local-authority/38,Oxfordshire County Council,2040,Agency Staff,04/11/2016,2200257308,708.92,3D Recruit Ltd
http://statistics.data.gov.uk/id/local-authority/38,Oxfordshire County Council,2040,Agency Staff,24/11/2016,2200268608,960.76,3D Recruit Ltd
http://statistics.data.gov.uk/id/local-authority/38,Oxfordshire County Council,2040,Agency Staff,18/11/2016,2200265501,972.37,3D Recruit Ltd
http://statistics.data.gov.uk/id/local-authority/38,Oxfordshire County Council,2040,Agency Staff,28/11/2016,2200270635,989.14,3D Recruit Ltd
http://statistics.data.gov.uk/id/local-authority/38,Oxfordshire County Council,2040,Agency Staff,24/11/2016,2200268287,"1,067.69",3D Recruit Ltd
http://statistics.data.gov.uk/id/local-authority/38,Oxfordshire County Council,2040,Agency Staff,11/11/2016,2200261337,"1,140.02",3D Recruit Ltd
http://statistics.data.gov.uk/id/local-authority/38,Oxfordshire County Council,2040,Agency Staff,14/11/2016,2200261838,"1,163.42",3D Recruit Ltd
http://statistics.data.gov.uk/id/local-authority/38,Oxfordshire County Council,2040,Agency Staff,07/11/2016,2200257419,"1,206.82",3D Recruit Ltd
http://statistics.data.gov.uk/id/local-authority/38,Oxfordshire County Council,2040,Agency Staff,22/11/2016,2200266907,"1,211.89",3D Recruit Ltd
http://statistics.data.gov.uk/id/local-authority/38,Oxfordshire County Council,2040,Agency Staff,07/11/2016,2200257420,"1,218.55",3D Recruit Ltd
http://statistics.data.gov.uk/id/local-authority/38,Oxfordshire County Council,2040,Agency Staff,25/11/2016,2200269759,"1,221.60",3D Recruit Ltd
http://statistics.data.gov.uk/id/local-authority/38,Oxfordshire County Council,2040,Agency Staff,04/11/2016,2200257267,"1,240.61",3D Recruit Ltd
http://statistics.data.gov.uk/id/local-authority/38,Oxfordshire County Council,2040,Agency Staff,07/11/2016,2200257555,"1,240.61",3D Recruit Ltd
http://statistics.data.gov.uk/id/local-authority/38,Oxfordshire County Council,2040,Agency Staff,11/11/2016,2200261201,"1,240.61",3D Recruit Ltd
http://statistics.data.gov.uk/id/local-authority/38,Oxfordshire County Council,2040,Agency Staff,18/11/2016,2200265535,"1,240.61",3D Recruit Ltd
http://statistics.data.gov.uk/id/local-authority/38,Oxfordshire County Council,2040,Agency Staff,16/11/2016,2200263661,"1,247.60",3D Recruit Ltd
http://statistics.data.gov.uk/id/local-authority/38,Oxfordshire County Council,2040,Agency Staff,23/11/2016,2200267877,"1,262.33",3D Recruit Ltd
http://statistics.data.gov.uk/id/local-authority/38,Oxfordshire County Council,2040,Agency Staff,22/11/2016,2200267142,"1,265.68",3D Recruit Ltd
http://statistics.data.gov.uk/id/local-authority/38,Oxfordshire County Council,2040,Agency Staff,22/11/2016,2200266875,"1,278.11",3D Recruit Ltd
http://statistics.data.gov.uk/id/local-authority/38,Oxfordshire County Council,2040,Agency Staff,22/11/2016,2200266909,"1,285.63",3D Recruit Ltd
http://statistics.data.gov.uk/id/local-authority/38,Oxfordshire County Council,2040,Agency Staff,02/11/2016,2200255848,"1,290.91",3D Recruit Ltd
http://statistics.data.gov.uk/id/local-authority/38,Oxfordshire County Council,2040,Agency Staff,07/11/2016,2200257568,"1,294.51",3D Recruit Ltd
http://statistics.data.gov.uk/id/local-authority/38,Oxfordshire County Council,2040,Agency Staff,08/11/2016,2200258766,"1,297.13",3D Recruit Ltd
http://statistics.data.gov.uk/id/local-authority/38,Oxfordshire County Council,2040,Agency Staff,24/11/2016,2200268288,"1,297.31",3D Recruit Ltd
http://statistics.data.gov.uk/id/local-authority/38,Oxfordshire County Council,2040,Agency Staff,18/11/2016,2200265607,"1,313.51",3D Recruit Ltd
http://statistics.data.gov.uk/id/local-authority/38,Oxfordshire County Council,2040,Agency Staff,04/11/2016,2200257265,"1,329.71",3D Recruit Ltd
http://statistics.data.gov.uk/id/local-authority/38,Oxfordshire County Council,2040,Agency Staff,16/11/2016,2200263664,"1,373.38",3D Recruit Ltd
http://statistics.data.gov.uk/id/local-authority/38,Oxfordshire County Council,2040,Agency Staff,28/11/2016,2200270164,"1,385.88",3D Recruit Ltd
http://statistics.data.gov.uk/id/local-authority/38,Oxfordshire County Council,2040,Agency Staff,24/11/2016,2200268283,"1,395.70",3D Recruit Ltd
http://statistics.data.gov.uk/id/local-authority/38,Oxfordshire County Council,2040,Agency Staff,16/11/2016,2200263669,"1,403.53",3D Recruit Ltd
http://statistics.data.gov.uk/id/local-authority/38,Oxfordshire County Council,2040,Agency Staff,16/11/2016,2200263671,"1,406.77",3D Recruit Ltd
http://statistics.data.gov.uk/id/local-authority/38,Oxfordshire County Council,2040,Agency Staff,03/11/2016,2200256110,"1,437.00",3D Recruit Ltd
http://statistics.data.gov.uk/id/local-authority/38,Oxfordshire County Council,2040,Agency Staff,09/11/2016,2200259341,"1,446.00",3D Recruit Ltd
http://statistics.data.gov.uk/id/local-authority/38,Oxfordshire County Council,2040,Agency Staff,18/11/2016,2200265599,"1,450.50",3D Recruit Ltd
http://statistics.data.gov.uk/id/local-authority/38,Oxfordshire County Council,2040,Agency Staff,23/11/2016,2200267924,"1,457.70",3D Recruit Ltd
http://statistics.data.gov.uk/id/local-authority/38,Oxfordshire County Council,2040,Agency Staff,22/11/2016,2200267186,"1,459.74",3D Recruit Ltd
http://statistics.data.gov.uk/id/local-authority/38,Oxfordshire County Council,2040,Agency Staff,22/11/2016,2200267183,"1,462.03",3D Recruit Ltd
http://statistics.data.gov.uk/id/local-authority/38,Oxfordshire County Council,2040,Agency Staff,03/11/2016,2200255936,"1,506.64",3D Recruit Ltd
http://statistics.data.gov.uk/id/local-authority/38,Oxfordshire County Council,2040,Agency Staff,09/11/2016,2200259335,"1,506.64",3D Recruit Ltd
http://statistics.data.gov.uk/id/local-authority/38,Oxfordshire County Council,2040,Agency Staff,28/11/2016,2200270343,"1,506.64",3D Recruit Ltd
http://statistics.data.gov.uk/id/local-authority/38,Oxfordshire County Council,2040,Agency Staff,15/11/2016,2200262971,"1,767.82",3D Recruit Ltd
http://statistics.data.gov.uk/id/local-authority/38,Oxfordshire County Council,2040,Agency Staff,08/11/2016,2200258306,"1,925.92",3D Recruit Ltd
http://statistics.data.gov.uk/id/local-authority/38,Oxfordshire County Council,2040,Agency Staff,22/11/2016,2200267184,"1,969.03",3D Recruit Ltd
http://statistics.data.gov.uk/id/local-authority/38,Oxfordshire County Council,2040,Agency Staff,24/11/2016,2200268278,"1,983.41",3D Recruit Ltd
http://statistics.data.gov.uk/id/local-authority/38,Oxfordshire County Council,2040,Agency Staff,14/11/2016,2200261852,"2,012.15",3D Recruit Ltd
http://statistics.data.gov.uk/id/local-authority/38,Oxfordshire County Council,5537,Payments to Other Establishments,14/11/2016,3110162368,"6,628.05",A B C Nursery
http://statistics.data.gov.uk/id/local-authority/38,Oxfordshire County Council,5537,Payments to Other Establishments,07/11/2016,3110159426,"7,020.72",A B C Nursery
http://statistics.data.gov.uk/id/local-authority/38,Oxfordshire County Council,5251,Legal Costs,10/11/2016,2200260363,"1,175.00",A Collinson
http://statistics.data.gov.uk/id/local-authority/38,Oxfordshire County Council,5251,Legal Costs,29/11/2016,2200271395,"4,600.00",A Collinson
http://statistics.data.gov.uk/id/local-authority/38,Oxfordshire County Council,5251,Legal Costs,14/11/2016,2200262164,550,A Leong
http://statistics.data.gov.uk/id/local-authority/38,Oxfordshire County Council,5251,Legal Costs,25/11/2016,2200269874,675,A Leong
http://statistics.data.gov.uk/id/local-authority/38,Oxfordshire County Council,5251,Legal Costs,17/11/2016,2200264699,"1,200.00",A Leong
http://statistics.data.gov.uk/id/local-authority/38,Oxfordshire County Council,5251,Legal Costs,17/11/2016,2200264757,"1,350.00",A Leong
http://statistics.data.gov.uk/id/local-authority/38,Oxfordshire County Council,5251,Legal Costs,28/11/2016,2200270140,"2,525.00",A Leong
http://statistics.data.gov.uk/id/local-authority/38,Oxfordshire County Council,5251,Legal Costs,29/11/2016,2200271211,"3,175.00",A Leong
http://statistics.data.gov.uk/id/local-authority/38,Oxfordshire County Council,5251,Legal Costs,29/11/2016,2200271308,"3,430.00",A Leong
http://statistics.data.gov.uk/id/local-authority/38,Oxfordshire County Council,5251,Legal Costs,28/11/2016,2200270147,"5,100.00",A Leong
http://statistics.data.gov.uk/id/local-authority/38,Oxfordshire County Council,5542,B*Payments to carers,02/11/2016,3110156839,704.6,Redacted Personal Data
http://statistics.data.gov.uk/id/local-authority/38,Oxfordshire County Council,5542,B*Payments to carers,30/11/2016,3110167188,704.6,Redacted Personal Data
http://statistics.data.gov.uk/id/local-authority/38,Oxfordshire County Council,5227,Other Transport Arrangements,23/11/2016,3110165623,779.39,Redacted Personal Data
http://statistics.data.gov.uk/id/local-authority/38,Oxfordshire County Council,5549,B*Fostering Allowance - Regulation 38,02/11/2016,3110156877,567.46,Redacted Personal Data
http://statistics.data.gov.uk/id/local-authority/38,Oxfordshire County Council,5549,B*Fostering Allowance - Regulation 38,09/11/2016,3110160295,567.46,Redacted Personal Data
http://statistics.data.gov.uk/id/local-authority/38,Oxfordshire County Council,5549,B*Fostering Allowance - Regulation 38,16/11/2016,3110162865,567.46,Redacted Personal Data
http://statistics.data.gov.uk/id/local-authority/38,Oxfordshire County Council,5549,B*Fostering Allowance - Regulation 38,23/11/2016,3110165663,567.46,Redacted Personal Data
http://statistics.data.gov.uk/id/local-authority/38,Oxfordshire County Council,5549,B*Fostering Allowance - Regulation 38,30/11/2016,3110167229,567.46,Redacted Personal Data
http://statistics.data.gov.uk/id/local-authority/38,Oxfordshire County Council,5544,B*Fostering - Temp/Respite,23/11/2016,3110165626,842.24,Redacted Personal Data
http://statistics.data.gov.uk/id/local-authority/38,Oxfordshire County Council,5544,B*Fostering - Temp/Respite,16/11/2016,3110162849,"1,056.37",Redacted Personal Data
http://statistics.data.gov.uk/id/local-authority/38,Oxfordshire County Council,4861,Hired and Contracted Services,22/11/2016,2200266914,"7,500.00",A.C.E Training
http://statistics.data.gov.uk/id/local-authority/38,Oxfordshire County Council,4861,Hired and Contracted Services,22/11/2016,2200267179,"53,330.00",A2Dominion Housing Group
http://statistics.data.gov.uk/id/local-authority/38,Oxfordshire County Council,4861,Hired and Contracted Services,22/11/2016,2200267177,"186,654.41",A2Dominion Housing Group
http://statistics.data.gov.uk/id/local-authority/38,Oxfordshire County Council,5687,,10/11/2016,3110161718,"62,459.11",Abbey Crest Nursing Home
http://statistics.data.gov.uk/id/local-authority/38,Oxfordshire County Council,5537,Payments to Other Establishments,07/11/2016,3110159425,"6,605.76",Abbey Woods Academy
http://statistics.data.gov.uk/id/local-authority/38,Oxfordshire County Council,5537,Payments to Other Establishments,14/11/2016,3110162518,"2,083.69",Abbeymeads Day Nurseries Ltd
http://statistics.data.gov.uk/id/local-authority/38,Oxfordshire County Council,5537,Payments to Other Establishments,07/11/2016,3110159712,"3,053.32",Abbeymeads Day Nurseries Ltd
http://statistics.data.gov.uk/id/local-authority/38,Oxfordshire County Council,5689,,16/11/2016,3110164443,505.86,Abicare Services Ltd (Homecare)
http://statistics.data.gov.uk/id/local-authority/38,Oxfordshire County Council,5689,,16/11/2016,3110164429,576.24,Abicare Services Ltd (Homecare)
http://statistics.data.gov.uk/id/local-authority/38,Oxfordshire County Council,5689,,16/11/2016,3110164415,584.41,Abicare Services Ltd (Homecare)
http://statistics.data.gov.uk/id/local-authority/38,Oxfordshire County Council,5689,,16/11/2016,3110164440,589.7,Abicare Services Ltd (Homecare)
http://statistics.data.gov.uk/id/local-authority/38,Oxfordshire County Council,5689,,16/11/2016,3110164412,629.96,Abicare Services Ltd (Homecare)
http://statistics.data.gov.uk/id/local-authority/38,Oxfordshire County Council,5689,,16/11/2016,3110164419,667.68,Abicare Services Ltd (Homecare)
http://statistics.data.gov.uk/id/local-authority/38,Oxfordshire County Council,5689,,16/11/2016,3110164417,673.96,Abicare Services Ltd (Homecare)
http://statistics.data.gov.uk/id/local-authority/38,Oxfordshire County Council,5689,,16/11/2016,3110164422,689.04,Abicare Services Ltd (Homecare)
http://statistics.data.gov.uk/id/local-authority/38,Oxfordshire County Council,5689,,16/11/2016,3110164413,708.84,Abicare Services Ltd (Homecare)
http://statistics.data.gov.uk/id/local-authority/38,Oxfordshire County Council,5689,,16/11/2016,3110164418,755.02,Abicare Services Ltd (Homecare)
http://statistics.data.gov.uk/id/local-authority/38,Oxfordshire County Council,5689,,16/11/2016,3110164428,776.07,Abicare Services Ltd (Homecare)
http://statistics.data.gov.uk/id/local-authority/38,Oxfordshire County Council,5689,,16/11/2016,3110164409,819.12,Abicare Services Ltd (Homecare)
http://statistics.data.gov.uk/id/local-authority/38,Oxfordshire County Council,5689,,16/11/2016,3110164408,931.6,Abicare Services Ltd (Homecare)
http://statistics.data.gov.uk/id/local-authority/38,Oxfordshire County Council,5689,,16/11/2016,3110164426,961.14,Abicare Services Ltd (Homecare)
http://statistics.data.gov.uk/id/local-authority/38,Oxfordshire County Council,5689,,16/11/2016,3110164439,"1,004.88",Abicare Services Ltd (Homecare)
http://statistics.data.gov.uk/id/local-authority/38,Oxfordshire County Council,5689,,16/11/2016,3110164432,"1,164.45",Abicare Services Ltd (Homecare)
http://statistics.data.gov.uk/id/local-authority/38,Oxfordshire County Council,5689,,16/11/2016,3110164423,"2,341.10",Abicare Services Ltd (Homecare)
http://statistics.data.gov.uk/id/local-authority/38,Oxfordshire County Council,5899,Adult Social Care - Direct Payments,02/11/2016,3110157813,"6,427.92",Redacted Personal Data
http://statistics.data.gov.uk/id/local-authority/38,Oxfordshire County Council,5899,Adult Social Care - Direct Payments,30/11/2016,3110168118,"6,427.92",Redacted Personal Data
http://statistics.data.gov.uk/id/local-authority/38,Oxfordshire County Council,3100,Educational and Vocational Training,15/11/2016,2200262643,"1,250.00",Abingdon & Witney College
http://statistics.data.gov.uk/id/local-authority/38,Oxfordshire County Council,4861,Hired and Contracted Services,14/11/2016,2200262319,"10,220.00",Abingdon & Witney College
http://statistics.data.gov.uk/id/local-authority/38,Oxfordshire County Council,5537,Payments to Other Establishments,10/11/2016,3110162125,-869.23,Abingdon Kindergarten (Loyd Close)
http://statistics.data.gov.uk/id/local-authority/38,Oxfordshire County Council,5537,Payments to Other Establishments,14/11/2016,3110162369,"3,887.10",Abingdon Kindergarten (Loyd Close)
http://statistics.data.gov.uk/id/local-authority/38,Oxfordshire County Council,5537,Payments to Other Establishments,01/11/2016,3110159009,-716.4,Abingdon Kindergarten (Oxford Road)
http://statistics.data.gov.uk/id/local-authority/38,Oxfordshire County Council,5537,Payments to Other Establishments,29/11/2016,3110166899,760,Abingdon Kindergarten (Oxford Road)
http://statistics.data.gov.uk/id/local-authority/38,Oxfordshire County Council,5537,Payments to Other Establishments,14/11/2016,3110162370,"6,353.04",Abingdon Kindergarten (Oxford Road)
http://statistics.data.gov.uk/id/local-authority/38,Oxfordshire County Council,5537,Payments to Other Establishments,07/11/2016,3110159427,"10,136.12",Abingdon Kindergarten (Oxford Road)
http://statistics.data.gov.uk/id/local-authority/38,Oxfordshire County Council,5195,Grant Aid and Donations,15/11/2016,2200263054,"10,000.00",Abingdon Street Pastors
http://statistics.data.gov.uk/id/local-authority/38,Oxfordshire County Council,4933,,01/11/2016,3110158760,"1,410.00",Abingdon Surgery
http://statistics.data.gov.uk/id/local-authority/38,Oxfordshire County Council,5227,Other Transport Arrangements,14/11/2016,3110162352,513,Abingdon Taxis FKN Autotaxis
http://statistics.data.gov.uk/id/local-authority/38,Oxfordshire County Council,5227,Other Transport Arrangements,02/11/2016,3110158685,530.7,Abingdon Taxis FKN Autotaxis
http://statistics.data.gov.uk/id/local-authority/38,Oxfordshire County Council,5227,Other Transport Arrangements,14/11/2016,3110162349,600,Abingdon Taxis FKN Autotaxis
http://statistics.data.gov.uk/id/local-authority/38,Oxfordshire County Council,4330,Transport to School Activities,14/11/2016,3110162365,600,Abingdon Taxis FKN Autotaxis
http://statistics.data.gov.uk/id/local-authority/38,Oxfordshire County Council,4330,Transport to School Activities,28/11/2016,3110166570,600,Abingdon Taxis FKN Autotaxis
http://statistics.data.gov.uk/id/local-authority/38,Oxfordshire County Council,5227,Other Transport Arrangements,02/11/2016,3110158689,663,Abingdon Taxis FKN Autotaxis
http://statistics.data.gov.uk/id/local-authority/38,Oxfordshire County Council,4330,Transport to School Activities,14/11/2016,3110162363,684,Abingdon Taxis FKN Autotaxis
http://statistics.data.gov.uk/id/local-authority/38,Oxfordshire County Council,5227,Other Transport Arrangements,02/11/2016,3110158694,750.6,Abingdon Taxis FKN Autotaxis
http://statistics.data.gov.uk/id/local-authority/38,Oxfordshire County Council,5227,Other Transport Arrangements,02/11/2016,3110158678,832.32,Abingdon Taxis FKN Autotaxis
http://statistics.data.gov.uk/id/local-authority/38,Oxfordshire County Council,5227,Other Transport Arrangements,02/11/2016,3110158681,900,Abingdon Taxis FKN Autotaxis
http://statistics.data.gov.uk/id/local-authority/38,Oxfordshire County Council,4330,Transport to School Activities,14/11/2016,3110162362,924,Abingdon Taxis FKN Autotaxis
http://statistics.data.gov.uk/id/local-authority/38,Oxfordshire County Council,4330,Transport to School Activities,14/11/2016,3110162358,"1,215.00",Abingdon Taxis FKN Autotaxis
http://statistics.data.gov.uk/id/local-authority/38,Oxfordshire County Council,4330,Transport to School Activities,14/11/2016,3110162359,"1,322.80",Abingdon Taxis FKN Autotaxis
http://statistics.data.gov.uk/id/local-authority/38,Oxfordshire County Council,4330,Transport to School Activities,14/11/2016,3110162360,"1,380.00",Abingdon Taxis FKN Autotaxis
http://statistics.data.gov.uk/id/local-authority/38,Oxfordshire County Council,4330,Transport to School Activities,14/11/2016,3110162350,"1,837.50",Abingdon Taxis FKN Autotaxis
http://statistics.data.gov.uk/id/local-authority/38,Oxfordshire County Council,4330,Transport to School Activities,14/11/2016,3110162353,"1,860.00",Abingdon Taxis FKN Autotaxis
http://statistics.data.gov.uk/id/local-authority/38,Oxfordshire County Council,4330,Transport to School Activities,14/11/2016,3110162354,"2,100.00",Abingdon Taxis FKN Autotaxis
http://statistics.data.gov.uk/id/local-authority/38,Oxfordshire County Council,4330,Transport to School Activities,14/11/2016,3110162356,"2,103.90",Abingdon Taxis FKN Autotaxis
http://statistics.data.gov.uk/id/local-authority/38,Oxfordshire County Council,4330,Transport to School Activities,14/11/2016,3110162351,"2,532.00",Abingdon Taxis FKN Autotaxis
http://statistics.data.gov.uk/id/local-authority/38,Oxfordshire County Council,4330,Transport to School Activities,14/11/2016,3110162348,"3,360.00",Abingdon Taxis FKN Autotaxis
http://statistics.data.gov.uk/id/local-authority/38,Oxfordshire County Council,5526,Payments to Private Contractors,07/11/2016,2200257454,"11,864.97",Abingdon Town Council
http://statistics.data.gov.uk/id/local-authority/38,Oxfordshire County Council,5686,,10/11/2016,3110161800,"59,916.16",Acacia Lodge Care Home
http://statistics.data.gov.uk/id/local-authority/38,Oxfordshire County Council,4330,Transport to School Activities,14/11/2016,3110162328,562.5,Ace Taxis (West Oxfordshire) Ltd
http://statistics.data.gov.uk/id/local-authority/38,Oxfordshire County Council,4330,Transport to School Activities,09/11/2016,3110160513,637.5,Ace Taxis (West Oxfordshire) Ltd
http://statistics.data.gov.uk/id/local-authority/38,Oxfordshire County Council,4330,Transport to School Activities,02/11/2016,3110158708,750,Ace Taxis (West Oxfordshire) Ltd
http://statistics.data.gov.uk/id/local-authority/38,Oxfordshire County Council,4330,Transport to School Activities,14/11/2016,3110162329,763,Ace Taxis (West Oxfordshire) Ltd
http://statistics.data.gov.uk/id/local-authority/38,Oxfordshire County Council,4330,Transport to School Activities,02/11/2016,3110158714,817.5,Ace Taxis (West Oxfordshire) Ltd
http://statistics.data.gov.uk/id/local-authority/38,Oxfordshire County Council,4330,Transport to School Activities,02/11/2016,3110158712,850,Ace Taxis (West Oxfordshire) Ltd
http://statistics.data.gov.uk/id/local-authority/38,Oxfordshire County Council,4330,Transport to School Activities,14/11/2016,3110162326,880,Ace Taxis (West Oxfordshire) Ltd
http://statistics.data.gov.uk/id/local-authority/38,Oxfordshire County Council,4330,Transport to School Activities,09/11/2016,3110160514,896.25,Ace Taxis (West Oxfordshire) Ltd
http://statistics.data.gov.uk/id/local-authority/38,Oxfordshire County Council,4330,Transport to School Activities,02/11/2016,3110158701,"1,100.00",Ace Taxis (West Oxfordshire) Ltd
http://statistics.data.gov.uk/id/local-authority/38,Oxfordshire County Council,4330,Transport to School Activities,02/11/2016,3110158704,"1,195.00",Ace Taxis (West Oxfordshire) Ltd
http://statistics.data.gov.uk/id/local-authority/38,Oxfordshire County Council,4330,Transport to School Activities,14/11/2016,3110162327,"1,350.00",Ace Taxis (West Oxfordshire) Ltd
http://statistics.data.gov.uk/id/local-authority/38,Oxfordshire County Council,4330,Transport to School Activities,02/11/2016,3110158706,"1,800.00",Ace Taxis (West Oxfordshire) Ltd
http://statistics.data.gov.uk/id/local-authority/38,Oxfordshire County Council,5899,Adult Social Care - Direct Payments,02/11/2016,3110157403,"2,424.00",Redacted Personal Data
http://statistics.data.gov.uk/id/local-authority/38,Oxfordshire County Council,5899,Adult Social Care - Direct Payments,30/11/2016,3110167727,"2,424.00",Redacted Personal Data
http://statistics.data.gov.uk/id/local-authority/38,Oxfordshire County Council,5689,,16/11/2016,3110163350,540.81,Acquire Care Ltd
http://statistics.data.gov.uk/id/local-authority/38,Oxfordshire County Council,5689,,16/11/2016,3110163398,619.41,Acquire Care Ltd
http://statistics.data.gov.uk/id/local-authority/38,Oxfordshire County Council,5689,,16/11/2016,3110163342,659.65,Acquire Care Ltd
http://statistics.data.gov.uk/id/local-authority/38,Oxfordshire County Council,5689,,16/11/2016,3110163399,660.19,Acquire Care Ltd
http://statistics.data.gov.uk/id/local-authority/38,Oxfordshire County Council,5689,,16/11/2016,3110163391,685.6,Acquire Care Ltd
http://statistics.data.gov.uk/id/local-authority/38,Oxfordshire County Council,5689,,16/11/2016,3110163365,696.8,Acquire Care Ltd
http://statistics.data.gov.uk/id/local-authority/38,Oxfordshire County Council,5689,,16/11/2016,3110163370,697.1,Acquire Care Ltd
http://statistics.data.gov.uk/id/local-authority/38,Oxfordshire County Council,5689,,16/11/2016,3110163354,700.43,Acquire Care Ltd
http://statistics.data.gov.uk/id/local-authority/38,Oxfordshire County Council,5689,,16/11/2016,3110163343,753.57,Acquire Care Ltd
http://statistics.data.gov.uk/id/local-authority/38,Oxfordshire County Council,5689,,16/11/2016,3110163368,756.35,Acquire Care Ltd
http://statistics.data.gov.uk/id/local-authority/38,Oxfordshire County Council,5689,,16/11/2016,3110163389,771.47,Acquire Care Ltd
http://statistics.data.gov.uk/id/local-authority/38,Oxfordshire County Council,5689,,16/11/2016,3110163360,781.14,Acquire Care Ltd
http://statistics.data.gov.uk/id/local-authority/38,Oxfordshire County Council,5689,,16/11/2016,3110163394,816.53,Acquire Care Ltd
http://statistics.data.gov.uk/id/local-authority/38,Oxfordshire County Council,5689,,16/11/2016,3110163390,832.31,Acquire Care Ltd
http://statistics.data.gov.uk/id/local-authority/38,Oxfordshire County Council,5689,,16/11/2016,3110163392,870.32,Acquire Care Ltd
http://statistics.data.gov.uk/id/local-authority/38,Oxfordshire County Council,5689,,16/11/2016,3110163381,873.11,Acquire Care Ltd
http://statistics.data.gov.uk/id/local-authority/38,Oxfordshire County Council,5689,,16/11/2016,3110163362,878.79,Acquire Care Ltd
http://statistics.data.gov.uk/id/local-authority/38,Oxfordshire County Council,5689,,16/11/2016,3110163406,941.66,Acquire Care Ltd
http://statistics.data.gov.uk/id/local-authority/38,Oxfordshire County Council,5689,,16/11/2016,3110163338,956.19,Acquire Care Ltd
http://statistics.data.gov.uk/id/local-authority/38,Oxfordshire County Council,5689,,16/11/2016,3110163388,968.87,Acquire Care Ltd
http://statistics.data.gov.uk/id/local-authority/38,Oxfordshire County Council,5689,,16/11/2016,3110163377,969.78,Acquire Care Ltd
http://statistics.data.gov.uk/id/local-authority/38,Oxfordshire County Council,5689,,16/11/2016,3110163373,988.22,Acquire Care Ltd
http://statistics.data.gov.uk/id/local-authority/38,Oxfordshire County Council,5689,,16/11/2016,3110163349,"1,030.84",Acquire Care Ltd
http://statistics.data.gov.uk/id/local-authority/38,Oxfordshire County Council,5689,,16/11/2016,3110163375,"1,094.93",Acquire Care Ltd
http://statistics.data.gov.uk/id/local-authority/38,Oxfordshire County Council,5689,,16/11/2016,3110163387,"1,118.21",Acquire Care Ltd
http://statistics.data.gov.uk/id/local-authority/38,Oxfordshire County Council,5689,,16/11/2016,3110163359,"1,143.00",Acquire Care Ltd
http://statistics.data.gov.uk/id/local-authority/38,Oxfordshire County Council,5689,,16/11/2016,3110163369,"1,214.04",Acquire Care Ltd
http://statistics.data.gov.uk/id/local-authority/38,Oxfordshire County Council,5689,,16/11/2016,3110163347,"1,283.47",Acquire Care Ltd
http://statistics.data.gov.uk/id/local-authority/38,Oxfordshire County Council,5689,,16/11/2016,3110163353,"1,384.23",Acquire Care Ltd
http://statistics.data.gov.uk/id/local-authority/38,Oxfordshire County Council,5689,,16/11/2016,3110163363,"1,595.84",Acquire Care Ltd
http://statistics.data.gov.uk/id/local-authority/38,Oxfordshire County Council,5689,,16/11/2016,3110163344,"1,635.79",Acquire Care Ltd
http://statistics.data.gov.uk/id/local-authority/38,Oxfordshire County Council,5689,,16/11/2016,3110163405,"1,915.86",Acquire Care Ltd
http://statistics.data.gov.uk/id/local-authority/38,Oxfordshire County Council,5689,,16/11/2016,3110163372,"2,001.53",Acquire Care Ltd
http://statistics.data.gov.uk/id/local-authority/38,Oxfordshire County Council,5689,,16/11/2016,3110163396,"2,022.27",Acquire Care Ltd
http://statistics.data.gov.uk/id/local-authority/38,Oxfordshire County Council,5689,,16/11/2016,3110163395,"2,086.39",Acquire Care Ltd
http://statistics.data.gov.uk/id/local-authority/38,Oxfordshire County Council,5689,,16/11/2016,3110163403,"2,175.05",Acquire Care Ltd
http://statistics.data.gov.uk/id/local-authority/38,Oxfordshire County Council,5689,,16/11/2016,3110163371,"2,199.84",Acquire Care Ltd
http://statistics.data.gov.uk/id/local-authority/38,Oxfordshire County Council,5689,,16/11/2016,3110163376,"2,241.25",Acquire Care Ltd
http://statistics.data.gov.uk/id/local-authority/38,Oxfordshire County Council,5689,,16/11/2016,3110163366,"2,241.55",Acquire Care Ltd
http://statistics.data.gov.uk/id/local-authority/38,Oxfordshire County Council,5689,,16/11/2016,3110163364,"2,269.09",Acquire Care Ltd
http://statistics.data.gov.uk/id/local-authority/38,Oxfordshire County Council,5689,,16/11/2016,3110163355,"2,283.27",Acquire Care Ltd
http://statistics.data.gov.uk/id/local-authority/38,Oxfordshire County Council,5689,,16/11/2016,3110163356,"2,335.87",Acquire Care Ltd
http://statistics.data.gov.uk/id/local-authority/38,Oxfordshire County Council,5689,,16/11/2016,3110163374,"2,406.31",Acquire Care Ltd
http://statistics.data.gov.uk/id/local-authority/38,Oxfordshire County Council,5689,,16/11/2016,3110163357,"2,424.75",Acquire Care Ltd
http://statistics.data.gov.uk/id/local-authority/38,Oxfordshire County Council,5689,,16/11/2016,3110163345,"2,684.39",Acquire Care Ltd
http://statistics.data.gov.uk/id/local-authority/38,Oxfordshire County Council,5689,,16/11/2016,3110163401,"2,789.14",Acquire Care Ltd
http://statistics.data.gov.uk/id/local-authority/38,Oxfordshire County Council,5689,,16/11/2016,3110163400,"2,863.76",Acquire Care Ltd
http://statistics.data.gov.uk/id/local-authority/38,Oxfordshire County Council,5689,,16/11/2016,3110163382,"2,974.03",Acquire Care Ltd
http://statistics.data.gov.uk/id/local-authority/38,Oxfordshire County Council,5689,,21/11/2016,3110164998,"3,080.00",Acquire Care Ltd
http://statistics.data.gov.uk/id/local-authority/38,Oxfordshire County Council,5689,,16/11/2016,3110163339,"3,080.63",Acquire Care Ltd
http://statistics.data.gov.uk/id/local-authority/38,Oxfordshire County Council,5689,,16/11/2016,3110163358,"3,269.07",Acquire Care Ltd
http://statistics.data.gov.uk/id/local-authority/38,Oxfordshire County Council,3105,Training related expenditure,10/11/2016,2200259887,500,Action for Carers
http://statistics.data.gov.uk/id/local-authority/38,Oxfordshire County Council,5520,Payments to Voluntary bodies,30/11/2016,3500024220,"174,993.50",Action for Children
http://statistics.data.gov.uk/id/local-authority/38,Oxfordshire County Council,5686,,10/11/2016,3110161640,"4,679.88",ACTION ON HEARING LOSS
http://statistics.data.gov.uk/id/local-authority/38,Oxfordshire County Council,5688,,10/11/2016,3110161540,"4,829.91",ACTION ON HEARING LOSS
http://statistics.data.gov.uk/id/local-authority/38,Oxfordshire County Council,5537,Payments to Other Establishments,17/11/2016,3110165186,"3,313.00",Activate Learning Education Trust
http://statistics.data.gov.uk/id/local-authority/38,Oxfordshire County Council,5691,,25/11/2016,3110166301,"1,584.17",ACTIVE ASSISTANCE
http://statistics.data.gov.uk/id/local-authority/38,Oxfordshire County Council,5668,Technical and Professional Consultant F,15/11/2016,2200262862,"1,668.00",Acuma Solutions Ltd
http://statistics.data.gov.uk/id/local-authority/38,Oxfordshire County Council,5899,Adult Social Care - Direct Payments,30/11/2016,3110168386,"-1,631.70",Redacted Personal Data
http://statistics.data.gov.uk/id/local-authority/38,Oxfordshire County Council,5899,Adult Social Care - Direct Payments,30/11/2016,3110168388,"1,953.06",Redacted Personal Data
http://statistics.data.gov.uk/id/local-authority/38,Oxfordshire County Council,5899,Adult Social Care - Direct Payments,02/11/2016,3110157845,"2,076.92",Redacted Personal Data
http://statistics.data.gov.uk/id/local-authority/38,Oxfordshire County Council,5899,Adult Social Care - Direct Payments,30/11/2016,3110168156,"2,076.92",Redacted Personal Data
http://statistics.data.gov.uk/id/local-authority/38,Oxfordshire County Council,5537,Payments to Other Establishments,14/11/2016,3110162371,"2,494.66",Adderbury Day Nursery
http://statistics.data.gov.uk/id/local-authority/38,Oxfordshire County Council,5537,Payments to Other Establishments,07/11/2016,3110159429,"13,066.20",Adderbury Day Nursery
http://statistics.data.gov.uk/id/local-authority/38,Oxfordshire County Council,5691,,14/11/2016,2200261698,648,ADVANCE HOUSING & SUPPORT LTD
http://statistics.data.gov.uk/id/local-authority/38,Oxfordshire County Council,5689,,10/11/2016,3110161568,777.6,ADVANCE HOUSING & SUPPORT LTD
http://statistics.data.gov.uk/id/local-authority/38,Oxfordshire County Council,4861,Hired and Contracted Services,22/11/2016,2200266822,"13,208.00",ADVANCE HOUSING & SUPPORT LTD
http://statistics.data.gov.uk/id/local-authority/38,Oxfordshire County Council,5544,B*Fostering - Temp/Respite,10/11/2016,3110161642,"30,360.15",ADVANCE HOUSING & SUPPORT LTD
http://statistics.data.gov.uk/id/local-authority/38,Oxfordshire County Council,5688,,10/11/2016,3110161545,"34,994.73",ADVANCE HOUSING & SUPPORT LTD
http://statistics.data.gov.uk/id/local-authority/38,Oxfordshire County Council,5899,Adult Social Care - Direct Payments,28/11/2016,3110166498,517.18,Advance Oxford
http://statistics.data.gov.uk/id/local-authority/38,Oxfordshire County Council,5899,Adult Social Care - Direct Payments,28/11/2016,3110166471,517.7,Advance Oxford
http://statistics.data.gov.uk/id/local-authority/38,Oxfordshire County Council,5899,Adult Social Care - Direct Payments,28/11/2016,3110166480,585.39,Advance Oxford
http://statistics.data.gov.uk/id/local-authority/38,Oxfordshire County Council,5899,Adult Social Care - Direct Payments,28/11/2016,3110166507,640,Advance Oxford
http://statistics.data.gov.uk/id/local-authority/38,Oxfordshire County Council,5899,Adult Social Care - Direct Payments,28/11/2016,3110166492,657.2,Advance Oxford
http://statistics.data.gov.uk/id/local-authority/38,Oxfordshire County Council,5899,Adult Social Care - Direct Payments,28/11/2016,3110166489,687.18,Advance Oxford
http://statistics.data.gov.uk/id/local-authority/38,Oxfordshire County Council,5899,Adult Social Care - Direct Payments,28/11/2016,3110166485,846.3,Advance Oxford
http://statistics.data.gov.uk/id/local-authority/38,Oxfordshire County Council,5899,Adult Social Care - Direct Payments,28/11/2016,3110166490,854.88,Advance Oxford
http://statistics.data.gov.uk/id/local-authority/38,Oxfordshire County Council,5899,Adult Social Care - Direct Payments,28/11/2016,3110166481,940.33,Advance Oxford
http://statistics.data.gov.uk/id/local-authority/38,Oxfordshire County Council,5899,Adult Social Care - Direct Payments,28/11/2016,3110166483,960,Advance Oxford
http://statistics.data.gov.uk/id/local-authority/38,Oxfordshire County Council,5899,Adult Social Care - Direct Payments,28/11/2016,3110166484,"1,170.78",Advance Oxford
http://statistics.data.gov.uk/id/local-authority/38,Oxfordshire County Council,5899,Adult Social Care - Direct Payments,28/11/2016,3110166493,"1,170.78",Advance Oxford
http://statistics.data.gov.uk/id/local-authority/38,Oxfordshire County Council,5899,Adult Social Care - Direct Payments,28/11/2016,3110166494,"1,175.42",Advance Oxford
http://statistics.data.gov.uk/id/local-authority/38,Oxfordshire County Council,5899,Adult Social Care - Direct Payments,28/11/2016,3110166505,"1,333.80",Advance Oxford
http://statistics.data.gov.uk/id/local-authority/38,Oxfordshire County Council,5899,Adult Social Care - Direct Payments,28/11/2016,3110166501,"2,788.45",Advance Oxford
http://statistics.data.gov.uk/id/local-authority/38,Oxfordshire County Council,5899,Adult Social Care - Direct Payments,28/11/2016,3110166502,"2,788.45",Advance Oxford
http://statistics.data.gov.uk/id/local-authority/38,Oxfordshire County Council,4861,Hired and Contracted Services,03/11/2016,2200255955,588,Advanced Pest Control Ltd
http://statistics.data.gov.uk/id/local-authority/38,Oxfordshire County Council,5526,Payments to Private Contractors,28/11/2016,2200270744,"4,570.88",AECOM Infrastructure & Environment
http://statistics.data.gov.uk/id/local-authority/38,Oxfordshire County Council,5526,Payments to Private Contractors,28/11/2016,2200270399,"5,758.56",AECOM Infrastructure & Environment
http://statistics.data.gov.uk/id/local-authority/38,Oxfordshire County Council,5526,Payments to Private Contractors,28/11/2016,2200270498,"5,760.00",AECOM Infrastructure & Environment
http://statistics.data.gov.uk/id/local-authority/38,Oxfordshire County Council,5526,Payments to Private Contractors,28/11/2016,2200270407,"7,851.10",AECOM Infrastructure & Environment
http://statistics.data.gov.uk/id/local-authority/38,Oxfordshire County Council,5526,Payments to Private Contractors,28/11/2016,2200270747,"11,200.00",AECOM Infrastructure & Environment
http://statistics.data.gov.uk/id/local-authority/38,Oxfordshire County Council,5526,Payments to Private Contractors,24/11/2016,2200268259,"21,007.90",AECOM Infrastructure & Environment
http://statistics.data.gov.uk/id/local-authority/38,Oxfordshire County Council,4861,Hired and Contracted Services,24/11/2016,2200268060,"11,400.00",AECOM Limited
http://statistics.data.gov.uk/id/local-authority/38,Oxfordshire County Council,5686,,10/11/2016,3110161634,"7,060.24",AFFINITY TRUST
http://statistics.data.gov.uk/id/local-authority/38,Oxfordshire County Council,5688,,10/11/2016,3110161518,"211,253.22",AFFINITY TRUST
http://statistics.data.gov.uk/id/local-authority/38,Oxfordshire County Council,3956,Non System - Water - Metered,16/11/2016,2200263525,573.31,AFFINITY WATER
http://statistics.data.gov.uk/id/local-authority/38,Oxfordshire County Council,3956,Non System - Water - Metered,21/11/2016,2200265833,732.78,AFFINITY WATER
http://statistics.data.gov.uk/id/local-authority/38,Oxfordshire County Council,5537,Payments to Other Establishments,07/11/2016,3110159430,"13,436.48",Aflah Nursery
http://statistics.data.gov.uk/id/local-authority/38,Oxfordshire County Council,4861,Hired and Contracted Services,08/11/2016,2200258244,"25,000.00",Age UK Oxfordshire
http://statistics.data.gov.uk/id/local-authority/38,Oxfordshire County Council,5505,Payments to Health Authorities,01/11/2016,3500023262,"131,907.00",Age UK Oxfordshire
http://statistics.data.gov.uk/id/local-authority/38,Oxfordshire County Council,5899,Adult Social Care - Direct Payments,02/11/2016,3110157329,"2,620.00",Redacted Personal Data
http://statistics.data.gov.uk/id/local-authority/38,Oxfordshire County Council,5899,Adult Social Care - Direct Payments,30/11/2016,3110167671,"2,620.00",Redacted Personal Data
http://statistics.data.gov.uk/id/local-authority/38,Oxfordshire County Council,5526,Payments to Private Contractors,29/11/2016,2200271536,"28,293.85",Agrivert (Ardley) Limited
http://statistics.data.gov.uk/id/local-authority/38,Oxfordshire County Council,5526,Payments to Private Contractors,29/11/2016,2200271548,"84,409.08",Agrivert (Ardley) Limited
http://statistics.data.gov.uk/id/local-authority/38,Oxfordshire County Council,5526,Payments to Private Contractors,29/11/2016,2200271546,"97,740.10",Agrivert (Ardley) Limited
http://statistics.data.gov.uk/id/local-authority/38,Oxfordshire County Council,5526,Payments to Private Contractors,29/11/2016,2200271547,"52,241.25",Agrivert (Biogas) Limited
http://statistics.data.gov.uk/id/local-authority/38,Oxfordshire County Council,3942,Hire of Accommodation and Facilities,14/11/2016,3500023670,600,Redacted Personal Data
http://statistics.data.gov.uk/id/local-authority/38,Oxfordshire County Council,4934,,03/11/2016,3110158844,"1,288.00",Ahmeys Midnight Pharmacy
http://statistics.data.gov.uk/id/local-authority/38,Oxfordshire County Council,5899,Adult Social Care - Direct Payments,02/11/2016,3110157795,"1,184.48",Redacted Personal Data
http://statistics.data.gov.uk/id/local-authority/38,Oxfordshire County Council,5899,Adult Social Care - Direct Payments,30/11/2016,3110168098,"1,184.48",Redacted Personal Data
http://statistics.data.gov.uk/id/local-authority/38,Oxfordshire County Council,4330,Transport to School Activities,14/11/2016,3110162181,693,Airport Transfers Banbury Ltd
http://statistics.data.gov.uk/id/local-authority/38,Oxfordshire County Council,4330,Transport to School Activities,14/11/2016,3110162183,768,Airport Transfers Banbury Ltd
http://statistics.data.gov.uk/id/local-authority/38,Oxfordshire County Council,4330,Transport to School Activities,14/11/2016,3110162187,885,Airport Transfers Banbury Ltd
http://statistics.data.gov.uk/id/local-authority/38,Oxfordshire County Council,4330,Transport to School Activities,14/11/2016,3110162186,"1,036.00",Airport Transfers Banbury Ltd
http://statistics.data.gov.uk/id/local-authority/38,Oxfordshire County Council,4330,Transport to School Activities,14/11/2016,3110162188,"1,665.00",Airport Transfers Banbury Ltd
http://statistics.data.gov.uk/id/local-authority/38,Oxfordshire County Council,4330,Transport to School Activities,14/11/2016,3110162184,"3,040.00",Airport Transfers Banbury Ltd
http://statistics.data.gov.uk/id/local-authority/38,Oxfordshire County Council,5079,Telephone - Calls,18/11/2016,2200265641,"4,073.21",Airwave Solutions Ltd
http://statistics.data.gov.uk/id/local-authority/38,Oxfordshire County Council,5505,Payments to Health Authorities,15/11/2016,2200262975,"1,208.85",Ajana Ltd
http://statistics.data.gov.uk/id/local-authority/38,Oxfordshire County Council,5505,Payments to Health Authorities,01/11/2016,2200254453,"1,295.00",Ajana Ltd
http://statistics.data.gov.uk/id/local-authority/38,Oxfordshire County Council,5227,Other Transport Arrangements,07/11/2016,3110159343,520.96,AKR Ltd
http://statistics.data.gov.uk/id/local-authority/38,Oxfordshire County Council,5227,Other Transport Arrangements,07/11/2016,3110159254,528,AKR Ltd
http://statistics.data.gov.uk/id/local-authority/38,Oxfordshire County Council,5227,Other Transport Arrangements,07/11/2016,3110159339,580.8,AKR Ltd
http://statistics.data.gov.uk/id/local-authority/38,Oxfordshire County Council,5227,Other Transport Arrangements,07/11/2016,3110159258,630,AKR Ltd
http://statistics.data.gov.uk/id/local-authority/38,Oxfordshire County Council,5227,Other Transport Arrangements,07/11/2016,3110159353,640,AKR Ltd
http://statistics.data.gov.uk/id/local-authority/38,Oxfordshire County Council,4330,Transport to School Activities,07/11/2016,3110159335,"1,200.00",AKR Ltd
http://statistics.data.gov.uk/id/local-authority/38,Oxfordshire County Council,4330,Transport to School Activities,07/11/2016,3110159349,"1,760.00",AKR Ltd
http://statistics.data.gov.uk/id/local-authority/38,Oxfordshire County Council,4330,Transport to School Activities,07/11/2016,3110159255,"1,845.00",AKR Ltd
http://statistics.data.gov.uk/id/local-authority/38,Oxfordshire County Council,4330,Transport to School Activities,07/11/2016,3110159250,"1,875.00",AKR Ltd
http://statistics.data.gov.uk/id/local-authority/38,Oxfordshire County Council,4330,Transport to School Activities,07/11/2016,3110159341,"1,900.80",AKR Ltd
http://statistics.data.gov.uk/id/local-authority/38,Oxfordshire County Council,4330,Transport to School Activities,07/11/2016,3110159352,"2,240.00",AKR Ltd
http://statistics.data.gov.uk/id/local-authority/38,Oxfordshire County Council,4330,Transport to School Activities,07/11/2016,3110159345,"2,340.00",AKR Ltd
http://statistics.data.gov.uk/id/local-authority/38,Oxfordshire County Council,4330,Transport to School Activities,07/11/2016,3110159253,"2,623.50",AKR Ltd
http://statistics.data.gov.uk/id/local-authority/38,Oxfordshire County Council,4330,Transport to School Activities,07/11/2016,3110159337,"2,668.80",AKR Ltd
http://statistics.data.gov.uk/id/local-authority/38,Oxfordshire County Council,4330,Transport to School Activities,07/11/2016,3110159333,"2,937.00",AKR Ltd
http://statistics.data.gov.uk/id/local-authority/38,Oxfordshire County Council,4330,Transport to School Activities,07/11/2016,3110159256,"3,152.00",AKR Ltd
http://statistics.data.gov.uk/id/local-authority/38,Oxfordshire County Council,4330,Transport to School Activities,07/11/2016,3110159257,"3,570.00",AKR Ltd
http://statistics.data.gov.uk/id/local-authority/38,Oxfordshire County Council,3821,Grounds Maintenance Contracts,10/11/2016,2200259969,675,Alan Binding
http://statistics.data.gov.uk/id/local-authority/38,Oxfordshire County Council,5686,,10/11/2016,3110161887,"40,207.33",ALBANY FARM CARE
http://statistics.data.gov.uk/id/local-authority/38,Oxfordshire County Council,3103,Other Training Courses and Qualification,02/11/2016,2200255624,714,Alendi Consulting Ltd
http://statistics.data.gov.uk/id/local-authority/38,Oxfordshire County Council,5555,Payments to Carers,10/11/2016,3110161521,583.61,Redacted Personal Data
http://statistics.data.gov.uk/id/local-authority/38,Oxfordshire County Council,5899,Adult Social Care - Direct Payments,02/11/2016,3110157849,"2,995.08",Redacted Personal Data
http://statistics.data.gov.uk/id/local-authority/38,Oxfordshire County Council,5899,Adult Social Care - Direct Payments,30/11/2016,3110168161,"2,995.08",Redacted Personal Data
http://statistics.data.gov.uk/id/local-authority/38,Oxfordshire County Council,5899,Adult Social Care - Direct Payments,28/11/2016,3110166467,705.25,Redacted Personal Data
http://statistics.data.gov.uk/id/local-authority/38,Oxfordshire County Council,5899,Adult Social Care - Direct Payments,02/11/2016,3110157317,"5,388.00",Redacted Personal Data
http://statistics.data.gov.uk/id/local-authority/38,Oxfordshire County Council,5899,Adult Social Care - Direct Payments,30/11/2016,3110167663,"5,388.00",Redacted Personal Data
http://statistics.data.gov.uk/id/local-authority/38,Oxfordshire County Council,5899,Adult Social Care - Direct Payments,02/11/2016,3110157255,"6,654.76",Redacted Personal Data
http://statistics.data.gov.uk/id/local-authority/38,Oxfordshire County Council,5899,Adult Social Care - Direct Payments,30/11/2016,3110167618,"6,654.76",Redacted Personal Data
http://statistics.data.gov.uk/id/local-authority/38,Oxfordshire County Council,4835,Management Consultant Fees,10/11/2016,2200260719,600,Alice Copping
http://statistics.data.gov.uk/id/local-authority/38,Oxfordshire County Council,5899,Adult Social Care - Direct Payments,02/11/2016,3110158043,753.24,Redacted Personal Data
http://statistics.data.gov.uk/id/local-authority/38,Oxfordshire County Council,5899,Adult Social Care - Direct Payments,30/11/2016,3110168381,753.24,Redacted Personal Data
http://statistics.data.gov.uk/id/local-authority/38,Oxfordshire County Council,5899,Adult Social Care - Direct Payments,02/11/2016,3110157806,"4,493.16",Redacted Personal Data
http://statistics.data.gov.uk/id/local-authority/38,Oxfordshire County Council,5899,Adult Social Care - Direct Payments,30/11/2016,3110168111,"4,493.16",Redacted Personal Data
http://statistics.data.gov.uk/id/local-authority/38,Oxfordshire County Council,2040,Agency Staff,09/11/2016,2200259840,738.32,Allen Associates
http://statistics.data.gov.uk/id/local-authority/38,Oxfordshire County Council,2040,Agency Staff,02/11/2016,2200255276,758.86,Allen Associates
http://statistics.data.gov.uk/id/local-authority/38,Oxfordshire County Council,2040,Agency Staff,21/11/2016,2200265699,758.86,Allen Associates
http://statistics.data.gov.uk/id/local-authority/38,Oxfordshire County Council,2040,Agency Staff,29/11/2016,2200271230,758.86,Allen Associates
http://statistics.data.gov.uk/id/local-authority/38,Oxfordshire County Council,5899,Adult Social Care - Direct Payments,02/11/2016,3110157611,640,Redacted Personal Data
http://statistics.data.gov.uk/id/local-authority/38,Oxfordshire County Council,5899,Adult Social Care - Direct Payments,30/11/2016,3110167894,640,Redacted Personal Data
http://statistics.data.gov.uk/id/local-authority/38,Oxfordshire County Council,5686,,10/11/2016,3110161881,"3,353.40",ALLIED CARE LTD
http://statistics.data.gov.uk/id/local-authority/38,Oxfordshire County Council,5537,Payments to Other Establishments,01/11/2016,3110159101,539,Allsorts Pre-School
http://statistics.data.gov.uk/id/local-authority/38,Oxfordshire County Council,5537,Payments to Other Establishments,07/11/2016,3110159431,"4,372.52",Allsorts Pre-School
http://statistics.data.gov.uk/id/local-authority/38,Oxfordshire County Council,4232,Vehicle Fuel,03/11/2016,2200256048,"3,944.05",Allstar Business Solutions Ltd
http://statistics.data.gov.uk/id/local-authority/38,Oxfordshire County Council,5686,,10/11/2016,3110161872,"22,473.47",Alocare Group
http://statistics.data.gov.uk/id/local-authority/38,Oxfordshire County Council,4270,HTM / Other Vehicle - Hire Charges,25/11/2016,2200268704,568.74,Alphabet (GB) Ltd
http://statistics.data.gov.uk/id/local-authority/38,Oxfordshire County Council,4270,HTM / Other Vehicle - Hire Charges,25/11/2016,2200268705,568.74,Alphabet (GB) Ltd
http://statistics.data.gov.uk/id/local-authority/38,Oxfordshire County Council,4270,HTM / Other Vehicle - Hire Charges,25/11/2016,2200268706,568.74,Alphabet (GB) Ltd
http://statistics.data.gov.uk/id/local-authority/38,Oxfordshire County Council,4270,HTM / Other Vehicle - Hire Charges,25/11/2016,2200268707,568.74,Alphabet (GB) Ltd
http://statistics.data.gov.uk/id/local-authority/38,Oxfordshire County Council,4270,HTM / Other Vehicle - Hire Charges,25/11/2016,2200269871,568.74,Alphabet (GB) Ltd
http://statistics.data.gov.uk/id/local-authority/38,Oxfordshire County Council,5537,Payments to Other Establishments,18/11/2016,3110165119,-787.95,Alphabet Day Nursery
http://statistics.data.gov.uk/id/local-authority/38,Oxfordshire County Council,5537,Payments to Other Establishments,24/11/2016,3110166765,855.7,Alphabet Day Nursery
http://statistics.data.gov.uk/id/local-authority/38,Oxfordshire County Council,5081,HPSN Core Contract,16/11/2016,2200263423,"-11,214.00",Alternative Communication Systems
http://statistics.data.gov.uk/id/local-authority/38,Oxfordshire County Council,5081,HPSN Core Contract,02/11/2016,2200255417,"-3,936.00",Alternative Communication Systems
http://statistics.data.gov.uk/id/local-authority/38,Oxfordshire County Council,4122,Other premises related costs,18/11/2016,2200265615,578,Alternative Communication Systems
http://statistics.data.gov.uk/id/local-authority/38,Oxfordshire County Council,4494,Purchase of IT Equipment,25/11/2016,2200269866,"1,038.00",Alternative Communication Systems
http://statistics.data.gov.uk/id/local-authority/38,Oxfordshire County Council,5081,HPSN Core Contract,03/11/2016,2200255917,"1,546.00",Alternative Communication Systems
http://statistics.data.gov.uk/id/local-authority/38,Oxfordshire County Council,8350,Furn. & Equip. costing 6000 or more,24/11/2016,2200268365,"1,900.00",Alternative Communication Systems
http://statistics.data.gov.uk/id/local-authority/38,Oxfordshire County Council,4494,Purchase of IT Equipment,28/11/2016,2200270109,"10,176.00",Alternative Communication Systems
http://statistics.data.gov.uk/id/local-authority/38,Oxfordshire County Council,5081,HPSN Core Contract,03/11/2016,2200255918,"11,214.00",Alternative Communication Systems
http://statistics.data.gov.uk/id/local-authority/38,Oxfordshire County Council,5899,Adult Social Care - Direct Payments,23/11/2016,3110165264,896,Redacted Personal Data
http://statistics.data.gov.uk/id/local-authority/38,Oxfordshire County Council,5899,Adult Social Care - Direct Payments,02/11/2016,3110158226,928,Redacted Personal Data
http://statistics.data.gov.uk/id/local-authority/38,Oxfordshire County Council,5899,Adult Social Care - Direct Payments,30/11/2016,3110168594,928,Redacted Personal Data
http://statistics.data.gov.uk/id/local-authority/38,Oxfordshire County Council,4861,Hired and Contracted Services,10/11/2016,2200260409,800,Amanda Smith Childrens
http://statistics.data.gov.uk/id/local-authority/38,Oxfordshire County Council,4835,Management Consultant Fees,15/11/2016,2200262622,800,Amanda Smith Childrens
http://statistics.data.gov.uk/id/local-authority/38,Oxfordshire County Council,5689,,16/11/2016,3110163309,502.02,Amber Healthcare Personnel Ltd
http://statistics.data.gov.uk/id/local-authority/38,Oxfordshire County Council,5689,,16/11/2016,3110163291,573.65,Amber Healthcare Personnel Ltd
http://statistics.data.gov.uk/id/local-authority/38,Oxfordshire County Council,5689,,16/11/2016,3110163285,580.82,Amber Healthcare Personnel Ltd
http://statistics.data.gov.uk/id/local-authority/38,Oxfordshire County Council,5689,,16/11/2016,3110163310,589.52,Amber Healthcare Personnel Ltd
http://statistics.data.gov.uk/id/local-authority/38,Oxfordshire County Council,5689,,16/11/2016,3110163282,594.83,Amber Healthcare Personnel Ltd
http://statistics.data.gov.uk/id/local-authority/38,Oxfordshire County Council,5689,,16/11/2016,3110163279,606.54,Amber Healthcare Personnel Ltd
http://statistics.data.gov.uk/id/local-authority/38,Oxfordshire County Council,5689,,16/11/2016,3110163304,614.28,Amber Healthcare Personnel Ltd
http://statistics.data.gov.uk/id/local-authority/38,Oxfordshire County Council,5689,,16/11/2016,3110163312,621.81,Amber Healthcare Personnel Ltd
http://statistics.data.gov.uk/id/local-authority/38,Oxfordshire County Council,5689,,16/11/2016,3110163288,661.02,Amber Healthcare Personnel Ltd
http://statistics.data.gov.uk/id/local-authority/38,Oxfordshire County Council,5689,,16/11/2016,3110163283,677.74,Amber Healthcare Personnel Ltd
http://statistics.data.gov.uk/id/local-authority/38,Oxfordshire County Council,5689,,16/11/2016,3110163293,680.54,Amber Healthcare Personnel Ltd
http://statistics.data.gov.uk/id/local-authority/38,Oxfordshire County Council,5689,,16/11/2016,3110163287,837.27,Amber Healthcare Personnel Ltd
http://statistics.data.gov.uk/id/local-authority/38,Oxfordshire County Council,5689,,16/11/2016,3110163294,867.77,Amber Healthcare Personnel Ltd
http://statistics.data.gov.uk/id/local-authority/38,Oxfordshire County Council,5689,,16/11/2016,3110163303,930.86,Amber Healthcare Personnel Ltd
http://statistics.data.gov.uk/id/local-authority/38,Oxfordshire County Council,5689,,16/11/2016,3110163299,987.12,Amber Healthcare Personnel Ltd
http://statistics.data.gov.uk/id/local-authority/38,Oxfordshire County Council,5689,,16/11/2016,3110163286,"1,101.29",Amber Healthcare Personnel Ltd
http://statistics.data.gov.uk/id/local-authority/38,Oxfordshire County Council,5689,,16/11/2016,3110163284,"1,127.87",Amber Healthcare Personnel Ltd
http://statistics.data.gov.uk/id/local-authority/38,Oxfordshire County Council,5689,,16/11/2016,3110163296,"1,352.41",Amber Healthcare Personnel Ltd
http://statistics.data.gov.uk/id/local-authority/38,Oxfordshire County Council,5689,,16/11/2016,3110163302,"1,482.76",Amber Healthcare Personnel Ltd
http://statistics.data.gov.uk/id/local-authority/38,Oxfordshire County Council,5689,,16/11/2016,3110163305,"2,155.97",Amber Healthcare Personnel Ltd
http://statistics.data.gov.uk/id/local-authority/38,Oxfordshire County Council,5689,,16/11/2016,3110163308,"2,478.09",Amber Healthcare Personnel Ltd
http://statistics.data.gov.uk/id/local-authority/38,Oxfordshire County Council,5689,,16/11/2016,3110163300,"2,608.87",Amber Healthcare Personnel Ltd
http://statistics.data.gov.uk/id/local-authority/38,Oxfordshire County Council,5689,,16/11/2016,3110163292,"2,636.28",Amber Healthcare Personnel Ltd
http://statistics.data.gov.uk/id/local-authority/38,Oxfordshire County Council,5689,,16/11/2016,3110163306,"2,807.83",Amber Healthcare Personnel Ltd
http://statistics.data.gov.uk/id/local-authority/38,Oxfordshire County Council,5689,,21/11/2016,3110164923,"5,336.00",Amber Healthcare Personnel Ltd
http://statistics.data.gov.uk/id/local-authority/38,Oxfordshire County Council,4861,Hired and Contracted Services,10/11/2016,2200260052,"12,000.00",Amber Publications & Training Ltd
http://statistics.data.gov.uk/id/local-authority/38,Oxfordshire County Council,5537,Payments to Other Establishments,07/11/2016,3110159432,"4,223.44",Ambrosden Village Pre-School
http://statistics.data.gov.uk/id/local-authority/38,Oxfordshire County Council,8004,Design Consultant,01/11/2016,2200254933,"9,248.97",AMEC Foster Wheeler Environment &
http://statistics.data.gov.uk/id/local-authority/38,Oxfordshire County Council,5558,,18/11/2016,2200265614,"16,800.00",Amegreen Children's Services Ltd
http://statistics.data.gov.uk/id/local-authority/38,Oxfordshire County Council,5558,,25/11/2016,2200269852,"16,800.00",Amegreen Children's Services Ltd
http://statistics.data.gov.uk/id/local-authority/38,Oxfordshire County Council,5558,,25/11/2016,2200269863,"16,800.00",Amegreen Children's Services Ltd
http://statistics.data.gov.uk/id/local-authority/38,Oxfordshire County Council,8102,Payments to main contractor,22/11/2016,2200266948,"45,865.00",Amey OW Ltd
http://statistics.data.gov.uk/id/local-authority/38,Oxfordshire County Council,5899,Adult Social Care - Direct Payments,02/11/2016,3110158005,"2,171.48",Redacted Personal Data
http://statistics.data.gov.uk/id/local-authority/38,Oxfordshire County Council,5899,Adult Social Care - Direct Payments,30/11/2016,3110168337,"2,171.48",Redacted Personal Data
http://statistics.data.gov.uk/id/local-authority/38,Oxfordshire County Council,5686,,09/11/2016,2200258959,"1,508.57",ANA
http://statistics.data.gov.uk/id/local-authority/38,Oxfordshire County Council,5686,,09/11/2016,2200258957,"1,960.00",ANA
http://statistics.data.gov.uk/id/local-authority/38,Oxfordshire County Council,5686,,09/11/2016,2200258958,"2,922.86",ANA
http://statistics.data.gov.uk/id/local-authority/38,Oxfordshire County Council,5686,,09/11/2016,2200258961,"2,922.86",ANA
http://statistics.data.gov.uk/id/local-authority/38,Oxfordshire County Council,5899,Adult Social Care - Direct Payments,28/11/2016,3110166452,564.2,Redacted Personal Data
http://statistics.data.gov.uk/id/local-authority/38,Oxfordshire County Council,5899,Adult Social Care - Direct Payments,30/11/2016,3110168406,"1,910.48",Redacted Personal Data
http://statistics.data.gov.uk/id/local-authority/38,Oxfordshire County Council,5899,Adult Social Care - Direct Payments,02/11/2016,3110158060,"2,386.20",Redacted Personal Data
http://statistics.data.gov.uk/id/local-authority/38,Oxfordshire County Council,5899,Adult Social Care - Direct Payments,02/11/2016,3110157111,"4,000.00",Redacted Personal Data
http://statistics.data.gov.uk/id/local-authority/38,Oxfordshire County Council,5899,Adult Social Care - Direct Payments,30/11/2016,3110167510,"4,000.00",Redacted Personal Data
http://statistics.data.gov.uk/id/local-authority/38,Oxfordshire County Council,4494,Purchase of IT Equipment,14/11/2016,2200261950,"1,355.00",Andy Foy Consulting
http://statistics.data.gov.uk/id/local-authority/38,Oxfordshire County Council,4495,IT Software,07/11/2016,2200257750,"4,420.00",Angel Solutions Ltd
http://statistics.data.gov.uk/id/local-authority/38,Oxfordshire County Council,5899,Adult Social Care - Direct Payments,02/11/2016,3110157244,"1,833.60",Redacted Personal Data
http://statistics.data.gov.uk/id/local-authority/38,Oxfordshire County Council,5899,Adult Social Care - Direct Payments,30/11/2016,3110167611,"1,833.60",Redacted Personal Data
http://statistics.data.gov.uk/id/local-authority/38,Oxfordshire County Council,5899,Adult Social Care - Direct Payments,02/11/2016,3110158045,"1,402.80",Redacted Personal Data
http://statistics.data.gov.uk/id/local-authority/38,Oxfordshire County Council,5899,Adult Social Care - Direct Payments,30/11/2016,3110168383,"1,402.80",Redacted Personal Data
http://statistics.data.gov.uk/id/local-authority/38,Oxfordshire County Council,4330,Transport to School Activities,24/11/2016,3110166203,588.6,Angelas Travel
http://statistics.data.gov.uk/id/local-authority/38,Oxfordshire County Council,4330,Transport to School Activities,24/11/2016,3110166209,"1,095.00",Angelas Travel
http://statistics.data.gov.uk/id/local-authority/38,Oxfordshire County Council,4330,Transport to School Activities,24/11/2016,3110166205,"1,225.00",Angelas Travel
http://statistics.data.gov.uk/id/local-authority/38,Oxfordshire County Council,4330,Transport to School Activities,28/11/2016,3110166585,"1,419.00",Angelas Travel
http://statistics.data.gov.uk/id/local-authority/38,Oxfordshire County Council,4330,Transport to School Activities,24/11/2016,3110166204,"1,470.00",Angelas Travel
http://statistics.data.gov.uk/id/local-authority/38,Oxfordshire County Council,4330,Transport to School Activities,22/11/2016,3110165249,"1,695.00",Angelas Travel
http://statistics.data.gov.uk/id/local-authority/38,Oxfordshire County Council,4330,Transport to School Activities,24/11/2016,3110166208,"1,869.75",Angelas Travel
http://statistics.data.gov.uk/id/local-authority/38,Oxfordshire County Council,4330,Transport to School Activities,24/11/2016,3110166206,"1,886.36",Angelas Travel
http://statistics.data.gov.uk/id/local-authority/38,Oxfordshire County Council,4330,Transport to School Activities,24/11/2016,3110166207,"1,927.05",Angelas Travel
http://statistics.data.gov.uk/id/local-authority/38,Oxfordshire County Council,5548,B*Fostering - Special Rates & Plus Amou,02/11/2016,3110156932,680.74,Redacted Personal Data
http://statistics.data.gov.uk/id/local-authority/38,Oxfordshire County Council,5548,B*Fostering - Special Rates & Plus Amou,09/11/2016,3110160357,680.74,Redacted Personal Data
http://statistics.data.gov.uk/id/local-authority/38,Oxfordshire County Council,5548,B*Fostering - Special Rates & Plus Amou,23/11/2016,3110165719,680.74,Redacted Personal Data
http://statistics.data.gov.uk/id/local-authority/38,Oxfordshire County Council,5548,B*Fostering - Special Rates & Plus Amou,30/11/2016,3110167272,680.74,Redacted Personal Data
http://statistics.data.gov.uk/id/local-authority/38,Oxfordshire County Council,5548,B*Fostering - Special Rates & Plus Amou,16/11/2016,3110162894,831.23,Redacted Personal Data
http://statistics.data.gov.uk/id/local-authority/38,Oxfordshire County Council,5537,Payments to Other Establishments,14/11/2016,3110162374,"1,514.10",Redacted Personal Data
http://statistics.data.gov.uk/id/local-authority/38,Oxfordshire County Council,5537,Payments to Other Establishments,07/11/2016,3110159433,"1,337.28",Anita Joines
http://statistics.data.gov.uk/id/local-authority/38,Oxfordshire County Council,5251,Legal Costs,29/11/2016,2200271522,500,Anna McKenna
http://statistics.data.gov.uk/id/local-authority/38,Oxfordshire County Council,5899,Adult Social Care - Direct Payments,02/11/2016,3110157320,647.48,Redacted Personal Data
http://statistics.data.gov.uk/id/local-authority/38,Oxfordshire County Council,5899,Adult Social Care - Direct Payments,30/11/2016,3110167665,647.48,Redacted Personal Data
http://statistics.data.gov.uk/id/local-authority/38,Oxfordshire County Council,5537,Payments to Other Establishments,14/11/2016,3110162375,865.2,Annabelles Nursery
http://statistics.data.gov.uk/id/local-authority/38,Oxfordshire County Council,5537,Payments to Other Establishments,07/11/2016,3110159434,"16,846.54",Annabelles Nursery
http://statistics.data.gov.uk/id/local-authority/38,Oxfordshire County Council,5537,Payments to Other Establishments,07/11/2016,3110159435,"4,520.48",Annabelles Pre-school (Longcot)
http://statistics.data.gov.uk/id/local-authority/38,Oxfordshire County Council,5537,Payments to Other Establishments,07/11/2016,3110159436,"1,504.44",Redacted Personal Data
http://statistics.data.gov.uk/id/local-authority/38,Oxfordshire County Council,5899,Adult Social Care - Direct Payments,02/11/2016,3110157655,"4,258.44",Redacted Personal Data
http://statistics.data.gov.uk/id/local-authority/38,Oxfordshire County Council,5899,Adult Social Care - Direct Payments,30/11/2016,3110167943,"4,258.44",Redacted Personal Data
http://statistics.data.gov.uk/id/local-authority/38,Oxfordshire County Council,5542,B*Payments to carers,16/11/2016,3110162845,878.38,Redacted Personal Data
http://statistics.data.gov.uk/id/local-authority/38,Oxfordshire County Council,5542,B*Payments to carers,23/11/2016,3110165616,878.38,Redacted Personal Data
http://statistics.data.gov.uk/id/local-authority/38,Oxfordshire County Council,5542,B*Payments to carers,30/11/2016,3110167182,878.38,Redacted Personal Data
http://statistics.data.gov.uk/id/local-authority/38,Oxfordshire County Council,4685,Clothing and Uniforms,09/11/2016,3110160248,"1,426.96",Redacted Personal Data
http://statistics.data.gov.uk/id/local-authority/38,Oxfordshire County Council,5251,Legal Costs,09/11/2016,2200258898,550,Annie Sayers
http://statistics.data.gov.uk/id/local-authority/38,Oxfordshire County Council,5251,Legal Costs,02/11/2016,2200255357,"1,100.00",Annie Sayers
http://statistics.data.gov.uk/id/local-authority/38,Oxfordshire County Council,4719,Photocopying,29/11/2016,2200270987,"6,155.51",ANNODATA BUSINESS COMMUNICATIONS
http://statistics.data.gov.uk/id/local-authority/38,Oxfordshire County Council,5899,Adult Social Care - Direct Payments,02/11/2016,3110157593,"1,367.12",Redacted Personal Data
http://statistics.data.gov.uk/id/local-authority/38,Oxfordshire County Council,5899,Adult Social Care - Direct Payments,30/11/2016,3110167875,"1,367.12",Redacted Personal Data
http://statistics.data.gov.uk/id/local-authority/38,Oxfordshire County Council,5899,Adult Social Care - Direct Payments,02/11/2016,3110157333,"3,337.60",Redacted Personal Data
http://statistics.data.gov.uk/id/local-authority/38,Oxfordshire County Council,5899,Adult Social Care - Direct Payments,30/11/2016,3110167673,"3,337.60",Redacted Personal Data
http://statistics.data.gov.uk/id/local-authority/38,Oxfordshire County Council,5899,Adult Social Care - Direct Payments,02/11/2016,3110157837,"5,412.00",Redacted Personal Data
http://statistics.data.gov.uk/id/local-authority/38,Oxfordshire County Council,5899,Adult Social Care - Direct Payments,30/11/2016,3110168145,"5,412.00",Redacted Personal Data
http://statistics.data.gov.uk/id/local-authority/38,Oxfordshire County Council,5899,Adult Social Care - Direct Payments,02/11/2016,3110157918,768,Redacted Personal Data
http://statistics.data.gov.uk/id/local-authority/38,Oxfordshire County Council,5899,Adult Social Care - Direct Payments,30/11/2016,3110168239,768,Redacted Personal Data
http://statistics.data.gov.uk/id/local-authority/38,Oxfordshire County Council,5691,,01/11/2016,3110156507,"2,009.96",Redacted Personal Data
http://statistics.data.gov.uk/id/local-authority/38,Oxfordshire County Council,5691,,30/11/2016,3110168788,"2,009.96",Redacted Personal Data
http://statistics.data.gov.uk/id/local-authority/38,Oxfordshire County Council,5537,Payments to Other Establishments,07/11/2016,3110159437,"3,855.82",Appleton Village Pre-School
http://statistics.data.gov.uk/id/local-authority/38,Oxfordshire County Council,5195,Grant Aid and Donations,03/11/2016,3500023459,"28,333.33",Aquarius Action Projects
http://statistics.data.gov.uk/id/local-authority/38,Oxfordshire County Council,5195,Grant Aid and Donations,27/11/2016,3500023892,"28,333.33",Aquarius Action Projects
http://statistics.data.gov.uk/id/local-authority/38,Oxfordshire County Council,5899,Adult Social Care - Direct Payments,28/11/2016,3110166518,"5,063.89",Redacted Personal Data
http://statistics.data.gov.uk/id/local-authority/38,Oxfordshire County Council,5668,Technical and Professional Consultant F,02/11/2016,2200255668,"6,250.00",ARLINGCLOSE LTD
http://statistics.data.gov.uk/id/local-authority/38,Oxfordshire County Council,5781,Payments to Transport Operators,10/11/2016,2200260217,"27,658.91",Arriva The Shires Ltd
http://statistics.data.gov.uk/id/local-authority/38,Oxfordshire County Council,5781,Payments to Transport Operators,17/11/2016,2200264314,"27,780.13",Arriva The Shires Ltd
http://statistics.data.gov.uk/id/local-authority/38,Oxfordshire County Council,5537,Payments to Other Establishments,07/11/2016,3110159438,"3,722.10",Ascott-under-Wychwood Pre-School
http://statistics.data.gov.uk/id/local-authority/38,Oxfordshire County Council,5227,Other Transport Arrangements,21/11/2016,3110164859,630,Ash Cars (UK) Ltd
http://statistics.data.gov.uk/id/local-authority/38,Oxfordshire County Council,5227,Other Transport Arrangements,21/11/2016,3110164857,985.6,Ash Cars (UK) Ltd
http://statistics.data.gov.uk/id/local-authority/38,Oxfordshire County Council,5227,Other Transport Arrangements,21/11/2016,3110164867,"1,040.00",Ash Cars (UK) Ltd
http://statistics.data.gov.uk/id/local-authority/38,Oxfordshire County Council,5227,Other Transport Arrangements,21/11/2016,3110164855,"1,120.00",Ash Cars (UK) Ltd
http://statistics.data.gov.uk/id/local-authority/38,Oxfordshire County Council,4330,Transport to School Activities,21/11/2016,3110164862,"1,200.00",Ash Cars (UK) Ltd
http://statistics.data.gov.uk/id/local-authority/38,Oxfordshire County Council,4330,Transport to School Activities,21/11/2016,3110164854,"1,608.00",Ash Cars (UK) Ltd
http://statistics.data.gov.uk/id/local-authority/38,Oxfordshire County Council,4330,Transport to School Activities,21/11/2016,3110164870,"2,063.00",Ash Cars (UK) Ltd
http://statistics.data.gov.uk/id/local-authority/38,Oxfordshire County Council,4330,Transport to School Activities,21/11/2016,3110164869,"2,170.00",Ash Cars (UK) Ltd
http://statistics.data.gov.uk/id/local-authority/38,Oxfordshire County Council,4330,Transport to School Activities,21/11/2016,3110164858,"2,190.00",Ash Cars (UK) Ltd
http://statistics.data.gov.uk/id/local-authority/38,Oxfordshire County Council,4330,Transport to School Activities,21/11/2016,3110164863,"2,250.00",Ash Cars (UK) Ltd
http://statistics.data.gov.uk/id/local-authority/38,Oxfordshire County Council,4330,Transport to School Activities,21/11/2016,3110164866,"2,512.00",Ash Cars (UK) Ltd
http://statistics.data.gov.uk/id/local-authority/38,Oxfordshire County Council,4330,Transport to School Activities,21/11/2016,3110164871,"2,575.00",Ash Cars (UK) Ltd
http://statistics.data.gov.uk/id/local-authority/38,Oxfordshire County Council,4330,Transport to School Activities,21/11/2016,3110164853,"2,925.00",Ash Cars (UK) Ltd
http://statistics.data.gov.uk/id/local-authority/38,Oxfordshire County Council,4330,Transport to School Activities,21/11/2016,3110164856,"3,273.95",Ash Cars (UK) Ltd
http://statistics.data.gov.uk/id/local-authority/38,Oxfordshire County Council,4330,Transport to School Activities,21/11/2016,3110164860,"3,893.70",Ash Cars (UK) Ltd
http://statistics.data.gov.uk/id/local-authority/38,Oxfordshire County Council,5251,Legal Costs,10/11/2016,2200260320,800,Asha Pearce-Groves
http://statistics.data.gov.uk/id/local-authority/38,Oxfordshire County Council,5691,,01/11/2016,3110156506,"1,860.00",Ashamber Homes Limited
http://statistics.data.gov.uk/id/local-authority/38,Oxfordshire County Council,5691,,30/11/2016,3110168782,"1,922.00",Ashamber Homes Limited
http://statistics.data.gov.uk/id/local-authority/38,Oxfordshire County Council,5691,,30/11/2016,3110168802,"1,922.00",Ashamber Homes Limited
http://statistics.data.gov.uk/id/local-authority/38,Oxfordshire County Council,5686,,10/11/2016,3110161771,"5,184.42",Ashamber Homes Limited
http://statistics.data.gov.uk/id/local-authority/38,Oxfordshire County Council,5688,,10/11/2016,3110161586,"8,003.10",Ashamber Homes Limited
http://statistics.data.gov.uk/id/local-authority/38,Oxfordshire County Council,5537,Payments to Other Establishments,07/11/2016,3110159439,"4,816.60",Ashbury Pre-School (PFSU)
http://statistics.data.gov.uk/id/local-authority/38,Oxfordshire County Council,5686,,10/11/2016,3110161791,"6,173.36",Ashgrange House
http://statistics.data.gov.uk/id/local-authority/38,Oxfordshire County Council,5899,Adult Social Care - Direct Payments,02/11/2016,3110157162,"3,339.32",Redacted Personal Data
http://statistics.data.gov.uk/id/local-authority/38,Oxfordshire County Council,5899,Adult Social Care - Direct Payments,30/11/2016,3110167543,"3,339.32",Redacted Personal Data
http://statistics.data.gov.uk/id/local-authority/38,Oxfordshire County Council,4539,"Books, DVDs and CDs",22/11/2016,3110166126,512.18,ASKEWS & HOLTS LIBRARY SERVICES LTD
http://statistics.data.gov.uk/id/local-authority/38,Oxfordshire County Council,4539,"Books, DVDs and CDs",04/11/2016,3110159128,576.41,ASKEWS & HOLTS LIBRARY SERVICES LTD
http://statistics.data.gov.uk/id/local-authority/38,Oxfordshire County Council,4539,"Books, DVDs and CDs",04/11/2016,3110159137,604.49,ASKEWS & HOLTS LIBRARY SERVICES LTD
http://statistics.data.gov.uk/id/local-authority/38,Oxfordshire County Council,4539,"Books, DVDs and CDs",22/11/2016,3110166111,618.51,ASKEWS & HOLTS LIBRARY SERVICES LTD
http://statistics.data.gov.uk/id/local-authority/38,Oxfordshire County Council,4539,"Books, DVDs and CDs",22/11/2016,3110166118,635.08,ASKEWS & HOLTS LIBRARY SERVICES LTD
http://statistics.data.gov.uk/id/local-authority/38,Oxfordshire County Council,4539,"Books, DVDs and CDs",17/11/2016,3110164629,685.07,ASKEWS & HOLTS LIBRARY SERVICES LTD
http://statistics.data.gov.uk/id/local-authority/38,Oxfordshire County Council,4539,"Books, DVDs and CDs",22/11/2016,3110166100,718.23,ASKEWS & HOLTS LIBRARY SERVICES LTD
http://statistics.data.gov.uk/id/local-authority/38,Oxfordshire County Council,4539,"Books, DVDs and CDs",17/11/2016,3110164635,748.1,ASKEWS & HOLTS LIBRARY SERVICES LTD
http://statistics.data.gov.uk/id/local-authority/38,Oxfordshire County Council,4539,"Books, DVDs and CDs",17/11/2016,3110164659,785.59,ASKEWS & HOLTS LIBRARY SERVICES LTD
http://statistics.data.gov.uk/id/local-authority/38,Oxfordshire County Council,4539,"Books, DVDs and CDs",22/11/2016,3110166116,787.94,ASKEWS & HOLTS LIBRARY SERVICES LTD
http://statistics.data.gov.uk/id/local-authority/38,Oxfordshire County Council,4539,"Books, DVDs and CDs",22/11/2016,3110166133,835.43,ASKEWS & HOLTS LIBRARY SERVICES LTD
http://statistics.data.gov.uk/id/local-authority/38,Oxfordshire County Council,4539,"Books, DVDs and CDs",17/11/2016,3110164628,897.37,ASKEWS & HOLTS LIBRARY SERVICES LTD
http://statistics.data.gov.uk/id/local-authority/38,Oxfordshire County Council,4539,"Books, DVDs and CDs",22/11/2016,3110166098,922.45,ASKEWS & HOLTS LIBRARY SERVICES LTD
http://statistics.data.gov.uk/id/local-authority/38,Oxfordshire County Council,4539,"Books, DVDs and CDs",22/11/2016,3110166097,923.96,ASKEWS & HOLTS LIBRARY SERVICES LTD
http://statistics.data.gov.uk/id/local-authority/38,Oxfordshire County Council,4539,"Books, DVDs and CDs",17/11/2016,3110164613,957.62,ASKEWS & HOLTS LIBRARY SERVICES LTD
http://statistics.data.gov.uk/id/local-authority/38,Oxfordshire County Council,4539,"Books, DVDs and CDs",22/11/2016,3110166105,971.83,ASKEWS & HOLTS LIBRARY SERVICES LTD
http://statistics.data.gov.uk/id/local-authority/38,Oxfordshire County Council,4539,"Books, DVDs and CDs",17/11/2016,3110164646,"1,031.51",ASKEWS & HOLTS LIBRARY SERVICES LTD
http://statistics.data.gov.uk/id/local-authority/38,Oxfordshire County Council,4539,"Books, DVDs and CDs",04/11/2016,3110159135,"1,103.45",ASKEWS & HOLTS LIBRARY SERVICES LTD
http://statistics.data.gov.uk/id/local-authority/38,Oxfordshire County Council,4539,"Books, DVDs and CDs",22/11/2016,3110166107,"1,112.88",ASKEWS & HOLTS LIBRARY SERVICES LTD
http://statistics.data.gov.uk/id/local-authority/38,Oxfordshire County Council,4539,"Books, DVDs and CDs",22/11/2016,3110166102,"1,224.49",ASKEWS & HOLTS LIBRARY SERVICES LTD
http://statistics.data.gov.uk/id/local-authority/38,Oxfordshire County Council,4539,"Books, DVDs and CDs",04/11/2016,3110159142,"1,233.07",ASKEWS & HOLTS LIBRARY SERVICES LTD
http://statistics.data.gov.uk/id/local-authority/38,Oxfordshire County Council,4539,"Books, DVDs and CDs",22/11/2016,3110166093,"1,235.40",ASKEWS & HOLTS LIBRARY SERVICES LTD
http://statistics.data.gov.uk/id/local-authority/38,Oxfordshire County Council,4539,"Books, DVDs and CDs",17/11/2016,3110164621,"1,246.02",ASKEWS & HOLTS LIBRARY SERVICES LTD
http://statistics.data.gov.uk/id/local-authority/38,Oxfordshire County Council,4539,"Books, DVDs and CDs",17/11/2016,3110164632,"1,252.77",ASKEWS & HOLTS LIBRARY SERVICES LTD
http://statistics.data.gov.uk/id/local-authority/38,Oxfordshire County Council,4539,"Books, DVDs and CDs",22/11/2016,3110166120,"1,272.08",ASKEWS & HOLTS LIBRARY SERVICES LTD
http://statistics.data.gov.uk/id/local-authority/38,Oxfordshire County Council,4539,"Books, DVDs and CDs",11/11/2016,2200261073,"1,376.95",ASKEWS & HOLTS LIBRARY SERVICES LTD
http://statistics.data.gov.uk/id/local-authority/38,Oxfordshire County Council,4539,"Books, DVDs and CDs",22/11/2016,3110166110,"1,526.25",ASKEWS & HOLTS LIBRARY SERVICES LTD
http://statistics.data.gov.uk/id/local-authority/38,Oxfordshire County Council,4539,"Books, DVDs and CDs",22/11/2016,3110166113,"1,551.95",ASKEWS & HOLTS LIBRARY SERVICES LTD
http://statistics.data.gov.uk/id/local-authority/38,Oxfordshire County Council,5688,,10/11/2016,3110161594,"5,142.86",Aspirations
http://statistics.data.gov.uk/id/local-authority/38,Oxfordshire County Council,5688,,10/11/2016,3110161601,"4,449.60",Aspirations (North West Adults)
http://statistics.data.gov.uk/id/local-authority/38,Oxfordshire County Council,3821,Grounds Maintenance Contracts,24/11/2016,2200268380,"2,248.37",Aspire Oxfordshire
http://statistics.data.gov.uk/id/local-authority/38,Oxfordshire County Council,5190,Subscriptions,10/11/2016,2200259910,715,Association of Lawyers for Children
http://statistics.data.gov.uk/id/local-authority/38,Oxfordshire County Council,5537,Payments to Other Establishments,07/11/2016,3110159440,"5,142.96",Aston and Cote Pre-School Playgroup
http://statistics.data.gov.uk/id/local-authority/38,Oxfordshire County Council,4940,Other Services,23/11/2016,2200267923,"2,500.00",Atkins Limited
http://statistics.data.gov.uk/id/local-authority/38,Oxfordshire County Council,5899,Adult Social Care - Direct Payments,02/11/2016,3110158162,586.48,Redacted Personal Data
http://statistics.data.gov.uk/id/local-authority/38,Oxfordshire County Council,5899,Adult Social Care - Direct Payments,30/11/2016,3110168519,586.48,Redacted Personal Data
http://statistics.data.gov.uk/id/local-authority/38,Oxfordshire County Council,5537,Payments to Other Establishments,11/11/2016,2200261437,"14,423.10",Aurora Meldreth Manor
http://statistics.data.gov.uk/id/local-authority/38,Oxfordshire County Council,5537,Payments to Other Establishments,11/11/2016,2200261354,"14,903.87",Aurora Meldreth Manor
http://statistics.data.gov.uk/id/local-authority/38,Oxfordshire County Council,5537,Payments to Other Establishments,11/11/2016,2200261422,"14,903.87",Aurora Meldreth Manor
http://statistics.data.gov.uk/id/local-authority/38,Oxfordshire County Council,5537,Payments to Other Establishments,11/11/2016,2200261441,"14,943.60",Aurora Meldreth Manor
http://statistics.data.gov.uk/id/local-authority/38,Oxfordshire County Council,5537,Payments to Other Establishments,11/11/2016,2200261440,"15,441.72",Aurora Meldreth Manor
http://statistics.data.gov.uk/id/local-authority/38,Oxfordshire County Council,5537,Payments to Other Establishments,15/11/2016,2200263272,"15,441.72",Aurora Meldreth Manor
http://statistics.data.gov.uk/id/local-authority/38,Oxfordshire County Council,5537,Payments to Other Establishments,11/11/2016,2200261443,"43,749.93",Aurora Meldreth Manor
http://statistics.data.gov.uk/id/local-authority/38,Oxfordshire County Council,5537,Payments to Other Establishments,11/11/2016,2200261312,"45,329.31",Aurora Meldreth Manor
http://statistics.data.gov.uk/id/local-authority/38,Oxfordshire County Council,5686,,10/11/2016,3110161813,"34,285.67",Autism Care (Bedford) Ltd
http://statistics.data.gov.uk/id/local-authority/38,Oxfordshire County Council,5688,,10/11/2016,3110161603,"9,458.57",AUTISM CARE (UK) LTD
http://statistics.data.gov.uk/id/local-authority/38,Oxfordshire County Council,5380,"Author, Speaker and Lecturer Fees",14/11/2016,2200261835,751.3,AUTISM OXFORD
http://statistics.data.gov.uk/id/local-authority/38,Oxfordshire County Council,5039,ITC Services,11/11/2016,2200260769,"8,165.00",Avco Systems Ltd
http://statistics.data.gov.uk/id/local-authority/38,Oxfordshire County Council,5899,Adult Social Care - Direct Payments,02/11/2016,3110157564,"2,544.88",Redacted Personal Data
http://statistics.data.gov.uk/id/local-authority/38,Oxfordshire County Council,5899,Adult Social Care - Direct Payments,30/11/2016,3110167844,"2,544.88",Redacted Personal Data
http://statistics.data.gov.uk/id/local-authority/38,Oxfordshire County Council,5687,,10/11/2016,3110161844,"5,824.29",Avondale Care Home
http://statistics.data.gov.uk/id/local-authority/38,Oxfordshire County Council,5689,,16/11/2016,3110163995,505.41,AVR (Oxon) Ltd
http://statistics.data.gov.uk/id/local-authority/38,Oxfordshire County Council,5689,,16/11/2016,3110163986,551.15,AVR (Oxon) Ltd
http://statistics.data.gov.uk/id/local-authority/38,Oxfordshire County Council,5689,,16/11/2016,3110163977,555.41,AVR (Oxon) Ltd
http://statistics.data.gov.uk/id/local-authority/38,Oxfordshire County Council,5689,,16/11/2016,3110163981,655.98,AVR (Oxon) Ltd
http://statistics.data.gov.uk/id/local-authority/38,Oxfordshire County Council,5689,,16/11/2016,3110163980,923.73,AVR (Oxon) Ltd
http://statistics.data.gov.uk/id/local-authority/38,Oxfordshire County Council,5689,,16/11/2016,3110163976,964.82,AVR (Oxon) Ltd
http://statistics.data.gov.uk/id/local-authority/38,Oxfordshire County Council,5689,,16/11/2016,3110163992,"1,057.47",AVR (Oxon) Ltd
http://statistics.data.gov.uk/id/local-authority/38,Oxfordshire County Council,5689,,16/11/2016,3110163991,"1,075.47",AVR (Oxon) Ltd
http://statistics.data.gov.uk/id/local-authority/38,Oxfordshire County Council,5689,,16/11/2016,3110163984,"1,185.89",AVR (Oxon) Ltd
http://statistics.data.gov.uk/id/local-authority/38,Oxfordshire County Council,5689,,16/11/2016,3110163979,"1,591.97",AVR (Oxon) Ltd
http://statistics.data.gov.uk/id/local-authority/38,Oxfordshire County Council,5689,,16/11/2016,3110163993,"1,653.05",AVR (Oxon) Ltd
http://statistics.data.gov.uk/id/local-authority/38,Oxfordshire County Council,5689,,16/11/2016,3110163989,"1,659.95",AVR (Oxon) Ltd
http://statistics.data.gov.uk/id/local-authority/38,Oxfordshire County Council,5689,,16/11/2016,3110163987,"2,055.78",AVR (Oxon) Ltd
http://statistics.data.gov.uk/id/local-authority/38,Oxfordshire County Council,3051,,01/11/2016,3110158703,910,AWP Body Repairs
http://statistics.data.gov.uk/id/local-authority/38,Oxfordshire County Council,3051,,08/11/2016,3110160436,"1,148.50",AWP Body Repairs
http://statistics.data.gov.uk/id/local-authority/38,Oxfordshire County Council,5899,Adult Social Care - Direct Payments,02/11/2016,3110157941,"2,600.00",Redacted Personal Data
http://statistics.data.gov.uk/id/local-authority/38,Oxfordshire County Council,5899,Adult Social Care - Direct Payments,30/11/2016,3110168266,"2,600.00",Redacted Personal Data
http://statistics.data.gov.uk/id/local-authority/38,Oxfordshire County Council,5691,,01/11/2016,3110156408,511.65,B CARERS LTD
http://statistics.data.gov.uk/id/local-authority/38,Oxfordshire County Council,5691,,01/11/2016,3110156429,511.65,B CARERS LTD
http://statistics.data.gov.uk/id/local-authority/38,Oxfordshire County Council,5686,,10/11/2016,3110161917,"5,142.86",B O'CONNOR T/A DUNRAVEN
http://statistics.data.gov.uk/id/local-authority/38,Oxfordshire County Council,5549,B*Fostering Allowance - Regulation 38,23/11/2016,3110165474,609.1,Redacted Personal Data
http://statistics.data.gov.uk/id/local-authority/38,Oxfordshire County Council,5549,B*Fostering Allowance - Regulation 38,09/11/2016,3110160100,642.72,Redacted Personal Data
http://statistics.data.gov.uk/id/local-authority/38,Oxfordshire County Council,5549,B*Fostering Allowance - Regulation 38,16/11/2016,3110162777,810.82,Redacted Personal Data
http://statistics.data.gov.uk/id/local-authority/38,Oxfordshire County Council,5686,,10/11/2016,3110161798,"99,007.70",Badby Park Ltd
http://statistics.data.gov.uk/id/local-authority/38,Oxfordshire County Council,5537,Payments to Other Establishments,14/11/2016,3110162377,"1,384.32",Badgemore Pre-School (PFSU)
http://statistics.data.gov.uk/id/local-authority/38,Oxfordshire County Council,5537,Payments to Other Establishments,07/11/2016,3110159441,"3,097.84",Badgemore Pre-School (PFSU)
http://statistics.data.gov.uk/id/local-authority/38,Oxfordshire County Council,4330,Transport to School Activities,17/11/2016,3110164568,"2,800.00",Bakers Commercial Services Ltd
http://statistics.data.gov.uk/id/local-authority/38,Oxfordshire County Council,4330,Transport to School Activities,17/11/2016,3110164566,"2,925.00",Bakers Commercial Services Ltd
http://statistics.data.gov.uk/id/local-authority/38,Oxfordshire County Council,4330,Transport to School Activities,17/11/2016,3110164569,"2,925.00",Bakers Commercial Services Ltd
http://statistics.data.gov.uk/id/local-authority/38,Oxfordshire County Council,4330,Transport to School Activities,17/11/2016,3110164567,"3,150.00",Bakers Commercial Services Ltd
http://statistics.data.gov.uk/id/local-authority/38,Oxfordshire County Council,5537,Payments to Other Establishments,01/11/2016,3110159113,808.5,Balliol Day Nursery
http://statistics.data.gov.uk/id/local-authority/38,Oxfordshire County Council,4685,Clothing and Uniforms,07/11/2016,2200257545,"24,099.50",Ballyclare LHD Ltd
http://statistics.data.gov.uk/id/local-authority/38,Oxfordshire County Council,5537,Payments to Other Establishments,14/11/2016,3110162378,865.2,Bampton CofE School
http://statistics.data.gov.uk/id/local-authority/38,Oxfordshire County Council,5537,Payments to Other Establishments,07/11/2016,3110159443,"12,854.20",Bampton CofE School
http://statistics.data.gov.uk/id/local-authority/38,Oxfordshire County Council,4933,,01/11/2016,3110158731,"1,230.00",Bampton Surgery
http://statistics.data.gov.uk/id/local-authority/38,Oxfordshire County Council,5687,,10/11/2016,3110161749,"88,664.16",Banbury Heights Nursing Home
http://statistics.data.gov.uk/id/local-authority/38,Oxfordshire County Council,5537,Payments to Other Establishments,14/11/2016,3110162379,"3,028.20",Banbury School Day Nurse
http://statistics.data.gov.uk/id/local-authority/38,Oxfordshire County Council,5537,Payments to Other Establishments,07/11/2016,3110159444,"3,036.60",Banbury School Day Nurse
http://statistics.data.gov.uk/id/local-authority/38,Oxfordshire County Council,5537,Payments to Other Establishments,01/11/2016,3110159118,"1,617.00",Banbury School Day Nursery Ltd
http://statistics.data.gov.uk/id/local-authority/38,Oxfordshire County Council,5537,Payments to Other Establishments,17/11/2016,3110165181,"3,827.00",Banbury Schools AAT
http://statistics.data.gov.uk/id/local-authority/38,Oxfordshire County Council,5899,Adult Social Care - Direct Payments,02/11/2016,3110157248,"1,360.00",Redacted Personal Data
http://statistics.data.gov.uk/id/local-authority/38,Oxfordshire County Council,5899,Adult Social Care - Direct Payments,30/11/2016,3110167613,"1,360.00",Redacted Personal Data
http://statistics.data.gov.uk/id/local-authority/38,Oxfordshire County Council,5899,Adult Social Care - Direct Payments,02/11/2016,3110157471,"1,432.12",Redacted Personal Data
http://statistics.data.gov.uk/id/local-authority/38,Oxfordshire County Council,5899,Adult Social Care - Direct Payments,30/11/2016,3110167777,"1,432.12",Redacted Personal Data
http://statistics.data.gov.uk/id/local-authority/38,Oxfordshire County Council,5686,,10/11/2016,3110161659,"150,162.75",Barchester Healthcare Homes Ltd
http://statistics.data.gov.uk/id/local-authority/38,Oxfordshire County Council,5899,Adult Social Care - Direct Payments,02/11/2016,3110157570,"2,261.00",Redacted Personal Data
http://statistics.data.gov.uk/id/local-authority/38,Oxfordshire County Council,5899,Adult Social Care - Direct Payments,30/11/2016,3110167849,"2,261.00",Redacted Personal Data
http://statistics.data.gov.uk/id/local-authority/38,Oxfordshire County Council,6546,Contributions Health Authorities,21/11/2016,2200265703,"7,880.55",BARNARDO SERVICES LTD
http://statistics.data.gov.uk/id/local-authority/38,Oxfordshire County Council,6546,Contributions Health Authorities,21/11/2016,2200265708,"8,143.23",BARNARDO SERVICES LTD
http://statistics.data.gov.uk/id/local-authority/38,Oxfordshire County Council,4330,Transport to School Activities,17/11/2016,3110164578,"2,670.00",Barnes Coaches Ltd
http://statistics.data.gov.uk/id/local-authority/38,Oxfordshire County Council,4330,Transport to School Activities,17/11/2016,3110164577,"3,105.90",Barnes Coaches Ltd
http://statistics.data.gov.uk/id/local-authority/38,Oxfordshire County Council,4330,Transport to School Activities,09/11/2016,3110160512,"3,289.50",Barnes Coaches Ltd
http://statistics.data.gov.uk/id/local-authority/38,Oxfordshire County Council,5899,Adult Social Care - Direct Payments,02/11/2016,3110157281,840.68,Redacted Personal Data
http://statistics.data.gov.uk/id/local-authority/38,Oxfordshire County Council,5899,Adult Social Care - Direct Payments,30/11/2016,3110167636,840.68,Redacted Personal Data
http://statistics.data.gov.uk/id/local-authority/38,Oxfordshire County Council,5251,Legal Costs,10/11/2016,2200260585,"1,650.00",Barry Denyer-Green
http://statistics.data.gov.uk/id/local-authority/38,Oxfordshire County Council,3051,,21/11/2016,3110166438,"4,395.67",Bartco Oxford Limited
http://statistics.data.gov.uk/id/local-authority/38,Oxfordshire County Council,4933,,01/11/2016,3110158746,720,Bartlemas Surgery
http://statistics.data.gov.uk/id/local-authority/38,Oxfordshire County Council,4934,,03/11/2016,3110158846,756,Barton Pharmacy
http://statistics.data.gov.uk/id/local-authority/38,Oxfordshire County Council,4525,Furniture,02/11/2016,2200255385,675.67,Bates Office
http://statistics.data.gov.uk/id/local-authority/38,Oxfordshire County Council,4525,Furniture,16/11/2016,2200264001,899.84,Bates Office
http://statistics.data.gov.uk/id/local-authority/38,Oxfordshire County Council,4525,Furniture,08/11/2016,2200258624,"2,876.20",Bates Office
http://statistics.data.gov.uk/id/local-authority/38,Oxfordshire County Council,8102,Payments to main contractor,11/11/2016,2200261192,"27,831.00",Bates Office
http://statistics.data.gov.uk/id/local-authority/38,Oxfordshire County Council,5687,,10/11/2016,3110161732,"22,525.41",Beacher Hall Nursing Centre
http://statistics.data.gov.uk/id/local-authority/38,Oxfordshire County Council,5537,Payments to Other Establishments,07/11/2016,3110159446,"3,593.00",Beanstalk Nursery and Day Care
http://statistics.data.gov.uk/id/local-authority/38,Oxfordshire County Council,5687,,10/11/2016,3110161669,"13,896.37",Beech Court Nursing Home
http://statistics.data.gov.uk/id/local-authority/38,Oxfordshire County Council,5686,,10/11/2016,3110161735,"54,940.50",Beech Haven Care Home
http://statistics.data.gov.uk/id/local-authority/38,Oxfordshire County Council,5899,Adult Social Care - Direct Payments,02/11/2016,3110158013,756,Redacted Personal Data
http://statistics.data.gov.uk/id/local-authority/38,Oxfordshire County Council,5899,Adult Social Care - Direct Payments,30/11/2016,3110168347,756,Redacted Personal Data
http://statistics.data.gov.uk/id/local-authority/38,Oxfordshire County Council,5899,Adult Social Care - Direct Payments,02/11/2016,3110157951,833.56,Redacted Personal Data
http://statistics.data.gov.uk/id/local-authority/38,Oxfordshire County Council,5537,Payments to Other Establishments,24/11/2016,3110166769,"1,671.60",Benson Children & Family Services
http://statistics.data.gov.uk/id/local-authority/38,Oxfordshire County Council,5537,Payments to Other Establishments,07/11/2016,3110159447,"9,026.64",Benson Children & Family Services
http://statistics.data.gov.uk/id/local-authority/38,Oxfordshire County Council,5537,Payments to Other Establishments,07/11/2016,3110159448,"4,066.86",Berinsfield Early Years Pre-School
http://statistics.data.gov.uk/id/local-authority/38,Oxfordshire County Council,5537,Payments to Other Establishments,14/11/2016,3110162381,"4,925.34",Berinsfield Early Years Pre-School
http://statistics.data.gov.uk/id/local-authority/38,Oxfordshire County Council,4933,,01/11/2016,3110159056,500,Berinsfield Health Centre
http://statistics.data.gov.uk/id/local-authority/38,Oxfordshire County Council,4933,,01/11/2016,3110159037,650,Berinsfield Health Centre
http://statistics.data.gov.uk/id/local-authority/38,Oxfordshire County Council,5537,Payments to Other Establishments,01/11/2016,3110159102,539,Berinsfield Pre-School
http://statistics.data.gov.uk/id/local-authority/38,Oxfordshire County Council,5227,Other Transport Arrangements,22/11/2016,3110165095,840,Berkeley Executive Travel
http://statistics.data.gov.uk/id/local-authority/38,Oxfordshire County Council,4322,"Season Tickets - Bus, Rail & Ferry",02/11/2016,3110158651,710,Berkshire College of Agriculture
http://statistics.data.gov.uk/id/local-authority/38,Oxfordshire County Council,1162,VAT - Input Adjustment,03/11/2016,3110158780,642.2,BERRYMANS LACE MAWER SOLICITORS
http://statistics.data.gov.uk/id/local-authority/38,Oxfordshire County Council,5899,Adult Social Care - Direct Payments,02/11/2016,3110158094,"3,428.00",Redacted Personal Data
http://statistics.data.gov.uk/id/local-authority/38,Oxfordshire County Council,5899,Adult Social Care - Direct Payments,30/11/2016,3110168442,"3,428.00",Redacted Personal Data
http://statistics.data.gov.uk/id/local-authority/38,Oxfordshire County Council,5899,Adult Social Care - Direct Payments,02/11/2016,3110158099,992,Redacted Personal Data
http://statistics.data.gov.uk/id/local-authority/38,Oxfordshire County Council,5899,Adult Social Care - Direct Payments,30/11/2016,3110168447,992,Redacted Personal Data
http://statistics.data.gov.uk/id/local-authority/38,Oxfordshire County Council,5537,Payments to Other Establishments,17/11/2016,3110165187,"3,841.00",Bicester Learning Academy
http://statistics.data.gov.uk/id/local-authority/38,Oxfordshire County Council,5689,,03/11/2016,2200256071,"1,973.27",Bicester PA and Care LLP
http://statistics.data.gov.uk/id/local-authority/38,Oxfordshire County Council,5537,Payments to Other Establishments,07/11/2016,3110159449,"10,787.31",Bishopswood Day Nursery
http://statistics.data.gov.uk/id/local-authority/38,Oxfordshire County Council,4539,"Books, DVDs and CDs",15/11/2016,2200262856,833.7,BLACKWELLS
http://statistics.data.gov.uk/id/local-authority/38,Oxfordshire County Council,5686,,10/11/2016,3110161876,"2,764.29",Blackwood House
http://statistics.data.gov.uk/id/local-authority/38,Oxfordshire County Council,2040,Agency Staff,04/11/2016,2200257220,"-1,332.00",Blake Morgan LLP
http://statistics.data.gov.uk/id/local-authority/38,Oxfordshire County Council,2040,Agency Staff,04/11/2016,3110159074,"1,332.00",Blake Morgan LLP
http://statistics.data.gov.uk/id/local-authority/38,Oxfordshire County Council,4539,"Books, DVDs and CDs",10/11/2016,2200259953,"2,000.00",Blakescore
http://statistics.data.gov.uk/id/local-authority/38,Oxfordshire County Council,5537,Payments to Other Establishments,17/11/2016,3110165206,"2,445.00",Blessed George Napier C School
http://statistics.data.gov.uk/id/local-authority/38,Oxfordshire County Council,5537,Payments to Other Establishments,07/11/2016,3110159450,"1,883.34",Blewbury Pre-School Playgroup
http://statistics.data.gov.uk/id/local-authority/38,Oxfordshire County Council,5537,Payments to Other Establishments,07/11/2016,3110159451,"2,333.86",Bloxham Pre-School
http://statistics.data.gov.uk/id/local-authority/38,Oxfordshire County Council,4835,Management Consultant Fees,29/11/2016,2200270996,"12,450.00",Blue Marble Group LLP
http://statistics.data.gov.uk/id/local-authority/38,Oxfordshire County Council,1362,Creditors GR/IR -,29/11/2016,2200271668,"6,048.00",Blue Sky Fostering Ltd
http://statistics.data.gov.uk/id/local-authority/38,Oxfordshire County Council,1362,Creditors GR/IR -,29/11/2016,2200271241,"6,249.60",Blue Sky Fostering Ltd
http://statistics.data.gov.uk/id/local-authority/38,Oxfordshire County Council,5691,,08/11/2016,3110159913,"5,208.80",Bluebird Care
http://statistics.data.gov.uk/id/local-authority/38,Oxfordshire County Council,5691,,01/11/2016,2200254353,564,Bluebird Care (Oxford South & West)
http://statistics.data.gov.uk/id/local-authority/38,Oxfordshire County Council,5691,,10/11/2016,3110161374,594.7,Bluebird Care (Oxford South & West)
http://statistics.data.gov.uk/id/local-authority/38,Oxfordshire County Council,5691,,01/11/2016,2200254357,"1,769.45",Bluebird Care (Oxford South & West)
http://statistics.data.gov.uk/id/local-authority/38,Oxfordshire County Council,5691,,01/11/2016,3110156442,"1,895.40",Bluebird Care (Oxford South & West)
http://statistics.data.gov.uk/id/local-authority/38,Oxfordshire County Council,5691,,15/11/2016,2200263199,"1,907.80",Bluebird Care (Oxford South & West)
http://statistics.data.gov.uk/id/local-authority/38,Oxfordshire County Council,5691,,10/11/2016,3110161375,"2,058.15",Bluebird Care (Oxford South & West)
http://statistics.data.gov.uk/id/local-authority/38,Oxfordshire County Council,5691,,25/11/2016,3110166410,"2,058.15",Bluebird Care (Oxford South & West)
http://statistics.data.gov.uk/id/local-authority/38,Oxfordshire County Council,5691,,01/11/2016,3110156450,"2,075.40",Bluebird Care (Oxford South & West)
http://statistics.data.gov.uk/id/local-authority/38,Oxfordshire County Council,5691,,30/11/2016,3110168795,"2,289.80",Bluebird Care (Oxford South & West)
http://statistics.data.gov.uk/id/local-authority/38,Oxfordshire County Council,5691,,01/11/2016,3110156443,"2,310.40",Bluebird Care (Oxford South & West)
http://statistics.data.gov.uk/id/local-authority/38,Oxfordshire County Council,5691,,30/11/2016,3110168797,"2,310.40",Bluebird Care (Oxford South & West)
http://statistics.data.gov.uk/id/local-authority/38,Oxfordshire County Council,4330,Transport to School Activities,11/11/2016,3110162014,"2,581.05",Blunsdons Coach Travel
http://statistics.data.gov.uk/id/local-authority/38,Oxfordshire County Council,4330,Transport to School Activities,11/11/2016,3110162012,"2,699.70",Blunsdons Coach Travel
http://statistics.data.gov.uk/id/local-authority/38,Oxfordshire County Council,4539,"Books, DVDs and CDs",04/11/2016,2200256777,759.05,Bolinda UK Ltd
http://statistics.data.gov.uk/id/local-authority/38,Oxfordshire County Council,4539,"Books, DVDs and CDs",16/11/2016,2200264091,878.9,Bolinda UK Ltd
http://statistics.data.gov.uk/id/local-authority/38,Oxfordshire County Council,4934,,07/11/2016,3110165147,"1,764.40",Boots the Chemist
http://statistics.data.gov.uk/id/local-authority/38,Oxfordshire County Council,4933,,01/11/2016,3110158742,"1,320.00",Botley Medical Centre
http://statistics.data.gov.uk/id/local-authority/38,Oxfordshire County Council,3100,Educational and Vocational Training,28/11/2016,2200270289,625,BOURNEMOUTH UNIVERSITY
http://statistics.data.gov.uk/id/local-authority/38,Oxfordshire County Council,3103,Other Training Courses and Qualification,28/11/2016,2200270290,625,BOURNEMOUTH UNIVERSITY
http://statistics.data.gov.uk/id/local-authority/38,Oxfordshire County Council,3103,Other Training Courses and Qualification,28/11/2016,2200270294,625,BOURNEMOUTH UNIVERSITY
http://statistics.data.gov.uk/id/local-authority/38,Oxfordshire County Council,3103,Other Training Courses and Qualification,24/11/2016,2200268497,"1,025.00",BOURNEMOUTH UNIVERSITY
http://statistics.data.gov.uk/id/local-authority/38,Oxfordshire County Council,3103,Other Training Courses and Qualification,24/11/2016,2200268525,"1,025.00",BOURNEMOUTH UNIVERSITY
http://statistics.data.gov.uk/id/local-authority/38,Oxfordshire County Council,3103,Other Training Courses and Qualification,24/11/2016,2200268542,"1,025.00",BOURNEMOUTH UNIVERSITY
http://statistics.data.gov.uk/id/local-authority/38,Oxfordshire County Council,3103,Other Training Courses and Qualification,24/11/2016,2200268566,"1,025.00",BOURNEMOUTH UNIVERSITY
http://statistics.data.gov.uk/id/local-authority/38,Oxfordshire County Council,3103,Other Training Courses and Qualification,24/11/2016,2200268600,"1,025.00",BOURNEMOUTH UNIVERSITY
http://statistics.data.gov.uk/id/local-authority/38,Oxfordshire County Council,3103,Other Training Courses and Qualification,24/11/2016,2200268649,"1,025.00",BOURNEMOUTH UNIVERSITY
http://statistics.data.gov.uk/id/local-authority/38,Oxfordshire County Council,3103,Other Training Courses and Qualification,24/11/2016,2200268651,"1,025.00",BOURNEMOUTH UNIVERSITY
http://statistics.data.gov.uk/id/local-authority/38,Oxfordshire County Council,3103,Other Training Courses and Qualification,24/11/2016,2200268652,"1,025.00",BOURNEMOUTH UNIVERSITY
http://statistics.data.gov.uk/id/local-authority/38,Oxfordshire County Council,3103,Other Training Courses and Qualification,28/11/2016,2200270082,"1,025.00",BOURNEMOUTH UNIVERSITY
http://statistics.data.gov.uk/id/local-authority/38,Oxfordshire County Council,3103,Other Training Courses and Qualification,29/11/2016,2200270934,"1,025.00",BOURNEMOUTH UNIVERSITY
http://statistics.data.gov.uk/id/local-authority/38,Oxfordshire County Council,5537,Payments to Other Establishments,07/11/2016,3110159452,"8,023.68",Bowood Nursery School
http://statistics.data.gov.uk/id/local-authority/38,Oxfordshire County Council,5686,,10/11/2016,3110161776,"2,860.85",Bradbury House Organisation
http://statistics.data.gov.uk/id/local-authority/38,Oxfordshire County Council,5664,B*Holiday Allowance,02/11/2016,3110156925,979.6,Redacted Personal Data
http://statistics.data.gov.uk/id/local-authority/38,Oxfordshire County Council,5664,B*Holiday Allowance,09/11/2016,3110160400,979.6,Redacted Personal Data
http://statistics.data.gov.uk/id/local-authority/38,Oxfordshire County Council,5664,B*Holiday Allowance,16/11/2016,3110163128,979.6,Redacted Personal Data
http://statistics.data.gov.uk/id/local-authority/38,Oxfordshire County Council,5664,B*Holiday Allowance,23/11/2016,3110165781,979.6,Redacted Personal Data
http://statistics.data.gov.uk/id/local-authority/38,Oxfordshire County Council,5664,B*Holiday Allowance,30/11/2016,3110167256,979.6,Redacted Personal Data
http://statistics.data.gov.uk/id/local-authority/38,Oxfordshire County Council,5537,Payments to Other Establishments,14/11/2016,3110162385,865.2,Bramleys Day Nursery and Nursery
http://statistics.data.gov.uk/id/local-authority/38,Oxfordshire County Council,5537,Payments to Other Establishments,07/11/2016,3110159453,"14,347.90",Bramleys Day Nursery and Nursery
http://statistics.data.gov.uk/id/local-authority/38,Oxfordshire County Council,4407,Equipment,29/11/2016,2200271538,"1,470.00",Breasley Pillows Limited
http://statistics.data.gov.uk/id/local-authority/38,Oxfordshire County Council,5899,Adult Social Care - Direct Payments,02/11/2016,3110158085,"3,160.00",Redacted Personal Data
http://statistics.data.gov.uk/id/local-authority/38,Oxfordshire County Council,5899,Adult Social Care - Direct Payments,30/11/2016,3110168433,"3,160.00",Redacted Personal Data
http://statistics.data.gov.uk/id/local-authority/38,Oxfordshire County Council,4330,Transport to School Activities,21/11/2016,3110164874,780,Brians Hire Ltd
http://statistics.data.gov.uk/id/local-authority/38,Oxfordshire County Council,4330,Transport to School Activities,21/11/2016,3110164875,947,Brians Hire Ltd
http://statistics.data.gov.uk/id/local-authority/38,Oxfordshire County Council,5686,,10/11/2016,3110161835,"63,066.78",Bridge House
http://statistics.data.gov.uk/id/local-authority/38,Oxfordshire County Council,5537,Payments to Other Establishments,07/11/2016,3110159586,648.48,Bridges Childcare
http://statistics.data.gov.uk/id/local-authority/38,Oxfordshire County Council,5537,Payments to Other Establishments,14/11/2016,3110162448,"2,682.12",Bridges Childcare
http://statistics.data.gov.uk/id/local-authority/38,Oxfordshire County Council,5689,,10/11/2016,3110161315,506.03,Bridges Home Care Ltd
http://statistics.data.gov.uk/id/local-authority/38,Oxfordshire County Council,5689,,10/11/2016,3110161280,518.65,Bridges Home Care Ltd
http://statistics.data.gov.uk/id/local-authority/38,Oxfordshire County Council,5689,,10/11/2016,3110161296,564.13,Bridges Home Care Ltd
http://statistics.data.gov.uk/id/local-authority/38,Oxfordshire County Council,5689,,10/11/2016,3110161281,564.51,Bridges Home Care Ltd
http://statistics.data.gov.uk/id/local-authority/38,Oxfordshire County Council,5689,,10/11/2016,3110161326,571.77,Bridges Home Care Ltd
http://statistics.data.gov.uk/id/local-authority/38,Oxfordshire County Council,5689,,10/11/2016,3110161312,587.82,Bridges Home Care Ltd
http://statistics.data.gov.uk/id/local-authority/38,Oxfordshire County Council,5689,,10/11/2016,3110161291,598.53,Bridges Home Care Ltd
http://statistics.data.gov.uk/id/local-authority/38,Oxfordshire County Council,5689,,10/11/2016,3110161292,598.91,Bridges Home Care Ltd
http://statistics.data.gov.uk/id/local-authority/38,Oxfordshire County Council,5689,,10/11/2016,3110161321,615.34,Bridges Home Care Ltd
http://statistics.data.gov.uk/id/local-authority/38,Oxfordshire County Council,5689,,10/11/2016,3110161334,620.69,Bridges Home Care Ltd
http://statistics.data.gov.uk/id/local-authority/38,Oxfordshire County Council,5689,,10/11/2016,3110161259,621.46,Bridges Home Care Ltd
http://statistics.data.gov.uk/id/local-authority/38,Oxfordshire County Council,5689,,10/11/2016,3110161274,622.6,Bridges Home Care Ltd
http://statistics.data.gov.uk/id/local-authority/38,Oxfordshire County Council,5689,,10/11/2016,3110161270,624.13,Bridges Home Care Ltd
http://statistics.data.gov.uk/id/local-authority/38,Oxfordshire County Council,5689,,10/11/2016,3110161273,630.63,Bridges Home Care Ltd
http://statistics.data.gov.uk/id/local-authority/38,Oxfordshire County Council,5689,,10/11/2016,3110161316,639.04,Bridges Home Care Ltd
http://statistics.data.gov.uk/id/local-authority/38,Oxfordshire County Council,5689,,10/11/2016,3110161330,686.05,Bridges Home Care Ltd
http://statistics.data.gov.uk/id/local-authority/38,Oxfordshire County Council,5689,,10/11/2016,3110161279,687.96,Bridges Home Care Ltd
http://statistics.data.gov.uk/id/local-authority/38,Oxfordshire County Council,5689,,10/11/2016,3110161283,693.31,Bridges Home Care Ltd
http://statistics.data.gov.uk/id/local-authority/38,Oxfordshire County Council,5689,,10/11/2016,3110161266,712.8,Bridges Home Care Ltd
http://statistics.data.gov.uk/id/local-authority/38,Oxfordshire County Council,5689,,10/11/2016,3110161255,733.82,Bridges Home Care Ltd
http://statistics.data.gov.uk/id/local-authority/38,Oxfordshire County Council,5689,,10/11/2016,3110161340,743.38,Bridges Home Care Ltd
http://statistics.data.gov.uk/id/local-authority/38,Oxfordshire County Council,5689,,10/11/2016,3110161302,745.29,Bridges Home Care Ltd
http://statistics.data.gov.uk/id/local-authority/38,Oxfordshire County Council,5689,,10/11/2016,3110161285,752.55,Bridges Home Care Ltd
http://statistics.data.gov.uk/id/local-authority/38,Oxfordshire County Council,5689,,10/11/2016,3110161257,757.52,Bridges Home Care Ltd
http://statistics.data.gov.uk/id/local-authority/38,Oxfordshire County Council,5689,,10/11/2016,3110161305,764.78,Bridges Home Care Ltd
http://statistics.data.gov.uk/id/local-authority/38,Oxfordshire County Council,5689,,10/11/2016,3110161324,811.41,Bridges Home Care Ltd
http://statistics.data.gov.uk/id/local-authority/38,Oxfordshire County Council,5689,,10/11/2016,3110161268,815.23,Bridges Home Care Ltd
http://statistics.data.gov.uk/id/local-authority/38,Oxfordshire County Council,5689,,10/11/2016,3110161309,816.38,Bridges Home Care Ltd
http://statistics.data.gov.uk/id/local-authority/38,Oxfordshire County Council,5689,,10/11/2016,3110161318,825.93,Bridges Home Care Ltd
http://statistics.data.gov.uk/id/local-authority/38,Oxfordshire County Council,5689,,10/11/2016,3110161323,832.43,Bridges Home Care Ltd
http://statistics.data.gov.uk/id/local-authority/38,Oxfordshire County Council,5689,,10/11/2016,3110161256,843.13,Bridges Home Care Ltd
http://statistics.data.gov.uk/id/local-authority/38,Oxfordshire County Council,5689,,10/11/2016,3110161298,848.1,Bridges Home Care Ltd
http://statistics.data.gov.uk/id/local-authority/38,Oxfordshire County Council,5689,,10/11/2016,3110161301,901.99,Bridges Home Care Ltd
http://statistics.data.gov.uk/id/local-authority/38,Oxfordshire County Council,5689,,10/11/2016,3110161297,952.06,Bridges Home Care Ltd
http://statistics.data.gov.uk/id/local-authority/38,Oxfordshire County Council,5689,,10/11/2016,3110161267,960.09,Bridges Home Care Ltd
http://statistics.data.gov.uk/id/local-authority/38,Oxfordshire County Council,5689,,10/11/2016,3110161286,"1,080.10",Bridges Home Care Ltd
http://statistics.data.gov.uk/id/local-authority/38,Oxfordshire County Council,5689,,10/11/2016,3110161311,"1,088.89",Bridges Home Care Ltd
http://statistics.data.gov.uk/id/local-authority/38,Oxfordshire County Council,5689,,10/11/2016,3110161269,"1,099.21",Bridges Home Care Ltd
http://statistics.data.gov.uk/id/local-authority/38,Oxfordshire County Council,5689,,10/11/2016,3110161289,"1,145.07",Bridges Home Care Ltd
http://statistics.data.gov.uk/id/local-authority/38,Oxfordshire County Council,5689,,10/11/2016,3110161278,"1,183.67",Bridges Home Care Ltd
http://statistics.data.gov.uk/id/local-authority/38,Oxfordshire County Council,5689,,10/11/2016,3110161260,"1,379.74",Bridges Home Care Ltd
http://statistics.data.gov.uk/id/local-authority/38,Oxfordshire County Council,5689,,10/11/2016,3110161264,"1,482.55",Bridges Home Care Ltd
http://statistics.data.gov.uk/id/local-authority/38,Oxfordshire County Council,5689,,10/11/2016,3110161271,"1,680.53",Bridges Home Care Ltd
http://statistics.data.gov.uk/id/local-authority/38,Oxfordshire County Council,5689,,10/11/2016,3110161299,"1,840.29",Bridges Home Care Ltd
http://statistics.data.gov.uk/id/local-authority/38,Oxfordshire County Council,5689,,10/11/2016,3110161314,"2,066.17",Bridges Home Care Ltd
http://statistics.data.gov.uk/id/local-authority/38,Oxfordshire County Council,5689,,10/11/2016,3110161306,"2,116.62",Bridges Home Care Ltd
http://statistics.data.gov.uk/id/local-authority/38,Oxfordshire County Council,5689,,10/11/2016,3110161294,"2,301.99",Bridges Home Care Ltd
http://statistics.data.gov.uk/id/local-authority/38,Oxfordshire County Council,5689,,10/11/2016,3110161335,"2,328.36",Bridges Home Care Ltd
http://statistics.data.gov.uk/id/local-authority/38,Oxfordshire County Council,5689,,10/11/2016,3110161275,"2,353.21",Bridges Home Care Ltd
http://statistics.data.gov.uk/id/local-authority/38,Oxfordshire County Council,5689,,10/11/2016,3110161336,"2,353.59",Bridges Home Care Ltd
http://statistics.data.gov.uk/id/local-authority/38,Oxfordshire County Council,5689,,10/11/2016,3110161304,"2,359.32",Bridges Home Care Ltd
http://statistics.data.gov.uk/id/local-authority/38,Oxfordshire County Council,5689,,10/11/2016,3110161300,"2,363.14",Bridges Home Care Ltd
http://statistics.data.gov.uk/id/local-authority/38,Oxfordshire County Council,5689,,10/11/2016,3110161308,"2,606.60",Bridges Home Care Ltd
http://statistics.data.gov.uk/id/local-authority/38,Oxfordshire County Council,5689,,10/11/2016,3110161339,"2,819.49",Bridges Home Care Ltd
http://statistics.data.gov.uk/id/local-authority/38,Oxfordshire County Council,5689,,10/11/2016,3110161341,"4,109.00",Bridges Home Care Ltd
http://statistics.data.gov.uk/id/local-authority/38,Oxfordshire County Council,5899,Adult Social Care - Direct Payments,02/11/2016,3110157271,"10,452.48",Redacted Personal Data
http://statistics.data.gov.uk/id/local-authority/38,Oxfordshire County Council,5899,Adult Social Care - Direct Payments,30/11/2016,3110167630,"10,452.48",Redacted Personal Data
http://statistics.data.gov.uk/id/local-authority/38,Oxfordshire County Council,5537,Payments to Other Establishments,14/11/2016,3110162386,"1,442.00",Bright Stars Childcare
http://statistics.data.gov.uk/id/local-authority/38,Oxfordshire County Council,5537,Payments to Other Establishments,07/11/2016,3110159458,"3,008.88",Bright Start Pre-school
http://statistics.data.gov.uk/id/local-authority/38,Oxfordshire County Council,5537,Payments to Other Establishments,14/11/2016,3110162387,"7,905.25",Bright Start Pre-school
http://statistics.data.gov.uk/id/local-authority/38,Oxfordshire County Council,5039,ITC Services,22/11/2016,2200267067,"1,618.24",Britannic Technologies Limited
http://statistics.data.gov.uk/id/local-authority/38,Oxfordshire County Council,5537,Payments to Other Establishments,14/11/2016,3110162388,"1,665.51",Brize Norton Village Pre
http://statistics.data.gov.uk/id/local-authority/38,Oxfordshire County Council,5537,Payments to Other Establishments,07/11/2016,3110159459,"6,697.40",Brize Norton Village Pre
http://statistics.data.gov.uk/id/local-authority/38,Oxfordshire County Council,5537,Payments to Other Establishments,14/11/2016,3110162389,778.68,Broadhill Pre-School
http://statistics.data.gov.uk/id/local-authority/38,Oxfordshire County Council,5537,Payments to Other Establishments,07/11/2016,3110159460,"7,087.25",Broadhill Pre-School
http://statistics.data.gov.uk/id/local-authority/38,Oxfordshire County Council,8510,Other expenses,22/11/2016,2200266395,962,Broadland Group Ltd
http://statistics.data.gov.uk/id/local-authority/38,Oxfordshire County Council,5558,,01/11/2016,2200254505,"12,742.60",Broadlands Hall Ltd
http://statistics.data.gov.uk/id/local-authority/38,Oxfordshire County Council,5537,Payments to Other Establishments,03/11/2016,2200256012,"13,160.00",Broadlands Hall Ltd
http://statistics.data.gov.uk/id/local-authority/38,Oxfordshire County Council,5558,,25/11/2016,2200269878,"15,012.68",Broadlands Hall Ltd
http://statistics.data.gov.uk/id/local-authority/38,Oxfordshire County Council,5558,,25/11/2016,2200269877,"19,751.03",Broadlands Hall Ltd
http://statistics.data.gov.uk/id/local-authority/38,Oxfordshire County Council,5537,Payments to Other Establishments,30/11/2016,2200271804,"25,354.14",Broadlands Hall Ltd
http://statistics.data.gov.uk/id/local-authority/38,Oxfordshire County Council,5537,Payments to Other Establishments,14/11/2016,3110162390,"1,470.84",Broadshires Pre-School
http://statistics.data.gov.uk/id/local-authority/38,Oxfordshire County Council,5537,Payments to Other Establishments,07/11/2016,3110159461,"1,741.91",Broadshires Pre-School
http://statistics.data.gov.uk/id/local-authority/38,Oxfordshire County Council,5686,,03/11/2016,2200256593,"1,599.80",BROADWAY LODGE LTD
http://statistics.data.gov.uk/id/local-authority/38,Oxfordshire County Council,5686,,09/11/2016,2200258956,"1,778.36",BROADWAY LODGE LTD
http://statistics.data.gov.uk/id/local-authority/38,Oxfordshire County Council,5686,,14/11/2016,2200261752,"2,900.00",BROADWAY LODGE LTD
http://statistics.data.gov.uk/id/local-authority/38,Oxfordshire County Council,5686,,09/11/2016,2200258965,"3,349.60",BROADWAY LODGE LTD
http://statistics.data.gov.uk/id/local-authority/38,Oxfordshire County Council,5544,B*Fostering - Temp/Respite,10/11/2016,3110161761,"1,928.91",Bromford Support
http://statistics.data.gov.uk/id/local-authority/38,Oxfordshire County Council,5688,,10/11/2016,3110161589,"3,687.00",Brook House Residential
http://statistics.data.gov.uk/id/local-authority/38,Oxfordshire County Council,5686,,10/11/2016,3110161774,"15,484.25",Brook House Residential
http://statistics.data.gov.uk/id/local-authority/38,Oxfordshire County Council,5686,,10/11/2016,3110161743,"13,063.41",Brookdale Care
http://statistics.data.gov.uk/id/local-authority/38,Oxfordshire County Council,5537,Payments to Other Establishments,15/11/2016,3110162631,"1,800.00",Brooke Weston Academy
http://statistics.data.gov.uk/id/local-authority/38,Oxfordshire County Council,4330,Transport to School Activities,02/11/2016,3110158655,888,Browns Taxis Ltd
http://statistics.data.gov.uk/id/local-authority/38,Oxfordshire County Council,4314,"Other Trans Contract Costs (CRB, Car Sea",02/11/2016,3110158653,992,Browns Taxis Ltd
http://statistics.data.gov.uk/id/local-authority/38,Oxfordshire County Council,4330,Transport to School Activities,01/11/2016,3110158795,"1,350.00",Browns Taxis Ltd
http://statistics.data.gov.uk/id/local-authority/38,Oxfordshire County Council,4330,Transport to School Activities,11/11/2016,3110162075,"1,772.00",Browns Taxis Ltd
http://statistics.data.gov.uk/id/local-authority/38,Oxfordshire County Council,4330,Transport to School Activities,01/11/2016,3110158796,"3,240.00",Browns Taxis Ltd
http://statistics.data.gov.uk/id/local-authority/38,Oxfordshire County Council,5899,Adult Social Care - Direct Payments,02/11/2016,3110157462,"5,932.96",Redacted Personal Data
http://statistics.data.gov.uk/id/local-authority/38,Oxfordshire County Council,5899,Adult Social Care - Direct Payments,30/11/2016,3110167769,"5,932.96",Redacted Personal Data
http://statistics.data.gov.uk/id/local-authority/38,Oxfordshire County Council,5686,,10/11/2016,3110161760,"5,402.14",Bryn-y-Wawr
http://statistics.data.gov.uk/id/local-authority/38,Oxfordshire County Council,5079,Telephone - Calls,07/11/2016,2200257423,"4,834.71",BT Payment Services Ltd
http://statistics.data.gov.uk/id/local-authority/38,Oxfordshire County Council,5072,Telephone - Equipment,11/11/2016,2200261265,"95,134.96",BT Plc (One Bill)
http://statistics.data.gov.uk/id/local-authority/38,Oxfordshire County Council,5537,Payments to Other Establishments,14/11/2016,3110162391,865.2,Bubbles Pre School
http://statistics.data.gov.uk/id/local-authority/38,Oxfordshire County Council,5537,Payments to Other Establishments,07/11/2016,3110159462,"5,281.25",Bubbles Pre School
http://statistics.data.gov.uk/id/local-authority/38,Oxfordshire County Council,5537,Payments to Other Establishments,08/11/2016,3110165129,"1,501.50",Bubbles Pre-School
http://statistics.data.gov.uk/id/local-authority/38,Oxfordshire County Council,5690,,10/11/2016,3110161466,"1,958.36",Buckinghamshire County Council
http://statistics.data.gov.uk/id/local-authority/38,Oxfordshire County Council,5394,Other Expenses,07/11/2016,2200257630,960,BUCKINGHAMSHIRE HOSPITALS NHS TRUST
http://statistics.data.gov.uk/id/local-authority/38,Oxfordshire County Council,5394,Other Expenses,14/11/2016,2200262143,"6,240.00",BUCKINGHAMSHIRE HOSPITALS NHS TRUST
http://statistics.data.gov.uk/id/local-authority/38,Oxfordshire County Council,5537,Payments to Other Establishments,07/11/2016,3110159463,"4,701.48",Buckland Primary School
http://statistics.data.gov.uk/id/local-authority/38,Oxfordshire County Council,5686,,10/11/2016,3110161641,"1,920.47",BUPA CARE SERVICES
http://statistics.data.gov.uk/id/local-authority/38,Oxfordshire County Council,4495,IT Software,10/11/2016,2200260685,"-15,000.00",BUREAU VAN DIJK ELECTRONIC
http://statistics.data.gov.uk/id/local-authority/38,Oxfordshire County Council,4495,IT Software,11/11/2016,2200261018,"15,000.00",BUREAU VAN DIJK ELECTRONIC
http://statistics.data.gov.uk/id/local-authority/38,Oxfordshire County Council,4820,Sampling and Testing,29/11/2016,2200271011,"1,540.00",BUREAU VERITAS UK LTD
http://statistics.data.gov.uk/id/local-authority/38,Oxfordshire County Council,5537,Payments to Other Establishments,17/11/2016,3110165188,"3,235.00",Burford Academy
http://statistics.data.gov.uk/id/local-authority/38,Oxfordshire County Council,5537,Payments to Other Establishments,07/11/2016,3110159464,"4,034.13",Burford Pre-School
http://statistics.data.gov.uk/id/local-authority/38,Oxfordshire County Council,5537,Payments to Other Establishments,07/11/2016,3110159465,"1,945.44",Burford Primary School (Academy)
http://statistics.data.gov.uk/id/local-authority/38,Oxfordshire County Council,5688,,10/11/2016,3110161602,685.71,Burgess Care Ltd.
http://statistics.data.gov.uk/id/local-authority/38,Oxfordshire County Council,5686,,10/11/2016,3110161865,"25,714.33",Burgess Care Ltd.
http://statistics.data.gov.uk/id/local-authority/38,Oxfordshire County Council,4933,,01/11/2016,3110159050,500,Bury Knowle Health Centre
http://statistics.data.gov.uk/id/local-authority/38,Oxfordshire County Council,4933,,01/11/2016,3110158730,660,Bury Knowle Health Centre
http://statistics.data.gov.uk/id/local-authority/38,Oxfordshire County Council,4933,,01/11/2016,3110159031,"1,820.00",Bury Knowle Health Centre
http://statistics.data.gov.uk/id/local-authority/38,Oxfordshire County Council,4861,Hired and Contracted Services,22/11/2016,2200266446,620,Buryhook Countryside Management
http://statistics.data.gov.uk/id/local-authority/38,Oxfordshire County Council,4940,Other Services,14/11/2016,2200262035,"1,650.00",Buryhook Countryside Management
http://statistics.data.gov.uk/id/local-authority/38,Oxfordshire County Council,5537,Payments to Other Establishments,14/11/2016,3110162392,"3,028.20",Busy Bees at Oxford
http://statistics.data.gov.uk/id/local-authority/38,Oxfordshire County Council,5537,Payments to Other Establishments,07/11/2016,3110159466,"27,528.86",Busy Bees at Oxford
http://statistics.data.gov.uk/id/local-authority/38,Oxfordshire County Council,5537,Payments to Other Establishments,14/11/2016,3110162393,"4,326.00",Busy Bees Day Nursery (Bicester)
http://statistics.data.gov.uk/id/local-authority/38,Oxfordshire County Council,5537,Payments to Other Establishments,07/11/2016,3110159467,"11,430.56",Busy Bees Day Nursery (Bicester)
http://statistics.data.gov.uk/id/local-authority/38,Oxfordshire County Council,5537,Payments to Other Establishments,14/11/2016,3110162394,"1,225.70",Busy Bees Playgroup (Thame)
http://statistics.data.gov.uk/id/local-authority/38,Oxfordshire County Council,5537,Payments to Other Establishments,07/11/2016,3110159468,"4,841.93",Busy Bees Playgroup (Thame)
http://statistics.data.gov.uk/id/local-authority/38,Oxfordshire County Council,5559,,10/11/2016,2200260675,885.71,BY THE BRIDGE
http://statistics.data.gov.uk/id/local-authority/38,Oxfordshire County Council,5559,,02/11/2016,2200255886,979,BY THE BRIDGE
http://statistics.data.gov.uk/id/local-authority/38,Oxfordshire County Council,5559,,02/11/2016,2200255875,"2,288.11",BY THE BRIDGE
http://statistics.data.gov.uk/id/local-authority/38,Oxfordshire County Council,5559,,10/11/2016,2200260608,"2,727.21",BY THE BRIDGE
http://statistics.data.gov.uk/id/local-authority/38,Oxfordshire County Council,5559,,10/11/2016,2200260613,"4,195.71",BY THE BRIDGE
http://statistics.data.gov.uk/id/local-authority/38,Oxfordshire County Council,1362,Creditors GR/IR -,04/11/2016,2200256895,"4,214.10",BY THE BRIDGE
http://statistics.data.gov.uk/id/local-authority/38,Oxfordshire County Council,1362,Creditors GR/IR -,04/11/2016,2200257237,"4,214.10",BY THE BRIDGE
http://statistics.data.gov.uk/id/local-authority/38,Oxfordshire County Council,1362,Creditors GR/IR -,04/11/2016,2200257233,"4,335.57",BY THE BRIDGE
http://statistics.data.gov.uk/id/local-authority/38,Oxfordshire County Council,1362,Creditors GR/IR -,04/11/2016,2200256896,"4,344.43",BY THE BRIDGE
http://statistics.data.gov.uk/id/local-authority/38,Oxfordshire County Council,1362,Creditors GR/IR -,04/11/2016,2200257241,"4,344.43",BY THE BRIDGE
http://statistics.data.gov.uk/id/local-authority/38,Oxfordshire County Council,1362,Creditors GR/IR -,28/11/2016,2200270345,"4,344.43",BY THE BRIDGE
http://statistics.data.gov.uk/id/local-authority/38,Oxfordshire County Council,1362,Creditors GR/IR -,04/11/2016,2200257239,"4,574.71",BY THE BRIDGE
http://statistics.data.gov.uk/id/local-authority/38,Oxfordshire County Council,1362,Creditors GR/IR -,04/11/2016,2200257243,"4,574.71",BY THE BRIDGE
http://statistics.data.gov.uk/id/local-authority/38,Oxfordshire County Council,1362,Creditors GR/IR -,04/11/2016,2200257245,"4,574.71",BY THE BRIDGE
http://statistics.data.gov.uk/id/local-authority/38,Oxfordshire County Council,1362,Creditors GR/IR -,04/11/2016,2200257247,"4,574.71",BY THE BRIDGE
http://statistics.data.gov.uk/id/local-authority/38,Oxfordshire County Council,5559,,02/11/2016,2200255880,"4,576.18",BY THE BRIDGE
http://statistics.data.gov.uk/id/local-authority/38,Oxfordshire County Council,1362,Creditors GR/IR -,04/11/2016,2200257238,"5,690.71",BY THE BRIDGE
http://statistics.data.gov.uk/id/local-authority/38,Oxfordshire County Council,4495,IT Software,18/11/2016,2200265302,"1,900.00",Bytes Software Servioces
http://statistics.data.gov.uk/id/local-authority/38,Oxfordshire County Council,5542,B*Payments to carers,16/11/2016,3110162798,833.94,Redacted Personal Data
http://statistics.data.gov.uk/id/local-authority/38,Oxfordshire County Council,5542,B*Payments to carers,23/11/2016,3110165517,833.94,Redacted Personal Data
http://statistics.data.gov.uk/id/local-authority/38,Oxfordshire County Council,5542,B*Payments to carers,30/11/2016,3110167062,833.94,Redacted Personal Data
http://statistics.data.gov.uk/id/local-authority/38,Oxfordshire County Council,5542,B*Payments to carers,02/11/2016,3110156735,"1,071.29",Redacted Personal Data
http://statistics.data.gov.uk/id/local-authority/38,Oxfordshire County Council,5542,B*Payments to carers,09/11/2016,3110160144,"1,071.29",Redacted Personal Data
http://statistics.data.gov.uk/id/local-authority/38,Oxfordshire County Council,4531,Materials,07/11/2016,2200257734,"2,340.00",C A Traffic Ltd
http://statistics.data.gov.uk/id/local-authority/38,Oxfordshire County Council,4531,Materials,17/11/2016,2200264184,"2,700.00",C A Traffic Ltd
http://statistics.data.gov.uk/id/local-authority/38,Oxfordshire County Council,4531,Materials,25/11/2016,2200268761,"2,750.00",C A Traffic Ltd
http://statistics.data.gov.uk/id/local-authority/38,Oxfordshire County Council,5526,Payments to Private Contractors,04/11/2016,2200257109,"3,000.00",C A Traffic Ltd
http://statistics.data.gov.uk/id/local-authority/38,Oxfordshire County Council,4531,Materials,25/11/2016,2200268762,"3,087.00",C A Traffic Ltd
http://statistics.data.gov.uk/id/local-authority/38,Oxfordshire County Council,5549,B*Fostering Allowance - Regulation 38,02/11/2016,3110156783,787.64,Redacted Personal Data
http://statistics.data.gov.uk/id/local-authority/38,Oxfordshire County Council,5549,B*Fostering Allowance - Regulation 38,09/11/2016,3110160197,787.64,Redacted Personal Data
http://statistics.data.gov.uk/id/local-authority/38,Oxfordshire County Council,5549,B*Fostering Allowance - Regulation 38,16/11/2016,3110162819,787.64,Redacted Personal Data
http://statistics.data.gov.uk/id/local-authority/38,Oxfordshire County Council,5549,B*Fostering Allowance - Regulation 38,23/11/2016,3110165563,787.64,Redacted Personal Data
http://statistics.data.gov.uk/id/local-authority/38,Oxfordshire County Council,5549,B*Fostering Allowance - Regulation 38,30/11/2016,3110167133,787.64,Redacted Personal Data
http://statistics.data.gov.uk/id/local-authority/38,Oxfordshire County Council,4042,Fixtures and Fittings,10/11/2016,2200260313,559.49,C BREWER & SONS LTD
http://statistics.data.gov.uk/id/local-authority/38,Oxfordshire County Council,5542,B*Payments to carers,02/11/2016,3110156673,701.79,Redacted Personal Data
http://statistics.data.gov.uk/id/local-authority/38,Oxfordshire County Council,5542,B*Payments to carers,09/11/2016,3110160083,701.79,Redacted Personal Data
http://statistics.data.gov.uk/id/local-authority/38,Oxfordshire County Council,5542,B*Payments to carers,16/11/2016,3110162770,701.79,Redacted Personal Data
http://statistics.data.gov.uk/id/local-authority/38,Oxfordshire County Council,5542,B*Payments to carers,23/11/2016,3110165454,701.79,Redacted Personal Data
http://statistics.data.gov.uk/id/local-authority/38,Oxfordshire County Council,5542,B*Payments to carers,30/11/2016,3110166963,701.79,Redacted Personal Data
http://statistics.data.gov.uk/id/local-authority/38,Oxfordshire County Council,4531,Materials,16/11/2016,2200263446,"1,462.73",C J Clarke (Timber Merchants) Ltd
http://statistics.data.gov.uk/id/local-authority/38,Oxfordshire County Council,5542,B*Payments to carers,02/11/2016,3110156681,922.82,Redacted Personal Data
http://statistics.data.gov.uk/id/local-authority/38,Oxfordshire County Council,5542,B*Payments to carers,09/11/2016,3110160094,922.82,Redacted Personal Data
http://statistics.data.gov.uk/id/local-authority/38,Oxfordshire County Council,5542,B*Payments to carers,16/11/2016,3110162774,922.82,Redacted Personal Data
http://statistics.data.gov.uk/id/local-authority/38,Oxfordshire County Council,5542,B*Payments to carers,23/11/2016,3110165468,922.82,Redacted Personal Data
http://statistics.data.gov.uk/id/local-authority/38,Oxfordshire County Council,5542,B*Payments to carers,30/11/2016,3110166979,922.82,Redacted Personal Data
http://statistics.data.gov.uk/id/local-authority/38,Oxfordshire County Council,5251,Legal Costs,17/11/2016,2200264706,"2,200.00",C MCDEVITT
http://statistics.data.gov.uk/id/local-authority/38,Oxfordshire County Council,5664,B*Holiday Allowance,02/11/2016,3110156723,568.56,Redacted Personal Data
http://statistics.data.gov.uk/id/local-authority/38,Oxfordshire County Council,5664,B*Holiday Allowance,09/11/2016,3110160204,568.56,Redacted Personal Data
http://statistics.data.gov.uk/id/local-authority/38,Oxfordshire County Council,5664,B*Holiday Allowance,16/11/2016,3110163022,568.56,Redacted Personal Data
http://statistics.data.gov.uk/id/local-authority/38,Oxfordshire County Council,5664,B*Holiday Allowance,23/11/2016,3110165593,568.56,Redacted Personal Data
http://statistics.data.gov.uk/id/local-authority/38,Oxfordshire County Council,5664,B*Holiday Allowance,30/11/2016,3110167000,568.56,Redacted Personal Data
http://statistics.data.gov.uk/id/local-authority/38,Oxfordshire County Council,5227,Other Transport Arrangements,28/11/2016,3110166574,540,C S Comley
http://statistics.data.gov.uk/id/local-authority/38,Oxfordshire County Council,4330,Transport to School Activities,07/11/2016,3110159190,570.84,C S Comley
http://statistics.data.gov.uk/id/local-authority/38,Oxfordshire County Council,5227,Other Transport Arrangements,07/11/2016,3110159186,720,C S Comley
http://statistics.data.gov.uk/id/local-authority/38,Oxfordshire County Council,4330,Transport to School Activities,28/11/2016,3110166581,733,C S Comley
http://statistics.data.gov.uk/id/local-authority/38,Oxfordshire County Council,4330,Transport to School Activities,07/11/2016,3110159187,750.6,C S Comley
http://statistics.data.gov.uk/id/local-authority/38,Oxfordshire County Council,4314,"Other Trans Contract Costs (CRB, Car Sea",07/11/2016,3110159188,897,C S Comley
http://statistics.data.gov.uk/id/local-authority/38,Oxfordshire County Council,4330,Transport to School Activities,07/11/2016,3110159184,900,C S Comley
http://statistics.data.gov.uk/id/local-authority/38,Oxfordshire County Council,5227,Other Transport Arrangements,28/11/2016,3110166572,960,C S Comley
http://statistics.data.gov.uk/id/local-authority/38,Oxfordshire County Council,5227,Other Transport Arrangements,07/11/2016,3110159183,"1,020.00",C S Comley
http://statistics.data.gov.uk/id/local-authority/38,Oxfordshire County Council,4314,"Other Trans Contract Costs (CRB, Car Sea",28/11/2016,3110166577,"1,176.00",C S Comley
http://statistics.data.gov.uk/id/local-authority/38,Oxfordshire County Council,4330,Transport to School Activities,28/11/2016,3110166573,"1,683.75",C S Comley
http://statistics.data.gov.uk/id/local-authority/38,Oxfordshire County Council,4330,Transport to School Activities,07/11/2016,3110159185,"2,738.30",C S Comley
http://statistics.data.gov.uk/id/local-authority/38,Oxfordshire County Council,4236,Vehicle Equipment and Running Expen,15/11/2016,2200263341,522,C Track UK
http://statistics.data.gov.uk/id/local-authority/38,Oxfordshire County Council,4236,Vehicle Equipment and Running Expen,15/11/2016,2200263344,522,C Track UK
http://statistics.data.gov.uk/id/local-authority/38,Oxfordshire County Council,4314,"Other Trans Contract Costs (CRB, Car Sea",24/11/2016,3110166263,658.56,C V OSullivan
http://statistics.data.gov.uk/id/local-authority/38,Oxfordshire County Council,5227,Other Transport Arrangements,23/11/2016,3110165807,786.24,C V OSullivan
http://statistics.data.gov.uk/id/local-authority/38,Oxfordshire County Council,4330,Transport to School Activities,23/11/2016,3110165799,"1,008.00",C V OSullivan
http://statistics.data.gov.uk/id/local-authority/38,Oxfordshire County Council,4330,Transport to School Activities,23/11/2016,3110165794,"1,125.00",C V OSullivan
http://statistics.data.gov.uk/id/local-authority/38,Oxfordshire County Council,4330,Transport to School Activities,24/11/2016,3110166264,"1,186.08",C V OSullivan
http://statistics.data.gov.uk/id/local-authority/38,Oxfordshire County Council,4330,Transport to School Activities,23/11/2016,3110165805,"2,461.44",C V OSullivan
http://statistics.data.gov.uk/id/local-authority/38,Oxfordshire County Council,5227,Other Transport Arrangements,11/11/2016,3110161969,504,C&M Management Services Ltd
http://statistics.data.gov.uk/id/local-authority/38,Oxfordshire County Council,5227,Other Transport Arrangements,07/11/2016,3110159368,540,C&M Management Services Ltd
http://statistics.data.gov.uk/id/local-authority/38,Oxfordshire County Council,5227,Other Transport Arrangements,07/11/2016,3110159374,540,C&M Management Services Ltd
http://statistics.data.gov.uk/id/local-authority/38,Oxfordshire County Council,5227,Other Transport Arrangements,07/11/2016,3110159376,540,C&M Management Services Ltd
http://statistics.data.gov.uk/id/local-authority/38,Oxfordshire County Council,4314,"Other Trans Contract Costs (CRB, Car Sea",11/11/2016,3110161971,577.5,C&M Management Services Ltd
http://statistics.data.gov.uk/id/local-authority/38,Oxfordshire County Council,5227,Other Transport Arrangements,07/11/2016,3110159388,596.4,C&M Management Services Ltd
http://statistics.data.gov.uk/id/local-authority/38,Oxfordshire County Council,5227,Other Transport Arrangements,07/11/2016,3110159392,615,C&M Management Services Ltd
http://statistics.data.gov.uk/id/local-authority/38,Oxfordshire County Council,5227,Other Transport Arrangements,11/11/2016,3110161978,616,C&M Management Services Ltd
http://statistics.data.gov.uk/id/local-authority/38,Oxfordshire County Council,4330,Transport to School Activities,07/11/2016,3110159381,675,C&M Management Services Ltd
http://statistics.data.gov.uk/id/local-authority/38,Oxfordshire County Council,5227,Other Transport Arrangements,11/11/2016,3110161984,720,C&M Management Services Ltd
http://statistics.data.gov.uk/id/local-authority/38,Oxfordshire County Council,4330,Transport to School Activities,11/11/2016,3110161986,"1,120.00",C&M Management Services Ltd
http://statistics.data.gov.uk/id/local-authority/38,Oxfordshire County Council,4330,Transport to School Activities,11/11/2016,3110161980,"1,134.00",C&M Management Services Ltd
http://statistics.data.gov.uk/id/local-authority/38,Oxfordshire County Council,5227,Other Transport Arrangements,07/11/2016,3110159390,"1,185.00",C&M Management Services Ltd
http://statistics.data.gov.uk/id/local-authority/38,Oxfordshire County Council,4330,Transport to School Activities,11/11/2016,3110161972,"1,354.47",C&M Management Services Ltd
http://statistics.data.gov.uk/id/local-authority/38,Oxfordshire County Council,4330,Transport to School Activities,11/11/2016,3110161976,"1,400.00",C&M Management Services Ltd
http://statistics.data.gov.uk/id/local-authority/38,Oxfordshire County Council,4330,Transport to School Activities,07/11/2016,3110159367,"1,530.00",C&M Management Services Ltd
http://statistics.data.gov.uk/id/local-authority/38,Oxfordshire County Council,4330,Transport to School Activities,11/11/2016,3110161967,"1,540.00",C&M Management Services Ltd
http://statistics.data.gov.uk/id/local-authority/38,Oxfordshire County Council,4330,Transport to School Activities,07/11/2016,3110159371,"1,620.60",C&M Management Services Ltd
http://statistics.data.gov.uk/id/local-authority/38,Oxfordshire County Council,4330,Transport to School Activities,07/11/2016,3110159383,"1,668.75",C&M Management Services Ltd
http://statistics.data.gov.uk/id/local-authority/38,Oxfordshire County Council,4330,Transport to School Activities,07/11/2016,3110159373,"1,680.00",C&M Management Services Ltd
http://statistics.data.gov.uk/id/local-authority/38,Oxfordshire County Council,4330,Transport to School Activities,07/11/2016,3110159375,"1,680.00",C&M Management Services Ltd
http://statistics.data.gov.uk/id/local-authority/38,Oxfordshire County Council,4330,Transport to School Activities,07/11/2016,3110159385,"1,843.95",C&M Management Services Ltd
http://statistics.data.gov.uk/id/local-authority/38,Oxfordshire County Council,4330,Transport to School Activities,07/11/2016,3110159387,"1,846.35",C&M Management Services Ltd
http://statistics.data.gov.uk/id/local-authority/38,Oxfordshire County Council,4330,Transport to School Activities,07/11/2016,3110159379,"1,920.00",C&M Management Services Ltd
http://statistics.data.gov.uk/id/local-authority/38,Oxfordshire County Council,4330,Transport to School Activities,07/11/2016,3110159391,"1,920.00",C&M Management Services Ltd
http://statistics.data.gov.uk/id/local-authority/38,Oxfordshire County Council,4330,Transport to School Activities,07/11/2016,3110159377,"1,950.00",C&M Management Services Ltd
http://statistics.data.gov.uk/id/local-authority/38,Oxfordshire County Council,4330,Transport to School Activities,11/11/2016,3110161982,"2,040.00",C&M Management Services Ltd
http://statistics.data.gov.uk/id/local-authority/38,Oxfordshire County Council,4330,Transport to School Activities,07/11/2016,3110159369,"2,052.15",C&M Management Services Ltd
http://statistics.data.gov.uk/id/local-authority/38,Oxfordshire County Council,4330,Transport to School Activities,07/11/2016,3110159389,"3,043.50",C&M Management Services Ltd
http://statistics.data.gov.uk/id/local-authority/38,Oxfordshire County Council,5691,,17/11/2016,3110164524,"-2,978.00",C3Care Ltd
http://statistics.data.gov.uk/id/local-authority/38,Oxfordshire County Council,5691,,17/11/2016,3110164522,"-2,392.40",C3Care Ltd
http://statistics.data.gov.uk/id/local-authority/38,Oxfordshire County Council,5691,,17/11/2016,3110164520,-605.1,C3Care Ltd
http://statistics.data.gov.uk/id/local-authority/38,Oxfordshire County Council,5691,,08/11/2016,3110159961,605.1,C3Care Ltd
http://statistics.data.gov.uk/id/local-authority/38,Oxfordshire County Council,5691,,08/11/2016,3110159906,644,C3Care Ltd
http://statistics.data.gov.uk/id/local-authority/38,Oxfordshire County Council,5691,,25/11/2016,3110166336,644,C3Care Ltd
http://statistics.data.gov.uk/id/local-authority/38,Oxfordshire County Council,5691,,30/11/2016,3110168809,644,C3Care Ltd
http://statistics.data.gov.uk/id/local-authority/38,Oxfordshire County Council,5691,,08/11/2016,3110159960,840,C3Care Ltd
http://statistics.data.gov.uk/id/local-authority/38,Oxfordshire County Council,5691,,01/11/2016,3110156448,882,C3Care Ltd
http://statistics.data.gov.uk/id/local-authority/38,Oxfordshire County Council,5691,,25/11/2016,3110166307,882,C3Care Ltd
http://statistics.data.gov.uk/id/local-authority/38,Oxfordshire County Council,5691,,25/11/2016,3110166334,882,C3Care Ltd
http://statistics.data.gov.uk/id/local-authority/38,Oxfordshire County Council,5691,,30/11/2016,3110168807,882,C3Care Ltd
http://statistics.data.gov.uk/id/local-authority/38,Oxfordshire County Council,5691,,30/11/2016,3110168808,882,C3Care Ltd
http://statistics.data.gov.uk/id/local-authority/38,Oxfordshire County Council,5691,,30/11/2016,3110168810,964.75,C3Care Ltd
http://statistics.data.gov.uk/id/local-authority/38,Oxfordshire County Council,5691,,30/11/2016,3110168811,964.75,C3Care Ltd
http://statistics.data.gov.uk/id/local-authority/38,Oxfordshire County Council,5691,,01/11/2016,3110156439,"1,191.75",C3Care Ltd
http://statistics.data.gov.uk/id/local-authority/38,Oxfordshire County Council,5691,,01/11/2016,3110156437,"1,217.30",C3Care Ltd
http://statistics.data.gov.uk/id/local-authority/38,Oxfordshire County Council,5691,,30/11/2016,3110168804,"1,217.30",C3Care Ltd
http://statistics.data.gov.uk/id/local-authority/38,Oxfordshire County Council,5691,,30/11/2016,3110168805,"1,217.30",C3Care Ltd
http://statistics.data.gov.uk/id/local-authority/38,Oxfordshire County Council,5691,,30/11/2016,3110168806,"1,217.30",C3Care Ltd
http://statistics.data.gov.uk/id/local-authority/38,Oxfordshire County Council,5537,Payments to Other Establishments,14/11/2016,3110162395,865.2,Cabin Pre-School
http://statistics.data.gov.uk/id/local-authority/38,Oxfordshire County Council,5537,Payments to Other Establishments,07/11/2016,3110159469,"2,277.04",Cabin Pre-School
http://statistics.data.gov.uk/id/local-authority/38,Oxfordshire County Council,4495,IT Software,03/11/2016,2200255998,"1,500.00",CACI LTD
http://statistics.data.gov.uk/id/local-authority/38,Oxfordshire County Council,5785,Client Lodgings and Accommodation,04/11/2016,2200256842,"9,844.28",CALCOT SERVICES FOR CHILDREN
http://statistics.data.gov.uk/id/local-authority/38,Oxfordshire County Council,5558,,29/11/2016,2200271457,"14,142.85",Calcot Services For Children
http://statistics.data.gov.uk/id/local-authority/38,Oxfordshire County Council,5558,,29/11/2016,2200271459,"14,142.85",Calcot Services For Children
http://statistics.data.gov.uk/id/local-authority/38,Oxfordshire County Council,5558,,01/11/2016,2200254529,"14,614.28",Calcot Services For Children
http://statistics.data.gov.uk/id/local-authority/38,Oxfordshire County Council,5558,,29/11/2016,2200271473,"14,622.85",Calcot Services For Children
http://statistics.data.gov.uk/id/local-authority/38,Oxfordshire County Council,5558,,28/11/2016,2200270517,"22,054.20",Calcot Services For Children
http://statistics.data.gov.uk/id/local-authority/38,Oxfordshire County Council,4232,Vehicle Fuel,23/11/2016,2200267502,"4,917.34",Calor Gas Ltd
http://statistics.data.gov.uk/id/local-authority/38,Oxfordshire County Council,5899,Adult Social Care - Direct Payments,02/11/2016,3110157930,"1,152.00",Redacted Personal Data
http://statistics.data.gov.uk/id/local-authority/38,Oxfordshire County Council,5899,Adult Social Care - Direct Payments,30/11/2016,3110168253,"1,152.00",Redacted Personal Data
http://statistics.data.gov.uk/id/local-authority/38,Oxfordshire County Council,5558,,03/11/2016,2200256268,"28,345.10",Cambian Asperger Syndrome Services
http://statistics.data.gov.uk/id/local-authority/38,Oxfordshire County Council,5686,,10/11/2016,3110161655,"14,835.17",Cambian Autism Services Ltd
http://statistics.data.gov.uk/id/local-authority/38,Oxfordshire County Council,1362,Creditors GR/IR -,24/11/2016,2200268643,"13,928.70",Cambian Childcare Ltd
http://statistics.data.gov.uk/id/local-authority/38,Oxfordshire County Council,5558,,28/11/2016,2200270746,"18,750.00",Cambian Healthcare Ltd
http://statistics.data.gov.uk/id/local-authority/38,Oxfordshire County Council,5558,,01/11/2016,2200254510,"33,750.00",Cambian Healthcare Ltd
http://statistics.data.gov.uk/id/local-authority/38,Oxfordshire County Council,5686,,10/11/2016,3110161649,"37,769.91",CAMBIAN LEARNING DISABILITIES LTD
http://statistics.data.gov.uk/id/local-authority/38,Oxfordshire County Council,5537,Payments to Other Establishments,01/11/2016,3110159075,693,Camel Pre-School
http://statistics.data.gov.uk/id/local-authority/38,Oxfordshire County Council,5537,Payments to Other Establishments,14/11/2016,3110162396,"5,165.97",Camel Pre-School (PFSU)
http://statistics.data.gov.uk/id/local-authority/38,Oxfordshire County Council,5537,Payments to Other Establishments,07/11/2016,3110159470,"6,724.06",Camel Pre-School (PFSU)
http://statistics.data.gov.uk/id/local-authority/38,Oxfordshire County Council,5899,Adult Social Care - Direct Payments,02/11/2016,3110158040,736,Redacted Personal Data
http://statistics.data.gov.uk/id/local-authority/38,Oxfordshire County Council,5899,Adult Social Care - Direct Payments,30/11/2016,3110168378,736,Redacted Personal Data
http://statistics.data.gov.uk/id/local-authority/38,Oxfordshire County Council,5569,,02/11/2016,3110156942,635.13,Redacted Personal Data
http://statistics.data.gov.uk/id/local-authority/38,Oxfordshire County Council,5569,,09/11/2016,3110160377,635.13,Redacted Personal Data
http://statistics.data.gov.uk/id/local-authority/38,Oxfordshire County Council,5569,,16/11/2016,3110162904,635.13,Redacted Personal Data
http://statistics.data.gov.uk/id/local-authority/38,Oxfordshire County Council,5569,,23/11/2016,3110165738,635.13,Redacted Personal Data
http://statistics.data.gov.uk/id/local-authority/38,Oxfordshire County Council,5569,,30/11/2016,3110167282,635.13,Redacted Personal Data
http://statistics.data.gov.uk/id/local-authority/38,Oxfordshire County Council,5688,,10/11/2016,3110161588,"3,704.67",Camphill Communities Thornbury
http://statistics.data.gov.uk/id/local-authority/38,Oxfordshire County Council,5537,Payments to Other Establishments,15/11/2016,3110162632,675,Campion School
http://statistics.data.gov.uk/id/local-authority/38,Oxfordshire County Council,4495,IT Software,17/11/2016,2200264695,"1,500.00",Capita Childrens Services
http://statistics.data.gov.uk/id/local-authority/38,Oxfordshire County Council,2640,Supply Teachers - Agency,23/11/2016,2200267316,"3,180.00",Capita Resourcing Ltd
http://statistics.data.gov.uk/id/local-authority/38,Oxfordshire County Council,5559,,04/11/2016,2200256840,"3,214.20",Capstone Vision Foster Care Ltd
http://statistics.data.gov.uk/id/local-authority/38,Oxfordshire County Council,5559,,15/11/2016,2200263071,"3,214.20",Capstone Vision Foster Care Ltd
http://statistics.data.gov.uk/id/local-authority/38,Oxfordshire County Council,5899,Adult Social Care - Direct Payments,02/11/2016,3110157177,"3,720.00",Redacted Personal Data
http://statistics.data.gov.uk/id/local-authority/38,Oxfordshire County Council,5899,Adult Social Care - Direct Payments,30/11/2016,3110167555,"3,720.00",Redacted Personal Data
http://statistics.data.gov.uk/id/local-authority/38,Oxfordshire County Council,5899,Adult Social Care - Direct Payments,02/11/2016,3110157722,916,Redacted Personal Data
http://statistics.data.gov.uk/id/local-authority/38,Oxfordshire County Council,5899,Adult Social Care - Direct Payments,30/11/2016,3110168019,916,Redacted Personal Data
http://statistics.data.gov.uk/id/local-authority/38,Oxfordshire County Council,5558,,29/11/2016,2200271304,"4,634.24",Care in Mind Limited
http://statistics.data.gov.uk/id/local-authority/38,Oxfordshire County Council,5558,,29/11/2016,2200271300,"10,427.22",Care in Mind Limited
http://statistics.data.gov.uk/id/local-authority/38,Oxfordshire County Council,5558,,29/11/2016,2200271297,"13,613.28",Care in Mind Limited
http://statistics.data.gov.uk/id/local-authority/38,Oxfordshire County Council,5558,,29/11/2016,2200271289,"17,378.70",Care in Mind Limited
http://statistics.data.gov.uk/id/local-authority/38,Oxfordshire County Council,5558,,29/11/2016,2200271292,"17,378.70",Care in Mind Limited
http://statistics.data.gov.uk/id/local-authority/38,Oxfordshire County Council,5558,,29/11/2016,2200271299,"17,378.70",Care in Mind Limited
http://statistics.data.gov.uk/id/local-authority/38,Oxfordshire County Council,5558,,29/11/2016,2200271288,"17,957.99",Care in Mind Limited
http://statistics.data.gov.uk/id/local-authority/38,Oxfordshire County Council,5558,,29/11/2016,2200271290,"17,957.99",Care in Mind Limited
http://statistics.data.gov.uk/id/local-authority/38,Oxfordshire County Council,4861,Hired and Contracted Services,01/11/2016,2200254588,"14,392.17",CARE MONITORING 2000 LTD
http://statistics.data.gov.uk/id/local-authority/38,Oxfordshire County Council,4861,Hired and Contracted Services,01/11/2016,2200254589,"14,489.17",CARE MONITORING 2000 LTD
http://statistics.data.gov.uk/id/local-authority/38,Oxfordshire County Council,4861,Hired and Contracted Services,08/11/2016,2200258450,"16,128.14",CARE MONITORING 2000 LTD
http://statistics.data.gov.uk/id/local-authority/38,Oxfordshire County Council,5689,,10/11/2016,3110160933,518.44,Care Outlook Ltd
http://statistics.data.gov.uk/id/local-authority/38,Oxfordshire County Council,5689,,10/11/2016,3110160926,528.64,Care Outlook Ltd
http://statistics.data.gov.uk/id/local-authority/38,Oxfordshire County Council,5689,,10/11/2016,3110160943,540.82,Care Outlook Ltd
http://statistics.data.gov.uk/id/local-authority/38,Oxfordshire County Council,5689,,10/11/2016,3110160914,574.82,Care Outlook Ltd
http://statistics.data.gov.uk/id/local-authority/38,Oxfordshire County Council,5689,,10/11/2016,3110160915,575.1,Care Outlook Ltd
http://statistics.data.gov.uk/id/local-authority/38,Oxfordshire County Council,5689,,10/11/2016,3110160913,598.9,Care Outlook Ltd
http://statistics.data.gov.uk/id/local-authority/38,Oxfordshire County Council,5689,,10/11/2016,3110160920,603.14,Care Outlook Ltd
http://statistics.data.gov.uk/id/local-authority/38,Oxfordshire County Council,5689,,10/11/2016,3110160923,641.96,Care Outlook Ltd
http://statistics.data.gov.uk/id/local-authority/38,Oxfordshire County Council,5689,,10/11/2016,3110160939,689.27,Care Outlook Ltd
http://statistics.data.gov.uk/id/local-authority/38,Oxfordshire County Council,5689,,10/11/2016,3110160931,740.83,Care Outlook Ltd
http://statistics.data.gov.uk/id/local-authority/38,Oxfordshire County Council,5689,,10/11/2016,3110160900,758.11,Care Outlook Ltd
http://statistics.data.gov.uk/id/local-authority/38,Oxfordshire County Council,5689,,10/11/2016,3110160899,800.04,Care Outlook Ltd
http://statistics.data.gov.uk/id/local-authority/38,Oxfordshire County Council,5689,,10/11/2016,3110160929,935.17,Care Outlook Ltd
http://statistics.data.gov.uk/id/local-authority/38,Oxfordshire County Council,5689,,10/11/2016,3110160930,"1,117.34",Care Outlook Ltd
http://statistics.data.gov.uk/id/local-authority/38,Oxfordshire County Council,5689,,10/11/2016,3110160918,"1,244.25",Care Outlook Ltd
http://statistics.data.gov.uk/id/local-authority/38,Oxfordshire County Council,5689,,10/11/2016,3110160921,"1,283.91",Care Outlook Ltd
http://statistics.data.gov.uk/id/local-authority/38,Oxfordshire County Council,4861,Hired and Contracted Services,01/11/2016,2200254445,"1,436.20",Care Outlook Ltd
http://statistics.data.gov.uk/id/local-authority/38,Oxfordshire County Council,4861,Hired and Contracted Services,01/11/2016,2200254447,"1,436.20",Care Outlook Ltd
http://statistics.data.gov.uk/id/local-authority/38,Oxfordshire County Council,4861,Hired and Contracted Services,01/11/2016,2200254450,"1,436.20",Care Outlook Ltd
http://statistics.data.gov.uk/id/local-authority/38,Oxfordshire County Council,4861,Hired and Contracted Services,01/11/2016,2200254452,"1,436.20",Care Outlook Ltd
http://statistics.data.gov.uk/id/local-authority/38,Oxfordshire County Council,5689,,10/11/2016,3110160924,"1,460.13",Care Outlook Ltd
http://statistics.data.gov.uk/id/local-authority/38,Oxfordshire County Council,5689,,10/11/2016,3110160932,"1,979.98",Care Outlook Ltd
http://statistics.data.gov.uk/id/local-authority/38,Oxfordshire County Council,4861,Hired and Contracted Services,01/11/2016,2200254441,"4,813.90",Care Outlook Ltd
http://statistics.data.gov.uk/id/local-authority/38,Oxfordshire County Council,5689,,10/11/2016,3110160944,"6,482.00",Care Outlook Ltd
http://statistics.data.gov.uk/id/local-authority/38,Oxfordshire County Council,5686,,10/11/2016,3110161834,"9,262.50",Care UK
http://statistics.data.gov.uk/id/local-authority/38,Oxfordshire County Council,5686,,10/11/2016,3110161689,"12,330.99",Care UK Learning Disabilities
http://statistics.data.gov.uk/id/local-authority/38,Oxfordshire County Council,5689,,04/11/2016,3110159006,585.75,Care with Care Ltd
http://statistics.data.gov.uk/id/local-authority/38,Oxfordshire County Council,5689,,04/11/2016,3110159002,660.3,Care with Care Ltd
http://statistics.data.gov.uk/id/local-authority/38,Oxfordshire County Council,5691,,08/11/2016,3110159909,937.2,Care with Care Ltd
http://statistics.data.gov.uk/id/local-authority/38,Oxfordshire County Council,5689,,16/11/2016,3110164053,500.99,Care2Care Ltd
http://statistics.data.gov.uk/id/local-authority/38,Oxfordshire County Council,5689,,16/11/2016,3110164050,501.95,Care2Care Ltd
http://statistics.data.gov.uk/id/local-authority/38,Oxfordshire County Council,5689,,16/11/2016,3110164078,529.07,Care2Care Ltd
http://statistics.data.gov.uk/id/local-authority/38,Oxfordshire County Council,5689,,16/11/2016,3110164080,550.54,Care2Care Ltd
http://statistics.data.gov.uk/id/local-authority/38,Oxfordshire County Council,5689,,16/11/2016,3110164054,551.84,Care2Care Ltd
http://statistics.data.gov.uk/id/local-authority/38,Oxfordshire County Council,5689,,16/11/2016,3110163998,569.09,Care2Care Ltd
http://statistics.data.gov.uk/id/local-authority/38,Oxfordshire County Council,5689,,16/11/2016,3110164011,571.7,Care2Care Ltd
http://statistics.data.gov.uk/id/local-authority/38,Oxfordshire County Council,5689,,16/11/2016,3110164070,623.91,Care2Care Ltd
http://statistics.data.gov.uk/id/local-authority/38,Oxfordshire County Council,5689,,16/11/2016,3110164000,627.85,Care2Care Ltd
http://statistics.data.gov.uk/id/local-authority/38,Oxfordshire County Council,5689,,16/11/2016,3110164007,649.49,Care2Care Ltd
http://statistics.data.gov.uk/id/local-authority/38,Oxfordshire County Council,5689,,16/11/2016,3110164081,659.05,Care2Care Ltd
http://statistics.data.gov.uk/id/local-authority/38,Oxfordshire County Council,5689,,16/11/2016,3110164067,668.27,Care2Care Ltd
http://statistics.data.gov.uk/id/local-authority/38,Oxfordshire County Council,5689,,16/11/2016,3110164064,682.09,Care2Care Ltd
http://statistics.data.gov.uk/id/local-authority/38,Oxfordshire County Council,5689,,16/11/2016,3110164002,768.3,Care2Care Ltd
http://statistics.data.gov.uk/id/local-authority/38,Oxfordshire County Council,5689,,16/11/2016,3110164061,780.11,Care2Care Ltd
http://statistics.data.gov.uk/id/local-authority/38,Oxfordshire County Council,5689,,16/11/2016,3110164051,790.17,Care2Care Ltd
http://statistics.data.gov.uk/id/local-authority/38,Oxfordshire County Council,5689,,16/11/2016,3110163999,830.37,Care2Care Ltd
http://statistics.data.gov.uk/id/local-authority/38,Oxfordshire County Council,5689,,16/11/2016,3110164062,838.73,Care2Care Ltd
http://statistics.data.gov.uk/id/local-authority/38,Oxfordshire County Council,5689,,16/11/2016,3110164058,862.91,Care2Care Ltd
http://statistics.data.gov.uk/id/local-authority/38,Oxfordshire County Council,5689,,16/11/2016,3110164065,917.94,Care2Care Ltd
http://statistics.data.gov.uk/id/local-authority/38,Oxfordshire County Council,5689,,16/11/2016,3110164030,939.06,Care2Care Ltd
http://statistics.data.gov.uk/id/local-authority/38,Oxfordshire County Council,5689,,16/11/2016,3110164006,"1,022.43",Care2Care Ltd
http://statistics.data.gov.uk/id/local-authority/38,Oxfordshire County Council,5689,,16/11/2016,3110164075,"1,041.34",Care2Care Ltd
http://statistics.data.gov.uk/id/local-authority/38,Oxfordshire County Council,5689,,16/11/2016,3110164049,"1,109.63",Care2Care Ltd
http://statistics.data.gov.uk/id/local-authority/38,Oxfordshire County Council,5689,,16/11/2016,3110164085,"1,256.55",Care2Care Ltd
http://statistics.data.gov.uk/id/local-authority/38,Oxfordshire County Council,5689,,16/11/2016,3110164056,"1,263.60",Care2Care Ltd
http://statistics.data.gov.uk/id/local-authority/38,Oxfordshire County Council,5689,,16/11/2016,3110164020,"1,370.92",Care2Care Ltd
http://statistics.data.gov.uk/id/local-authority/38,Oxfordshire County Council,5689,,16/11/2016,3110164032,"1,399.66",Care2Care Ltd
http://statistics.data.gov.uk/id/local-authority/38,Oxfordshire County Council,5689,,16/11/2016,3110164012,"1,486.64",Care2Care Ltd
http://statistics.data.gov.uk/id/local-authority/38,Oxfordshire County Council,5689,,16/11/2016,3110164008,"1,578.21",Care2Care Ltd
http://statistics.data.gov.uk/id/local-authority/38,Oxfordshire County Council,5689,,16/11/2016,3110164014,"1,595.14",Care2Care Ltd
http://statistics.data.gov.uk/id/local-authority/38,Oxfordshire County Council,5689,,16/11/2016,3110164027,"1,669.92",Care2Care Ltd
http://statistics.data.gov.uk/id/local-authority/38,Oxfordshire County Council,5689,,16/11/2016,3110164026,"1,996.37",Care2Care Ltd
http://statistics.data.gov.uk/id/local-authority/38,Oxfordshire County Council,5689,,16/11/2016,3110164071,"2,090.80",Care2Care Ltd
http://statistics.data.gov.uk/id/local-authority/38,Oxfordshire County Council,5689,,16/11/2016,3110164048,"2,160.78",Care2Care Ltd
http://statistics.data.gov.uk/id/local-authority/38,Oxfordshire County Council,5686,,10/11/2016,3110161773,"166,773.91",Carebase (Abingdon) Limited
http://statistics.data.gov.uk/id/local-authority/38,Oxfordshire County Council,5689,,16/11/2016,3110163464,503.37,Caremark (West Oxfordshire & Cherwe
http://statistics.data.gov.uk/id/local-authority/38,Oxfordshire County Council,5689,,16/11/2016,3110163483,511.29,Caremark (West Oxfordshire & Cherwe
http://statistics.data.gov.uk/id/local-authority/38,Oxfordshire County Council,5691,,17/11/2016,2200264759,537.5,Caremark (West Oxfordshire & Cherwe
http://statistics.data.gov.uk/id/local-authority/38,Oxfordshire County Council,5689,,16/11/2016,3110163489,580.45,Caremark (West Oxfordshire & Cherwe
http://statistics.data.gov.uk/id/local-authority/38,Oxfordshire County Council,5689,,16/11/2016,3110163501,582.65,Caremark (West Oxfordshire & Cherwe
http://statistics.data.gov.uk/id/local-authority/38,Oxfordshire County Council,5689,,16/11/2016,3110163492,588.58,Caremark (West Oxfordshire & Cherwe
http://statistics.data.gov.uk/id/local-authority/38,Oxfordshire County Council,5689,,16/11/2016,3110163469,588.69,Caremark (West Oxfordshire & Cherwe
http://statistics.data.gov.uk/id/local-authority/38,Oxfordshire County Council,5689,,16/11/2016,3110163433,590.82,Caremark (West Oxfordshire & Cherwe
http://statistics.data.gov.uk/id/local-authority/38,Oxfordshire County Council,5689,,16/11/2016,3110163473,600.87,Caremark (West Oxfordshire & Cherwe
http://statistics.data.gov.uk/id/local-authority/38,Oxfordshire County Council,5691,,17/11/2016,2200264745,602,Caremark (West Oxfordshire & Cherwe
http://statistics.data.gov.uk/id/local-authority/38,Oxfordshire County Council,5691,,17/11/2016,2200264719,612.75,Caremark (West Oxfordshire & Cherwe
http://statistics.data.gov.uk/id/local-authority/38,Oxfordshire County Council,5689,,16/11/2016,3110163459,613.24,Caremark (West Oxfordshire & Cherwe
http://statistics.data.gov.uk/id/local-authority/38,Oxfordshire County Council,5689,,16/11/2016,3110163455,619.59,Caremark (West Oxfordshire & Cherwe
http://statistics.data.gov.uk/id/local-authority/38,Oxfordshire County Council,5689,,16/11/2016,3110163429,627.82,Caremark (West Oxfordshire & Cherwe
http://statistics.data.gov.uk/id/local-authority/38,Oxfordshire County Council,5689,,16/11/2016,3110163503,627.82,Caremark (West Oxfordshire & Cherwe
http://statistics.data.gov.uk/id/local-authority/38,Oxfordshire County Council,5691,,17/11/2016,2200264764,634.25,Caremark (West Oxfordshire & Cherwe
http://statistics.data.gov.uk/id/local-authority/38,Oxfordshire County Council,5689,,16/11/2016,3110163438,636.41,Caremark (West Oxfordshire & Cherwe
http://statistics.data.gov.uk/id/local-authority/38,Oxfordshire County Council,5689,,16/11/2016,3110163428,663.17,Caremark (West Oxfordshire & Cherwe
http://statistics.data.gov.uk/id/local-authority/38,Oxfordshire County Council,5689,,16/11/2016,3110163453,666.31,Caremark (West Oxfordshire & Cherwe
http://statistics.data.gov.uk/id/local-authority/38,Oxfordshire County Council,5689,,16/11/2016,3110163431,668.18,Caremark (West Oxfordshire & Cherwe
http://statistics.data.gov.uk/id/local-authority/38,Oxfordshire County Council,5689,,16/11/2016,3110163416,670.08,Caremark (West Oxfordshire & Cherwe
http://statistics.data.gov.uk/id/local-authority/38,Oxfordshire County Council,5689,,16/11/2016,3110163487,710.03,Caremark (West Oxfordshire & Cherwe
http://statistics.data.gov.uk/id/local-authority/38,Oxfordshire County Council,5689,,16/11/2016,3110163488,716.6,Caremark (West Oxfordshire & Cherwe
http://statistics.data.gov.uk/id/local-authority/38,Oxfordshire County Council,5689,,16/11/2016,3110163447,768.33,Caremark (West Oxfordshire & Cherwe
http://statistics.data.gov.uk/id/local-authority/38,Oxfordshire County Council,5689,,16/11/2016,3110163450,772.21,Caremark (West Oxfordshire & Cherwe
http://statistics.data.gov.uk/id/local-authority/38,Oxfordshire County Council,5689,,16/11/2016,3110163482,787.9,Caremark (West Oxfordshire & Cherwe
http://statistics.data.gov.uk/id/local-authority/38,Oxfordshire County Council,5689,,16/11/2016,3110163439,803.08,Caremark (West Oxfordshire & Cherwe
http://statistics.data.gov.uk/id/local-authority/38,Oxfordshire County Council,5689,,21/11/2016,3110164928,823.44,Caremark (West Oxfordshire & Cherwe
http://statistics.data.gov.uk/id/local-authority/38,Oxfordshire County Council,5689,,16/11/2016,3110163500,825.39,Caremark (West Oxfordshire & Cherwe
http://statistics.data.gov.uk/id/local-authority/38,Oxfordshire County Council,5689,,16/11/2016,3110163466,830.18,Caremark (West Oxfordshire & Cherwe
http://statistics.data.gov.uk/id/local-authority/38,Oxfordshire County Council,5689,,16/11/2016,3110163472,870.67,Caremark (West Oxfordshire & Cherwe
http://statistics.data.gov.uk/id/local-authority/38,Oxfordshire County Council,5691,,17/11/2016,2200264736,870.76,Caremark (West Oxfordshire & Cherwe
http://statistics.data.gov.uk/id/local-authority/38,Oxfordshire County Council,5689,,16/11/2016,3110163462,877.07,Caremark (West Oxfordshire & Cherwe
http://statistics.data.gov.uk/id/local-authority/38,Oxfordshire County Council,5689,,16/11/2016,3110163449,914.82,Caremark (West Oxfordshire & Cherwe
http://statistics.data.gov.uk/id/local-authority/38,Oxfordshire County Council,5689,,16/11/2016,3110163495,915.46,Caremark (West Oxfordshire & Cherwe
http://statistics.data.gov.uk/id/local-authority/38,Oxfordshire County Council,5689,,16/11/2016,3110163456,938.5,Caremark (West Oxfordshire & Cherwe
http://statistics.data.gov.uk/id/local-authority/38,Oxfordshire County Council,5689,,16/11/2016,3110163474,955.23,Caremark (West Oxfordshire & Cherwe
http://statistics.data.gov.uk/id/local-authority/38,Oxfordshire County Council,5689,,16/11/2016,3110163444,"1,021.32",Caremark (West Oxfordshire & Cherwe
http://statistics.data.gov.uk/id/local-authority/38,Oxfordshire County Council,5689,,16/11/2016,3110163446,"1,052.71",Caremark (West Oxfordshire & Cherwe
http://statistics.data.gov.uk/id/local-authority/38,Oxfordshire County Council,5689,,16/11/2016,3110163454,"1,139.41",Caremark (West Oxfordshire & Cherwe
http://statistics.data.gov.uk/id/local-authority/38,Oxfordshire County Council,5689,,16/11/2016,3110163467,"1,197.44",Caremark (West Oxfordshire & Cherwe
http://statistics.data.gov.uk/id/local-authority/38,Oxfordshire County Council,5689,,16/11/2016,3110163497,"1,245.09",Caremark (West Oxfordshire & Cherwe
http://statistics.data.gov.uk/id/local-authority/38,Oxfordshire County Council,5691,,10/11/2016,2200259949,"1,268.61",Caremark (West Oxfordshire & Cherwe
http://statistics.data.gov.uk/id/local-authority/38,Oxfordshire County Council,5689,,16/11/2016,3110163481,"1,342.91",Caremark (West Oxfordshire & Cherwe
http://statistics.data.gov.uk/id/local-authority/38,Oxfordshire County Council,5689,,16/11/2016,3110163465,"1,382.68",Caremark (West Oxfordshire & Cherwe
http://statistics.data.gov.uk/id/local-authority/38,Oxfordshire County Council,5689,,16/11/2016,3110163445,"1,410.72",Caremark (West Oxfordshire & Cherwe
http://statistics.data.gov.uk/id/local-authority/38,Oxfordshire County Council,5689,,16/11/2016,3110163494,"1,412.40",Caremark (West Oxfordshire & Cherwe
http://statistics.data.gov.uk/id/local-authority/38,Oxfordshire County Council,5689,,16/11/2016,3110163460,"1,435.38",Caremark (West Oxfordshire & Cherwe
http://statistics.data.gov.uk/id/local-authority/38,Oxfordshire County Council,5689,,16/11/2016,3110163499,"1,451.37",Caremark (West Oxfordshire & Cherwe
http://statistics.data.gov.uk/id/local-authority/38,Oxfordshire County Council,5689,,16/11/2016,3110163435,"1,497.79",Caremark (West Oxfordshire & Cherwe
http://statistics.data.gov.uk/id/local-authority/38,Oxfordshire County Council,5689,,16/11/2016,3110163485,"1,602.68",Caremark (West Oxfordshire & Cherwe
http://statistics.data.gov.uk/id/local-authority/38,Oxfordshire County Council,5689,,16/11/2016,3110163475,"1,672.31",Caremark (West Oxfordshire & Cherwe
http://statistics.data.gov.uk/id/local-authority/38,Oxfordshire County Council,5689,,16/11/2016,3110163436,"1,812.82",Caremark (West Oxfordshire & Cherwe
http://statistics.data.gov.uk/id/local-authority/38,Oxfordshire County Council,5689,,16/11/2016,3110163432,"2,146.53",Caremark (West Oxfordshire & Cherwe
http://statistics.data.gov.uk/id/local-authority/38,Oxfordshire County Council,5689,,16/11/2016,3110163468,"2,401.33",Caremark (West Oxfordshire & Cherwe
http://statistics.data.gov.uk/id/local-authority/38,Oxfordshire County Council,5689,,16/11/2016,3110163451,"2,819.57",Caremark (West Oxfordshire & Cherwe
http://statistics.data.gov.uk/id/local-authority/38,Oxfordshire County Council,5689,,16/11/2016,3110163426,"2,993.22",Caremark (West Oxfordshire & Cherwe
http://statistics.data.gov.uk/id/local-authority/38,Oxfordshire County Council,5689,,16/11/2016,3110163498,"4,594.64",Caremark (West Oxfordshire & Cherwe
http://statistics.data.gov.uk/id/local-authority/38,Oxfordshire County Council,5689,,10/11/2016,3110161450,"4,796.80",Caremark (West Oxfordshire & Cherwe
http://statistics.data.gov.uk/id/local-authority/38,Oxfordshire County Council,5688,,10/11/2016,3110161569,"8,487.60",Caretech Community Services Ltd
http://statistics.data.gov.uk/id/local-authority/38,Oxfordshire County Council,5686,,10/11/2016,3110161660,"24,571.03",Caretech Community Services Ltd
http://statistics.data.gov.uk/id/local-authority/38,Oxfordshire County Council,5689,,16/11/2016,3110163864,556.97,Caretree Ltd
http://statistics.data.gov.uk/id/local-authority/38,Oxfordshire County Council,5689,,16/11/2016,3110163878,627.87,Caretree Ltd
http://statistics.data.gov.uk/id/local-authority/38,Oxfordshire County Council,5689,,16/11/2016,3110163863,766.19,Caretree Ltd
http://statistics.data.gov.uk/id/local-authority/38,Oxfordshire County Council,5689,,16/11/2016,3110163876,775.71,Caretree Ltd
http://statistics.data.gov.uk/id/local-authority/38,Oxfordshire County Council,5689,,16/11/2016,3110163868,860.68,Caretree Ltd
http://statistics.data.gov.uk/id/local-authority/38,Oxfordshire County Council,5689,,16/11/2016,3110163874,"1,094.75",Caretree Ltd
http://statistics.data.gov.uk/id/local-authority/38,Oxfordshire County Council,5689,,16/11/2016,3110163875,"1,185.09",Caretree Ltd
http://statistics.data.gov.uk/id/local-authority/38,Oxfordshire County Council,5689,,16/11/2016,3110163858,"1,273.28",Caretree Ltd
http://statistics.data.gov.uk/id/local-authority/38,Oxfordshire County Council,5689,,16/11/2016,3110163870,"1,275.98",Caretree Ltd
http://statistics.data.gov.uk/id/local-authority/38,Oxfordshire County Council,5689,,16/11/2016,3110163877,"1,446.96",Caretree Ltd
http://statistics.data.gov.uk/id/local-authority/38,Oxfordshire County Council,5689,,16/11/2016,3110163880,"2,545.88",Caretree Ltd
http://statistics.data.gov.uk/id/local-authority/38,Oxfordshire County Council,5689,,16/11/2016,3110163861,"2,620.71",Caretree Ltd
http://statistics.data.gov.uk/id/local-authority/38,Oxfordshire County Council,5689,,16/11/2016,3110163862,"2,708.99",Caretree Ltd
http://statistics.data.gov.uk/id/local-authority/38,Oxfordshire County Council,5689,,16/11/2016,3110163871,"2,763.56",Caretree Ltd
http://statistics.data.gov.uk/id/local-authority/38,Oxfordshire County Council,5689,,16/11/2016,3110163867,"3,231.39",Caretree Ltd
http://statistics.data.gov.uk/id/local-authority/38,Oxfordshire County Council,5689,,16/11/2016,3110163866,"3,403.60",Caretree Ltd
http://statistics.data.gov.uk/id/local-authority/38,Oxfordshire County Council,4111,Security Costs,03/11/2016,2200256571,500,Carillion
http://statistics.data.gov.uk/id/local-authority/38,Oxfordshire County Council,4496,Equipment Maintenance Contracts,16/11/2016,2200263449,"1,104.04",Carillion
http://statistics.data.gov.uk/id/local-authority/38,Oxfordshire County Council,8102,Payments to main contractor,23/11/2016,2200267933,"-231,572.26",Carillion LGS Ltd
http://statistics.data.gov.uk/id/local-authority/38,Oxfordshire County Council,8102,Payments to main contractor,23/11/2016,2200267484,"-148,773.48",Carillion LGS Ltd
http://statistics.data.gov.uk/id/local-authority/38,Oxfordshire County Council,1362,Creditors GR/IR -,29/11/2016,2200270935,"-25,186.33",Carillion LGS Ltd
http://statistics.data.gov.uk/id/local-authority/38,Oxfordshire County Council,8103,Payments to sub contractor,30/11/2016,2200271776,"-21,684.10",Carillion LGS Ltd
http://statistics.data.gov.uk/id/local-authority/38,Oxfordshire County Council,4861,Hired and Contracted Services,21/11/2016,2200266208,675,Carillion LGS Ltd
http://statistics.data.gov.uk/id/local-authority/38,Oxfordshire County Council,3787,Premises Repairs,22/11/2016,2200267130,883.98,Carillion LGS Ltd
http://statistics.data.gov.uk/id/local-authority/38,Oxfordshire County Council,3787,Premises Repairs,23/11/2016,2200267822,883.98,Carillion LGS Ltd
http://statistics.data.gov.uk/id/local-authority/38,Oxfordshire County Council,3787,Premises Repairs,23/11/2016,2200267876,883.98,Carillion LGS Ltd
http://statistics.data.gov.uk/id/local-authority/38,Oxfordshire County Council,8102,Payments to main contractor,16/11/2016,2200263721,"1,460.74",Carillion LGS Ltd
http://statistics.data.gov.uk/id/local-authority/38,Oxfordshire County Council,8102,Payments to main contractor,17/11/2016,2200264507,"1,589.49",Carillion LGS Ltd
http://statistics.data.gov.uk/id/local-authority/38,Oxfordshire County Council,3787,Premises Repairs,11/11/2016,2200260802,"1,838.16",Carillion LGS Ltd
http://statistics.data.gov.uk/id/local-authority/38,Oxfordshire County Council,8102,Payments to main contractor,17/11/2016,2200264504,"1,920.37",Carillion LGS Ltd
http://statistics.data.gov.uk/id/local-authority/38,Oxfordshire County Council,8102,Payments to main contractor,16/11/2016,2200263729,"2,093.74",Carillion LGS Ltd
http://statistics.data.gov.uk/id/local-authority/38,Oxfordshire County Council,5526,Payments to Private Contractors,16/11/2016,2200264060,"2,291.67",Carillion LGS Ltd
http://statistics.data.gov.uk/id/local-authority/38,Oxfordshire County Council,8102,Payments to main contractor,16/11/2016,2200263731,"2,355.46",Carillion LGS Ltd
http://statistics.data.gov.uk/id/local-authority/38,Oxfordshire County Council,8102,Payments to main contractor,22/11/2016,2200267210,"2,593.00",Carillion LGS Ltd
http://statistics.data.gov.uk/id/local-authority/38,Oxfordshire County Council,8102,Payments to main contractor,22/11/2016,2200267212,"2,635.65",Carillion LGS Ltd
http://statistics.data.gov.uk/id/local-authority/38,Oxfordshire County Council,8102,Payments to main contractor,16/11/2016,2200263726,"2,735.40",Carillion LGS Ltd
http://statistics.data.gov.uk/id/local-authority/38,Oxfordshire County Council,8102,Payments to main contractor,17/11/2016,2200264509,"2,741.37",Carillion LGS Ltd
http://statistics.data.gov.uk/id/local-authority/38,Oxfordshire County Council,3787,Premises Repairs,24/11/2016,2200268461,"2,741.37",Carillion LGS Ltd
http://statistics.data.gov.uk/id/local-authority/38,Oxfordshire County Council,8102,Payments to main contractor,28/11/2016,2200270663,"2,741.37",Carillion LGS Ltd
http://statistics.data.gov.uk/id/local-authority/38,Oxfordshire County Council,4111,Security Costs,03/11/2016,2200256565,"2,881.54",Carillion LGS Ltd
http://statistics.data.gov.uk/id/local-authority/38,Oxfordshire County Council,4861,Hired and Contracted Services,29/11/2016,2200271311,"3,124.72",Carillion LGS Ltd
http://statistics.data.gov.uk/id/local-authority/38,Oxfordshire County Council,8102,Payments to main contractor,16/11/2016,2200263961,"3,426.41",Carillion LGS Ltd
http://statistics.data.gov.uk/id/local-authority/38,Oxfordshire County Council,4122,Other premises related costs,10/11/2016,2200260036,"3,518.74",Carillion LGS Ltd
http://statistics.data.gov.uk/id/local-authority/38,Oxfordshire County Council,8102,Payments to main contractor,16/11/2016,2200263622,"3,925.77",Carillion LGS Ltd
http://statistics.data.gov.uk/id/local-authority/38,Oxfordshire County Council,8102,Payments to main contractor,22/11/2016,2200267064,"4,416.65",Carillion LGS Ltd
http://statistics.data.gov.uk/id/local-authority/38,Oxfordshire County Council,8004,Design Consultant,17/11/2016,2200264502,"4,891.79",Carillion LGS Ltd
http://statistics.data.gov.uk/id/local-authority/38,Oxfordshire County Council,4070,Cleaning services,10/11/2016,2200260009,"4,920.02",Carillion LGS Ltd
http://statistics.data.gov.uk/id/local-authority/38,Oxfordshire County Council,8004,Design Consultant,07/11/2016,2200257470,"5,744.74",Carillion LGS Ltd
http://statistics.data.gov.uk/id/local-authority/38,Oxfordshire County Council,5526,Payments to Private Contractors,10/11/2016,2200260141,"5,817.50",Carillion LGS Ltd
http://statistics.data.gov.uk/id/local-authority/38,Oxfordshire County Council,5526,Payments to Private Contractors,10/11/2016,2200260142,"6,190.17",Carillion LGS Ltd
http://statistics.data.gov.uk/id/local-authority/38,Oxfordshire County Council,3787,Premises Repairs,17/11/2016,2200264562,"6,411.09",Carillion LGS Ltd
http://statistics.data.gov.uk/id/local-authority/38,Oxfordshire County Council,8102,Payments to main contractor,16/11/2016,2200263513,"6,615.60",Carillion LGS Ltd
http://statistics.data.gov.uk/id/local-authority/38,Oxfordshire County Council,4665,Catering,10/11/2016,2200260046,"7,309.50",Carillion LGS Ltd
http://statistics.data.gov.uk/id/local-authority/38,Oxfordshire County Council,8102,Payments to main contractor,22/11/2016,2200267058,"7,785.59",Carillion LGS Ltd
http://statistics.data.gov.uk/id/local-authority/38,Oxfordshire County Council,3787,Premises Repairs,17/11/2016,2200264539,"8,211.15",Carillion LGS Ltd
http://statistics.data.gov.uk/id/local-authority/38,Oxfordshire County Council,3787,Premises Repairs,17/11/2016,2200264512,"9,006.96",Carillion LGS Ltd
http://statistics.data.gov.uk/id/local-authority/38,Oxfordshire County Council,8102,Payments to main contractor,16/11/2016,2200263629,"11,175.36",Carillion LGS Ltd
http://statistics.data.gov.uk/id/local-authority/38,Oxfordshire County Council,5526,Payments to Private Contractors,10/11/2016,2200260050,"11,205.60",Carillion LGS Ltd
http://statistics.data.gov.uk/id/local-authority/38,Oxfordshire County Council,8102,Payments to main contractor,16/11/2016,2200263724,"12,974.86",Carillion LGS Ltd
http://statistics.data.gov.uk/id/local-authority/38,Oxfordshire County Council,3787,Premises Repairs,24/11/2016,2200268462,"14,430.07",Carillion LGS Ltd
http://statistics.data.gov.uk/id/local-authority/38,Oxfordshire County Council,5526,Payments to Private Contractors,11/11/2016,2200260804,"14,689.08",Carillion LGS Ltd
http://statistics.data.gov.uk/id/local-authority/38,Oxfordshire County Council,3787,Premises Repairs,22/11/2016,2200267105,"14,934.28",Carillion LGS Ltd
http://statistics.data.gov.uk/id/local-authority/38,Oxfordshire County Council,3787,Premises Repairs,17/11/2016,2200264536,"15,411.87",Carillion LGS Ltd
http://statistics.data.gov.uk/id/local-authority/38,Oxfordshire County Council,8102,Payments to main contractor,16/11/2016,2200263625,"16,994.60",Carillion LGS Ltd
http://statistics.data.gov.uk/id/local-authority/38,Oxfordshire County Council,8102,Payments to main contractor,29/11/2016,2200271340,"17,027.00",Carillion LGS Ltd
http://statistics.data.gov.uk/id/local-authority/38,Oxfordshire County Council,8102,Payments to main contractor,16/11/2016,2200263510,"17,311.26",Carillion LGS Ltd
http://statistics.data.gov.uk/id/local-authority/38,Oxfordshire County Council,8102,Payments to main contractor,29/11/2016,2200271437,"21,821.16",Carillion LGS Ltd
http://statistics.data.gov.uk/id/local-authority/38,Oxfordshire County Council,5526,Payments to Private Contractors,11/11/2016,2200260805,"22,916.67",Carillion LGS Ltd
http://statistics.data.gov.uk/id/local-authority/38,Oxfordshire County Council,5526,Payments to Private Contractors,10/11/2016,2200260138,"23,414.52",Carillion LGS Ltd
http://statistics.data.gov.uk/id/local-authority/38,Oxfordshire County Council,1362,Creditors GR/IR -,23/11/2016,2200267835,"25,186.33",Carillion LGS Ltd
http://statistics.data.gov.uk/id/local-authority/38,Oxfordshire County Council,3787,Premises Repairs,17/11/2016,2200264532,"25,886.98",Carillion LGS Ltd
http://statistics.data.gov.uk/id/local-authority/38,Oxfordshire County Council,5526,Payments to Private Contractors,11/11/2016,2200260806,"26,681.71",Carillion LGS Ltd
http://statistics.data.gov.uk/id/local-authority/38,Oxfordshire County Council,8102,Payments to main contractor,16/11/2016,2200263611,"29,225.35",Carillion LGS Ltd
http://statistics.data.gov.uk/id/local-authority/38,Oxfordshire County Council,8102,Payments to main contractor,30/11/2016,2200271705,"34,243.44",Carillion LGS Ltd
http://statistics.data.gov.uk/id/local-authority/38,Oxfordshire County Council,8102,Payments to main contractor,29/11/2016,2200271366,"34,778.65",Carillion LGS Ltd
http://statistics.data.gov.uk/id/local-authority/38,Oxfordshire County Council,8102,Payments to main contractor,29/11/2016,2200271313,"39,329.68",Carillion LGS Ltd
http://statistics.data.gov.uk/id/local-authority/38,Oxfordshire County Council,8102,Payments to main contractor,28/11/2016,2200270676,"41,994.47",Carillion LGS Ltd
http://statistics.data.gov.uk/id/local-authority/38,Oxfordshire County Council,8102,Payments to main contractor,22/11/2016,2200267038,"42,977.87",Carillion LGS Ltd
http://statistics.data.gov.uk/id/local-authority/38,Oxfordshire County Council,5526,Payments to Private Contractors,10/11/2016,2200260041,"47,616.01",Carillion LGS Ltd
http://statistics.data.gov.uk/id/local-authority/38,Oxfordshire County Council,8102,Payments to main contractor,29/11/2016,2200271585,"64,633.74",Carillion LGS Ltd
http://statistics.data.gov.uk/id/local-authority/38,Oxfordshire County Council,5526,Payments to Private Contractors,10/11/2016,2200260003,"70,491.08",Carillion LGS Ltd
http://statistics.data.gov.uk/id/local-authority/38,Oxfordshire County Council,8102,Payments to main contractor,22/11/2016,2200267066,"92,191.92",Carillion LGS Ltd
http://statistics.data.gov.uk/id/local-authority/38,Oxfordshire County Council,8102,Payments to main contractor,22/11/2016,2200267070,"96,029.22",Carillion LGS Ltd
http://statistics.data.gov.uk/id/local-authority/38,Oxfordshire County Council,5526,Payments to Private Contractors,10/11/2016,2200260026,"102,345.02",Carillion LGS Ltd
http://statistics.data.gov.uk/id/local-authority/38,Oxfordshire County Council,8102,Payments to main contractor,22/11/2016,2200267043,"113,351.21",Carillion LGS Ltd
http://statistics.data.gov.uk/id/local-authority/38,Oxfordshire County Council,5526,Payments to Private Contractors,10/11/2016,2200260038,"114,425.50",Carillion LGS Ltd
http://statistics.data.gov.uk/id/local-authority/38,Oxfordshire County Council,8102,Payments to main contractor,23/11/2016,2200267930,"115,187.02",Carillion LGS Ltd
http://statistics.data.gov.uk/id/local-authority/38,Oxfordshire County Council,8102,Payments to main contractor,22/11/2016,2200267034,"132,713.45",Carillion LGS Ltd
http://statistics.data.gov.uk/id/local-authority/38,Oxfordshire County Council,8102,Payments to main contractor,29/11/2016,2200271303,"140,465.00",Carillion LGS Ltd
http://statistics.data.gov.uk/id/local-authority/38,Oxfordshire County Council,8102,Payments to main contractor,17/11/2016,2200264534,"148,481.48",Carillion LGS Ltd
http://statistics.data.gov.uk/id/local-authority/38,Oxfordshire County Council,8102,Payments to main contractor,23/11/2016,2200267493,"148,773.48",Carillion LGS Ltd
http://statistics.data.gov.uk/id/local-authority/38,Oxfordshire County Council,4665,Catering,10/11/2016,2200260019,"185,328.15",Carillion LGS Ltd
http://statistics.data.gov.uk/id/local-authority/38,Oxfordshire County Council,8102,Payments to main contractor,23/11/2016,2200267935,"231,572.26",Carillion LGS Ltd
http://statistics.data.gov.uk/id/local-authority/38,Oxfordshire County Council,8102,Payments to main contractor,22/11/2016,2200267209,"266,911.34",Carillion LGS Ltd
http://statistics.data.gov.uk/id/local-authority/38,Oxfordshire County Council,8102,Payments to main contractor,22/11/2016,2200267211,"692,286.33",Carillion LGS Ltd
http://statistics.data.gov.uk/id/local-authority/38,Oxfordshire County Council,5687,,10/11/2016,3110161903,"7,705.75",Caring Homes Healthcare Group Ltd
http://statistics.data.gov.uk/id/local-authority/38,Oxfordshire County Council,2040,Agency Staff,11/11/2016,2200261161,"-3,139.20",Caritas Recruitment Ltd
http://statistics.data.gov.uk/id/local-authority/38,Oxfordshire County Council,2040,Agency Staff,14/11/2016,2200261805,-800,Caritas Recruitment Ltd
http://statistics.data.gov.uk/id/local-authority/38,Oxfordshire County Council,2040,Agency Staff,07/11/2016,2200257581,509.6,Caritas Recruitment Ltd
http://statistics.data.gov.uk/id/local-authority/38,Oxfordshire County Council,2040,Agency Staff,18/11/2016,2200265081,855.8,Caritas Recruitment Ltd
http://statistics.data.gov.uk/id/local-authority/38,Oxfordshire County Council,2040,Agency Staff,08/11/2016,2200258653,875.25,Caritas Recruitment Ltd
http://statistics.data.gov.uk/id/local-authority/38,Oxfordshire County Council,2040,Agency Staff,24/11/2016,2200268447,987,Caritas Recruitment Ltd
http://statistics.data.gov.uk/id/local-authority/38,Oxfordshire County Council,2040,Agency Staff,07/11/2016,2200257724,990.08,Caritas Recruitment Ltd
http://statistics.data.gov.uk/id/local-authority/38,Oxfordshire County Council,2040,Agency Staff,08/11/2016,2200258442,"1,044.68",Caritas Recruitment Ltd
http://statistics.data.gov.uk/id/local-authority/38,Oxfordshire County Council,2040,Agency Staff,16/11/2016,2200263442,"1,073.80",Caritas Recruitment Ltd
http://statistics.data.gov.uk/id/local-authority/38,Oxfordshire County Council,2040,Agency Staff,07/11/2016,2200257589,"1,092.00",Caritas Recruitment Ltd
http://statistics.data.gov.uk/id/local-authority/38,Oxfordshire County Council,2040,Agency Staff,23/11/2016,2200267618,"1,095.00",Caritas Recruitment Ltd
http://statistics.data.gov.uk/id/local-authority/38,Oxfordshire County Council,2040,Agency Staff,16/11/2016,2200263475,"1,128.40",Caritas Recruitment Ltd
http://statistics.data.gov.uk/id/local-authority/38,Oxfordshire County Council,2040,Agency Staff,22/11/2016,2200267028,"1,128.40",Caritas Recruitment Ltd
http://statistics.data.gov.uk/id/local-authority/38,Oxfordshire County Council,2040,Agency Staff,28/11/2016,2200270615,"1,128.40",Caritas Recruitment Ltd
http://statistics.data.gov.uk/id/local-authority/38,Oxfordshire County Council,2040,Agency Staff,11/11/2016,2200260815,"1,184.40",Caritas Recruitment Ltd
http://statistics.data.gov.uk/id/local-authority/38,Oxfordshire County Council,2040,Agency Staff,02/11/2016,2200255161,"1,217.30",Caritas Recruitment Ltd
http://statistics.data.gov.uk/id/local-authority/38,Oxfordshire County Council,2040,Agency Staff,03/11/2016,2200255991,"1,217.30",Caritas Recruitment Ltd
http://statistics.data.gov.uk/id/local-authority/38,Oxfordshire County Council,2040,Agency Staff,14/11/2016,2200262570,"1,217.30",Caritas Recruitment Ltd
http://statistics.data.gov.uk/id/local-authority/38,Oxfordshire County Council,2040,Agency Staff,23/11/2016,2200267360,"1,217.30",Caritas Recruitment Ltd
http://statistics.data.gov.uk/id/local-authority/38,Oxfordshire County Council,2040,Agency Staff,08/11/2016,2200258789,"1,310.40",Caritas Recruitment Ltd
http://statistics.data.gov.uk/id/local-authority/38,Oxfordshire County Council,2040,Agency Staff,11/11/2016,2200260810,"1,328.40",Caritas Recruitment Ltd
http://statistics.data.gov.uk/id/local-authority/38,Oxfordshire County Council,2040,Agency Staff,23/11/2016,2200267363,"1,328.40",Caritas Recruitment Ltd
http://statistics.data.gov.uk/id/local-authority/38,Oxfordshire County Council,2040,Agency Staff,07/11/2016,2200257578,"1,346.80",Caritas Recruitment Ltd
http://statistics.data.gov.uk/id/local-authority/38,Oxfordshire County Council,2040,Agency Staff,11/11/2016,2200260813,"1,346.80",Caritas Recruitment Ltd
http://statistics.data.gov.uk/id/local-authority/38,Oxfordshire County Council,2040,Agency Staff,16/11/2016,2200263471,"1,346.80",Caritas Recruitment Ltd
http://statistics.data.gov.uk/id/local-authority/38,Oxfordshire County Council,2040,Agency Staff,22/11/2016,2200267040,"1,350.50",Caritas Recruitment Ltd
http://statistics.data.gov.uk/id/local-authority/38,Oxfordshire County Council,2040,Agency Staff,07/11/2016,2200257558,"1,365.00",Caritas Recruitment Ltd
http://statistics.data.gov.uk/id/local-authority/38,Oxfordshire County Council,2040,Agency Staff,08/11/2016,2200258838,"1,365.00",Caritas Recruitment Ltd
http://statistics.data.gov.uk/id/local-authority/38,Oxfordshire County Council,2040,Agency Staff,11/11/2016,2200260809,"1,365.00",Caritas Recruitment Ltd
http://statistics.data.gov.uk/id/local-authority/38,Oxfordshire County Council,2040,Agency Staff,28/11/2016,2200270356,"1,365.00",Caritas Recruitment Ltd
http://statistics.data.gov.uk/id/local-authority/38,Oxfordshire County Council,2040,Agency Staff,28/11/2016,2200270727,"1,365.00",Caritas Recruitment Ltd
http://statistics.data.gov.uk/id/local-authority/38,Oxfordshire County Council,2040,Agency Staff,18/11/2016,2200265030,"1,365.30",Caritas Recruitment Ltd
http://statistics.data.gov.uk/id/local-authority/38,Oxfordshire County Council,2040,Agency Staff,09/11/2016,2200259786,"1,370.61",Caritas Recruitment Ltd
http://statistics.data.gov.uk/id/local-authority/38,Oxfordshire County Council,2040,Agency Staff,16/11/2016,2200263421,"1,402.69",Caritas Recruitment Ltd
http://statistics.data.gov.uk/id/local-authority/38,Oxfordshire County Council,2040,Agency Staff,04/11/2016,2200256868,"1,439.30",Caritas Recruitment Ltd
http://statistics.data.gov.uk/id/local-authority/38,Oxfordshire County Council,2040,Agency Staff,04/11/2016,2200257272,"1,439.30",Caritas Recruitment Ltd
http://statistics.data.gov.uk/id/local-authority/38,Oxfordshire County Council,2040,Agency Staff,15/11/2016,2200263372,"1,439.30",Caritas Recruitment Ltd
http://statistics.data.gov.uk/id/local-authority/38,Oxfordshire County Council,2040,Agency Staff,16/11/2016,2200263674,"1,439.30",Caritas Recruitment Ltd
http://statistics.data.gov.uk/id/local-authority/38,Oxfordshire County Council,2040,Agency Staff,18/11/2016,2200265031,"1,439.30",Caritas Recruitment Ltd
http://statistics.data.gov.uk/id/local-authority/38,Oxfordshire County Council,2040,Agency Staff,24/11/2016,2200268670,"1,439.30",Caritas Recruitment Ltd
http://statistics.data.gov.uk/id/local-authority/38,Oxfordshire County Council,2040,Agency Staff,18/11/2016,2200265098,"1,471.50",Caritas Recruitment Ltd
http://statistics.data.gov.uk/id/local-authority/38,Oxfordshire County Council,2040,Agency Staff,07/11/2016,2200257583,"1,513.30",Caritas Recruitment Ltd
http://statistics.data.gov.uk/id/local-authority/38,Oxfordshire County Council,2040,Agency Staff,17/11/2016,2200264276,"1,513.30",Caritas Recruitment Ltd
http://statistics.data.gov.uk/id/local-authority/38,Oxfordshire County Council,2040,Agency Staff,22/11/2016,2200266696,"1,513.30",Caritas Recruitment Ltd
http://statistics.data.gov.uk/id/local-authority/38,Oxfordshire County Council,2040,Agency Staff,24/11/2016,2200268246,"1,513.30",Caritas Recruitment Ltd
http://statistics.data.gov.uk/id/local-authority/38,Oxfordshire County Council,2040,Agency Staff,10/11/2016,2200260485,"1,756.80",Caritas Recruitment Ltd
http://statistics.data.gov.uk/id/local-authority/38,Oxfordshire County Council,2040,Agency Staff,18/11/2016,2200265088,"1,810.00",Caritas Recruitment Ltd
http://statistics.data.gov.uk/id/local-authority/38,Oxfordshire County Council,2040,Agency Staff,14/11/2016,2200262566,"1,960.00",Caritas Recruitment Ltd
http://statistics.data.gov.uk/id/local-authority/38,Oxfordshire County Council,2040,Agency Staff,11/11/2016,2200261185,"1,962.00",Caritas Recruitment Ltd
http://statistics.data.gov.uk/id/local-authority/38,Oxfordshire County Council,2040,Agency Staff,11/11/2016,2200261174,"2,250.00",Caritas Recruitment Ltd
http://statistics.data.gov.uk/id/local-authority/38,Oxfordshire County Council,2040,Agency Staff,11/11/2016,2200261186,"2,250.00",Caritas Recruitment Ltd
http://statistics.data.gov.uk/id/local-authority/38,Oxfordshire County Council,2040,Agency Staff,11/11/2016,2200261175,"2,648.70",Caritas Recruitment Ltd
http://statistics.data.gov.uk/id/local-authority/38,Oxfordshire County Council,2040,Agency Staff,11/11/2016,2200260814,"3,139.20",Caritas Recruitment Ltd
http://statistics.data.gov.uk/id/local-authority/38,Oxfordshire County Council,5899,Adult Social Care - Direct Payments,16/11/2016,3110162664,"-2,967.00",Redacted Personal Data
http://statistics.data.gov.uk/id/local-authority/38,Oxfordshire County Council,5899,Adult Social Care - Direct Payments,02/11/2016,3110158063,644,Redacted Personal Data
http://statistics.data.gov.uk/id/local-authority/38,Oxfordshire County Council,5899,Adult Social Care - Direct Payments,30/11/2016,3110168408,"1,863.64",Redacted Personal Data
